Workbook

Sheet Temp distribution
A1: Time-dependent Temperature Distribution in a plastic vial
AW3: Coefficients for polyethelene | AZ3: Coefficients for H2O
C4: heat capacity of polyethelene, cal/g/deg | AW4: 12.4 | AX4: (hcap) | AZ4: 150
C5: thermal conductivity of Polyethelene, cal/sec/cm/deg | AW5: 0.5 | AX5: (k) | AZ5: 0.9
C6: density of polyethelene, g/cm3 | AW6: 0.5 | AX6: (rho) | AZ6: 1
C7: Coefficient e in general PDE, =k/(hcap*rho) | AW7: =k/(hcap*rho) -> 0.08064516129 | AX7: (e) | AZ7: =AZ5/(AZ4*AZ6) -> 0.006
C8: Dx | AW8: =0.05 -> 0.05 | AX8: (Dx) | AZ8: 0.25
C9: Dt | AW9: =B14-B13 -> 0.015 | AX9: (Dt) | AZ9: 0.015
C10: f=e*Dt/(Dx^2) | AW10: =e*Dt/(Dx^2) -> 0.4838709677 | AX10: (f) | AZ10: =AZ7*Dt/(Dx^2) -> 0.036
C12: aluminum block edge | D12: 0 | E12: 0 | F12: 0 | G12: 0 | H12: 0 | I12: 0 | J12: 0 | K12: 0 | L12: 0 | M12: 0 | N12: 0 | O12: 0 | P12: 0 | Q12: 0 | R12: 0 | S12: 0 | T12: 0 | U12: 0 | V12: 0 | W12: 0 | X12: 0 | Y12: 0 | Z12: 0 | AA12: 0 | AB12: 0 | AC12: 0 | AD12: 0 | AE12: 0 | AF12: 0 | AG12: 0 | AH12: 0 | AI12: 0 | AJ12: 0 | AK12: 0 | AL12: 0 | AM12: 0 | AN12: 0 | AO12: 0 | AP12: 0 | AQ12: 0 | AR12: aluminum block edge | AS12: GoTaq1.5
A13: time t (sec) | B13: 0.064 | C13: 52.3873 | D13: 52.3873 | E13: 52.3873 | F13: 52.3873 | G13: 52.3873 | H13: 52.3873 | I13: 52.3873 | J13: 52.3873 | K13: 52.3873 | L13: 52.3873 | M13: 52.3873 | N13: 52.3873 | O13: 52.3873 | P13: 52.3873 | Q13: 52.3873 | R13: 52.3873 | S13: 52.3873 | T13: 52.3873 | U13: 52.3873 | V13: 52.3873 | W13: 52.3873 | X13: 52.3873 | Y13: 52.3873 | Z13: 52.3873 | AA13: 52.3873 | AB13: 52.3873 | AC13: 52.3873 | AD13: 52.3873 | AE13: 52.3873 | AF13: 52.3873 | AG13: 52.3873 | AH13: 52.3873 | AI13: 52.3873 | AJ13: 52.3873 | AK13: 52.3873 | AL13: 52.3873 | AM13: 52.3873 | AN13: 52.3873 | AO13: 52.3873 | AP13: 52.3873 | AQ13: 52.3873 | AR13: 52.3873 | AS13: 53.4122
B14: 0.079 | C14: 52.3848 | D14: =f*(C13+E13)+(1-2*f)*D13 -> 52.3873 | E14: =f*(D13+F13)+(1-2*f)*E13 -> 52.3873 | F14: 52.3873 | G14: 52.3873 | H14: 52.3873 | I14: 52.3873 | J14: 52.3873 | K14: 52.3873 | L14: 52.3873 | M14: 52.3873 | N14: 52.3873 | O14: 52.3873 | P14: 52.3873 | Q14: 52.3873 | R14: 52.3873 | S14: 52.3873 | T14: 52.3873 | U14: 52.3873 | V14: 52.3873 | W14: 52.3873 | X14: 52.3873 | Y14: 52.3873 | Z14: 52.3873 | AA14: 52.3873 | AB14: 52.3873 | AC14: 52.3873 | AD14: 52.3873 | AE14: 52.3873 | AF14: 52.3873 | AG14: 52.3873 | AH14: 52.3873 | AI14: 52.3873 | AJ14: 52.3873 | AK14: 52.3873 | AL14: 52.3873 | AM14: 52.3873 | AN14: 52.3873 | AO14: 52.3873 | AP14: 52.3873 | AQ14: 52.3873 | AR14: 52.3848 | AS14: 53.4139
B15: 0.094 | C15: 52.3808 | D15: 52.38609032 | E15: 52.3873 | F15: 52.3873 | G15: 52.3873 | H15: 52.3873 | I15: 52.3873 | J15: 52.3873 | K15: 52.3873 | L15: 52.3873 | M15: 52.3873 | N15: 52.3873 | O15: 52.3873 | P15: 52.3873 | Q15: 52.3873 | R15: 52.3873 | S15: 52.3873 | T15: 52.3873 | U15: 52.3873 | V15: 52.3873 | W15: 52.3873 | X15: 52.3873 | Y15: 52.3873 | Z15: 52.3873 | AA15: 52.3873 | AB15: 52.3873 | AC15: 52.3873 | AD15: 52.3873 | AE15: 52.3873 | AF15: 52.3873 | AG15: 52.3873 | AH15: 52.3873 | AI15: 52.3873 | AJ15: 52.3873 | AK15: 52.3873 | AL15: 52.3873 | AM15: 52.3873 | AN15: 52.3873 | AO15: 52.3873 | AP15: 52.3873 | AQ15: 52.38609032 | AR15: 52.3808 | AS15: 53.4067
B16: 0.109 | C16: 52.3779 | D16: 52.38411582 | E16: 52.38671467 | F16: 52.3873 | G16: 52.3873 | H16: 52.3873 | I16: 52.3873 | J16: 52.3873 | K16: 52.3873 | L16: 52.3873 | M16: 52.3873 | N16: 52.3873 | O16: 52.3873 | P16: 52.3873 | Q16: 52.3873 | R16: 52.3873 | S16: 52.3873 | T16: 52.3873 | U16: 52.3873 | V16: 52.3873 | W16: 52.3873 | X16: 52.3873 | Y16: 52.3873 | Z16: 52.3873 | AA16: 52.3873 | AB16: 52.3873 | AC16: 52.3873 | AD16: 52.3873 | AE16: 52.3873 | AF16: 52.3873 | AG16: 52.3873 | AH16: 52.3873 | AI16: 52.3873 | AJ16: 52.3873 | AK16: 52.3873 | AL16: 52.3873 | AM16: 52.3873 | AN16: 52.3873 | AO16: 52.3873 | AP16: 52.38671467 | AQ16: 52.38411582 | AR16: 52.3779 | AS16: 53.4041
B17: 0.124 | C17: 52.3754 | D17: 52.38236567 | E17: 52.38574038 | F17: 52.38701678 | G17: 52.3873 | H17: 52.3873 | I17: 52.3873 | J17: 52.3873 | K17: 52.3873 | L17: 52.3873 | M17: 52.3873 | N17: 52.3873 | O17: 52.3873 | P17: 52.3873 | Q17: 52.3873 | R17: 52.3873 | S17: 52.3873 | T17: 52.3873 | U17: 52.3873 | V17: 52.3873 | W17: 52.3873 | X17: 52.3873 | Y17: 52.3873 | Z17: 52.3873 | AA17: 52.3873 | AB17: 52.3873 | AC17: 52.3873 | AD17: 52.3873 | AE17: 52.3873 | AF17: 52.3873 | AG17: 52.3873 | AH17: 52.3873 | AI17: 52.3873 | AJ17: 52.3873 | AK17: 52.3873 | AL17: 52.3873 | AM17: 52.3873 | AN17: 52.3873 | AO17: 52.38701678 | AP17: 52.38574038 | AQ17: 52.38236567 | AR17: 52.3754 | AS17: 53.3943
B18: 0.139 | C18: 52.3717 | D18: 52.38062811 | E18: 52.38472507 | F18: 52.38653621 | G18: 52.38716296 | H18: 52.3873 | I18: 52.3873 | J18: 52.3873 | K18: 52.3873 | L18: 52.3873 | M18: 52.3873 | N18: 52.3873 | O18: 52.3873 | P18: 52.3873 | Q18: 52.3873 | R18: 52.3873 | S18: 52.3873 | T18: 52.3873 | U18: 52.3873 | V18: 52.3873 | W18: 52.3873 | X18: 52.3873 | Y18: 52.3873 | Z18: 52.3873 | AA18: 52.3873 | AB18: 52.3873 | AC18: 52.3873 | AD18: 52.3873 | AE18: 52.3873 | AF18: 52.3873 | AG18: 52.3873 | AH18: 52.3873 | AI18: 52.3873 | AJ18: 52.3873 | AK18: 52.3873 | AL18: 52.3873 | AM18: 52.3873 | AN18: 52.38716296 | AO18: 52.38653621 | AP18: 52.38472507 | AQ18: 52.38062811 | AR18: 52.3717 | AS18: 53.386
B19: 0.154 | C19: 52.3748 | D19: 52.37829046 | E19: 52.38361903 | F19: 52.38596312 | G19: 52.386926 | H19: 52.38723369 | I19: 52.3873 | J19: 52.3873 | K19: 52.3873 | L19: 52.3873 | M19: 52.3873 | N19: 52.3873 | O19: 52.3873 | P19: 52.3873 | Q19: 52.3873 | R19: 52.3873 | S19: 52.3873 | T19: 52.3873 | U19: 52.3873 | V19: 52.3873 | W19: 52.3873 | X19: 52.3873 | Y19: 52.3873 | Z19: 52.3873 | AA19: 52.3873 | AB19: 52.3873 | AC19: 52.3873 | AD19: 52.3873 | AE19: 52.3873 | AF19: 52.3873 | AG19: 52.3873 | AH19: 52.3873 | AI19: 52.3873 | AJ19: 52.3873 | AK19: 52.3873 | AL19: 52.3873 | AM19: 52.38723369 | AN19: 52.386926 | AO19: 52.38596312 | AP19: 52.38361903 | AQ19: 52.37829046 | AR19: 52.3748 | AS19: 53.3855
B20: 0.169 | C20: 52.3787 | D20: 52.37917987 | E20: 52.38217492 | F20: 52.38529479 | G20: 52.38660897 | H20: 52.3871169 | I20: 52.38726791 | J20: 52.3873 | K20: 52.3873 | L20: 52.3873 | M20: 52.3873 | N20: 52.3873 | O20: 52.3873 | P20: 52.3873 | Q20: 52.3873 | R20: 52.3873 | S20: 52.3873 | T20: 52.3873 | U20: 52.3873 | V20: 52.3873 | W20: 52.3873 | X20: 52.3873 | Y20: 52.3873 | Z20: =f*(Y19+AA19)+(1-2*f)*Z19 -> 52.3873 | AA20: 52.3873 | AB20: 52.3873 | AC20: 52.3873 | AD20: 52.3873 | AE20: 52.3873 | AF20: 52.3873 | AG20: 52.3873 | AH20: 52.3873 | AI20: 52.3873 | AJ20: 52.3873 | AK20: 52.3873 | AL20: 52.38726791 | AM20: 52.3871169 | AN20: 52.38660897 | AO20: 52.38529479 | AP20: 52.38217492 | AQ20: 52.37917987 | AR20: 52.3787 | AS20: 53.3791
B21: 0.184 | C21: 52.3785 | D21: 52.38039689 | E21: 52.38223532 | F21: 52.38442107 | G21: 52.38621885 | H21: 52.3869442 | I21: 52.38721037 | J21: 52.38728447 | K21: 52.3873 | L21: 52.3873 | M21: 52.3873 | N21: 52.3873 | O21: 52.3873 | P21: 52.3873 | Q21: 52.3873 | R21: 52.3873 | S21: 52.3873 | T21: 52.3873 | U21: 52.3873 | V21: 52.3873 | W21: 52.3873 | X21: 52.3873 | Y21: 52.3873 | Z21: 52.3873 | AA21: 52.3873 | AB21: 52.3873 | AC21: 52.3873 | AD21: 52.3873 | AE21: 52.3873 | AF21: 52.3873 | AG21: 52.3873 | AH21: 52.3873 | AI21: 52.3873 | AJ21: 52.3873 | AK21: 52.38728447 | AL21: 52.38721037 | AM21: 52.3869442 | AN21: 52.38621885 | AO21: 52.38442107 | AP21: 52.38223532 | AQ21: 52.38039689 | AR21: 52.3785 | AS21: 53.3776
B22: 0.199 | C22: 52.3885 | D22: 52.3803686 | E22: 52.38240338 | F22: 52.38423334 | G22: 52.38569993 | H22: 52.38672201 | I22: 52.38711743 | J22: 52.38725613 | K22: 52.38729249 | L22: 52.3873 | M22: 52.3873 | N22: 52.3873 | O22: 52.3873 | P22: 52.3873 | Q22: 52.3873 | R22: 52.3873 | S22: 52.3873 | T22: 52.3873 | U22: 52.3873 | V22: 52.3873 | W22: 52.3873 | X22: 52.3873 | Y22: 52.3873 | Z22: 52.3873 | AA22: 52.3873 | AB22: 52.3873 | AC22: 52.3873 | AD22: 52.3873 | AE22: 52.3873 | AF22: 52.3873 | AG22: 52.3873 | AH22: 52.3873 | AI22: 52.3873 | AJ22: 52.38729249 | AK22: 52.38725613 | AL22: 52.38711743 | AM22: 52.38672201 | AN22: 52.38569993 | AO22: 52.38423334 | AP22: 52.38240338 | AQ22: 52.3803686 | AR22: 52.3885 | AS22: 53.3783
B23: 0.214 | C23: 52.3981 | D23: 52.38528772 | E23: 52.38230427 | F23: 52.38405752 | G23: 52.38548485 | H23: 52.38641879 | I23: 52.38699321 | J23: 52.38720661 | K23: 52.38727853 | L23: 52.38729636 | M23: 52.3873 | N23: 52.3873 | O23: 52.3873 | P23: 52.3873 | Q23: 52.3873 | R23: 52.3873 | S23: 52.3873 | T23: 52.3873 | U23: 52.3873 | V23: 52.3873 | W23: 52.3873 | X23: 52.3873 | Y23: 52.3873 | Z23: 52.3873 | AA23: 52.3873 | AB23: 52.3873 | AC23: 52.3873 | AD23: 52.3873 | AE23: 52.3873 | AF23: 52.3873 | AG23: 52.3873 | AH23: 52.3873 | AI23: 52.38729636 | AJ23: 52.38727853 | AK23: 52.38720661 | AL23: 52.38699321 | AM23: 52.38641879 | AN23: 52.38548485 | AO23: 52.38405752 | AP23: 52.38230427 | AQ23: 52.38528772 | AR23: 52.3981 | AS23: 53.3721
B24: 0.229 | C24: 52.4091 | D24: 52.39004361 | E24: 52.38459622 | F24: 52.38389982 | G24: 52.38524611 | H24: 52.38624483 | I24: 52.38681852 | J24: 52.38713815 | K24: 52.38725236 | L24: 52.38728949 | M24: 52.38729824 | N24: 52.3873 | O24: 52.3873 | P24: 52.3873 | Q24: 52.3873 | R24: 52.3873 | S24: 52.3873 | T24: 52.3873 | U24: 52.3873 | V24: 52.3873 | W24: 52.3873 | X24: 52.3873 | Y24: 52.3873 | Z24: 52.3873 | AA24: 52.3873 | AB24: 52.3873 | AC24: 52.3873 | AD24: 52.3873 | AE24: 52.3873 | AF24: 52.3873 | AG24: 52.3873 | AH24: 52.38729824 | AI24: 52.38728949 | AJ24: 52.38725236 | AK24: 52.38713815 | AL24: 52.38681852 | AM24: 52.38624483 | AN24: 52.38524611 | AO24: 52.38389982 | AP24: 52.38459622 | AQ24: 52.39004361 | AR24: 52.4091 | AS24: 53.3688
B25: 0.244 | C25: 52.4247 | D25: 52.39662861 | E25: 52.38689508 | F25: 52.38488822 | G25: 52.38507793 | H25: 52.38603917 | I25: 52.38669559 | J25: 52.38703876 | K25: 52.38721507 | L25: 52.38727576 | M25: 52.38729486 | N25: 52.38729915 | O25: 52.3873 | P25: 52.3873 | Q25: 52.3873 | R25: 52.3873 | S25: 52.3873 | T25: 52.3873 | U25: 52.3873 | V25: 52.3873 | W25: 52.3873 | X25: 52.3873 | Y25: 52.3873 | Z25: 52.3873 | AA25: 52.3873 | AB25: 52.3873 | AC25: 52.3873 | AD25: 52.3873 | AE25: 52.3873 | AF25: 52.3873 | AG25: 52.38729915 | AH25: 52.38729486 | AI25: 52.38727576 | AJ25: 52.38721507 | AK25: 52.38703876 | AL25: 52.38669559 | AM25: 52.38603917 | AN25: 52.38507793 | AO25: 52.38488822 | AP25: 52.38689508 | AQ25: 52.39662861 | AR25: 52.4247 | AS25: 53.3638 | BX25: =AS5400/O5400 -> 0.9969662709 | BY25: =BY24+(B5400-B5399)*(AS5400+AS5401)/2 -> 1.1945325 | BZ25: =BZ24+(B5400-B5399)*(O5400+O5401)/2 -> 1.198181944
B26: 0.259 | C26: 52.4432 | D26: 52.40550177 | E26: 52.39063379 | F26: 52.38595108 | G26: 52.38545125 | H26: 52.38589167 | I26: 52.38654402 | J26: 52.38695802 | K26: 52.38715912 | L26: 52.38725563 | M26: 52.38728769 | N26: 52.38729749 | O26: 52.38729959 | P26: 52.3873 | Q26: 52.3873 | R26: 52.3873 | S26: 52.3873 | T26: 52.3873 | U26: 52.3873 | V26: 52.3873 | W26: 52.3873 | X26: 52.3873 | Y26: 52.3873 | Z26: 52.3873 | AA26: 52.3873 | AB26: 52.3873 | AC26: 52.3873 | AD26: 52.3873 | AE26: 52.3873 | AF26: 52.38729959 | AG26: 52.38729749 | AH26: 52.38728769 | AI26: 52.38725563 | AJ26: 52.38715912 | AK26: 52.38695802 | AL26: 52.38654402 | AM26: 52.38589167 | AN26: 52.38545125 | AO26: 52.38595108 | AP26: 52.39063379 | AQ26: 52.40550177 | AR26: 52.4432 | AS26: 53.3567 | BX26: 0.996942093 | BY26: =BY25+(B5401-B5400)*(AS5401+AS5402)/2 -> 2.2752829 | BZ26: =BZ25+(B5401-B5400)*(O5401+O5402)/2 -> 2.282246943
B27: 0.274 | C27: 52.4685 | D27: 52.41654867 | E27: 52.39556215 | F27: 52.38797506 | G27: 52.38590621 | H27: =f*(G26+I26)+(1-2*f)*H26 -> 52.38599422 | I27: 52.38642869 | J27: 52.386855 | K27: 52.38710851 | L27: 52.38722445 | M27: 52.38727692 | N27: 52.38729376 | O27: 52.38729877 | P27: 52.3872998 | Q27: 52.3873 | R27: 52.3873 | S27: 52.3873 | T27: 52.3873 | U27: 52.3873 | V27: 52.3873 | W27: 52.3873 | X27: 52.3873 | Y27: 52.3873 | Z27: 52.3873 | AA27: 52.3873 | AB27: 52.3873 | AC27: 52.3873 | AD27: 52.3873 | AE27: 52.3872998 | AF27: 52.38729877 | AG27: 52.38729376 | AH27: 52.38727692 | AI27: 52.38722445 | AJ27: 52.38710851 | AK27: 52.386855 | AL27: 52.38642869 | AM27: 52.38599422 | AN27: 52.38590621 | AO27: 52.38797506 | AP27: 52.39556215 | AQ27: 52.41654867 | AR27: 52.4685 | AS27: 53.3545 | BX27: 0.9969427774 | BY27: 3.46986265 | BZ27: 3.480419223
B28: 0.289 | C28: 52.492 | D28: 52.43153164 | E28: 52.40204574 | F28: 52.39064517 | G28: 52.38694985 | H28: 52.38616186 | I28: 52.38642474 | J28: 52.38677139 | K28: 52.38704194 | L28: 52.38719374 | M28: 52.38725968 | N28: 52.38728804 | O28: 52.38729685 | P28: 52.3872994 | Q28: 52.3872999 | R28: 52.3873 | S28: 52.3873 | T28: 52.3873 | U28: 52.3873 | V28: 52.3873 | W28: 52.3873 | X28: 52.3873 | Y28: 52.3873 | Z28: 52.3873 | AA28: 52.3873 | AB28: 52.3873 | AC28: 52.3873 | AD28: 52.3872999 | AE28: 52.3872994 | AF28: 52.38729685 | AG28: 52.38728804 | AH28: 52.38725968 | AI28: 52.38719374 | AJ28: 52.38704194 | AK28: 52.38677139 | AL28: 52.38642474 | AM28: 52.38616186 | AN28: 52.38694985 | AO28: 52.39064517 | AP28: 52.40204574 | AQ28: 52.43153164 | AR28: 52.492 | AS28: 53.344 | BX28: 0.9970605391 | BY28: 4.60762765 | BZ28: 4.621531116
B29: 0.304 | C29: 52.5243 | D29: 52.44652315 | E29: 52.41079671 | F29: 52.39437352 | G29: 52.38835663 | H29: 52.38667035 | I29: 52.38646527 | J29: 52.38673457 | K29: 52.38698448 | L29: 52.3871522 | M29: 52.38724149 | N29: 52.38727858 | O29: 52.38729382 | P29: 52.38729841 | Q29: 52.38729971 | R29: 52.38729995 | S29: 52.3873 | T29: 52.3873 | U29: 52.3873 | V29: 52.3873 | W29: 52.3873 | X29: 52.3873 | Y29: 52.3873 | Z29: 52.3873 | AA29: 52.3873 | AB29: 52.3873 | AC29: 52.38729995 | AD29: 52.38729971 | AE29: 52.38729841 | AF29: 52.38729382 | AG29: 52.38727858 | AH29: 52.38724149 | AI29: 52.3871522 | AJ29: 52.38698448 | AK29: 52.38673457 | AL29: 52.38646527 | AM29: 52.38667035 | AN29: 52.38835663 | AO29: 52.39437352 | AP29: 52.41079671 | AQ29: 52.44652315 | AR29: 52.5243 | AS29: 53.3397 | BX29: 0.9970734406 | BY29: 5.6884873 | BZ29: 5.705583093
B30: 0.319 | C30: 52.5616 | D30: 52.46687012 | E30: 52.42013699 | F30: 52.39940882 | G30: 52.39045208 | H30: 52.38738706 | I30: 52.38669481 | J30: 52.38672519 | K30: 52.38694471 | L30: 52.38711425 | M30: 52.38721623 | N30: 52.38726801 | O30: 52.38728867 | P30: 52.38729681 | Q30: 52.3872992 | R30: 52.38729986 | S30: 52.38729998 | T30: 52.3873 | U30: 52.3873 | V30: 52.3873 | W30: 52.3873 | X30: 52.3873 | Y30: 52.3873 | Z30: 52.3873 | AA30: 52.3873 | AB30: 52.38729998 | AC30: 52.38729986 | AD30: 52.3872992 | AE30: 52.38729681 | AF30: 52.38728867 | AG30: 52.38726801 | AH30: 52.38721623 | AI30: 52.38711425 | AJ30: 52.38694471 | AK30: 52.38672519 | AL30: 52.38669481 | AM30: 52.38738706 | AN30: 52.39045208 | AO30: 52.39940882 | AP30: 52.42013699 | AQ30: 52.46687012 | AR30: 52.5616 | AS30: 53.3326 | BX30: 0.9970369392 | BY30: 6.8261693 | BZ30: 6.846685922
B31: 0.334 | C31: 52.6024 | D31: 52.49009435 | E31: 52.43272004 | F31: 52.40510468 | G31: 52.39330291 | H31: 52.38853517 | I31: 52.38704447 | J31: 52.38681671 | K31: 52.38692053 | L31: 52.38708156 | M31: 52.38719194 | N31: 52.38725295 | O31: 52.38728261 | P31: 52.38729402 | Q31: 52.38729836 | R31: 52.3872996 | S31: 52.38729993 | T31: 52.38729999 | U31: 52.3873 | V31: 52.3873 | W31: 52.3873 | X31: 52.3873 | Y31: 52.3873 | Z31: 52.3873 | AA31: 52.38729999 | AB31: 52.38729993 | AC31: 52.3872996 | AD31: 52.38729836 | AE31: 52.38729402 | AF31: 52.38728261 | AG31: 52.38725295 | AH31: 52.38719194 | AI31: 52.38708156 | AJ31: 52.38692053 | AK31: 52.38681671 | AL31: 52.38704447 | AM31: 52.38853517 | AN31: 52.39330291 | AO31: 52.40510468 | AP31: 52.43272004 | AQ31: 52.49009435 | AR31: 52.6024 | AS31: 53.3338 | BX31: 0.9969674066 | BY31: 7.9638123 | BZ31: 7.987784252
B32: 0.349 | C32: 52.65 | D32: 52.51667403 | E32: 52.44711953 | F32: 52.41275642 | G32: 52.39670647 | H32: 52.39012084 | I32: 52.38765557 | J32: 52.38697715 | K32: 52.38694821 | L32: 52.38705705 | M32: 52.38716805 | N32: 52.38723778 | O32: 52.38727378 | P32: 52.3872906 | Q32: 52.38729686 | R32: 52.38729916 | S32: 52.3872998 | T32: 52.38729997 | U32: 52.38729999 | V32: 52.3873 | W32: 52.3873 | X32: 52.3873 | Y32: 52.3873 | Z32: 52.38729999 | AA32: 52.38729997 | AB32: 52.3872998 | AC32: 52.38729916 | AD32: 52.38729686 | AE32: 52.3872906 | AF32: 52.38727378 | AG32: 52.38723778 | AH32: 52.38716805 | AI32: 52.38705705 | AJ32: 52.38694821 | AK32: 52.38697715 | AL32: 52.38765557 | AM32: 52.39012084 | AN32: 52.39670647 | AO32: 52.41275642 | AP32: 52.44711953 | AQ32: 52.51667403 | AR32: 52.65 | AS32: 53.3283 | BX32: 0.9969764457 | BY32: 9.15836265 | BZ32: 9.185932808
B33: 0.364 | C33: 52.7033 | D33: 52.54753119 | E33: 52.46414762 | F33: 52.42161763 | G33: 52.40128598 | H33: 52.39211456 | I33: 52.38852017 | J33: 52.38729141 | K33: 52.38701488 | L33: 52.3870581 | M33: 52.38714808 | N33: 52.38722146 | O33: 52.3872645 | P33: 52.38728549 | Q33: 52.38729495 | R33: 52.38729836 | S33: 52.38729957 | T33: 52.3872999 | U33: 52.38729998 | V33: 52.3873 | W33: 52.3873 | X33: 52.3873 | Y33: 52.3873 | Z33: 52.38729998 | AA33: 52.3872999 | AB33: 52.38729957 | AC33: =f*(AB32+AD32)+(1-2*f)*AC32 -> 52.38729836 | AD33: 52.38729495 | AE33: 52.38728549 | AF33: 52.3872645 | AG33: 52.38722146 | AH33: 52.38714808 | AI33: 52.3870581 | AJ33: 52.38701488 | AK33: 52.38729141 | AL33: 52.38852017 | AM33: 52.39211456 | AN33: 52.40128598 | AO33: 52.42161763 | AP33: 52.46414762 | AQ33: 52.54753119 | AR33: 52.7033 | AS33: 53.3343 | BX33: 0.9970172772 | BY33: 10.23920045 | BZ33: 10.26996775
B34: 0.379 | C34: 52.7568 | D34: 52.58255631 | E34: 52.48391548 | F34: 52.43235876 | G34: 52.40668609 | H34: 52.39481312 | I34: 52.38966483 | J34: 52.38775217 | K34: 52.3871696 | L34: 52.38708073 | M34: 52.38714005 | N34: 52.38720678 | O34: 52.38725383 | P34: 52.38727991 | Q34: 52.38729202 | R34: 52.38729729 | S34: 52.38729914 | T34: 52.38729978 | U34: 52.38729995 | V34: 52.38729999 | W34: 52.3873 | X34: 52.3873 | Y34: 52.38729999 | Z34: 52.38729995 | AA34: 52.38729978 | AB34: 52.38729914 | AC34: 52.38729729 | AD34: 52.38729202 | AE34: 52.38727991 | AF34: 52.38725383 | AG34: 52.38720678 | AH34: 52.38714005 | AI34: 52.38708073 | AJ34: 52.3871696 | AK34: 52.38775217 | AL34: 52.38966483 | AM34: 52.39481312 | AN34: 52.40668609 | AO34: 52.43235876 | AP34: 52.48391548 | AQ34: 52.58255631 | AR34: 52.7568 | AS34: 53.3243 | BX34: 0.9970841336 | BY34: 11.37692445 | BZ34: 11.41105274
B35: 0.394 | C35: 52.8152 | D35: 52.61913834 | E35: 52.50669811 | F35: 52.4448833 | G35: 52.41336337 | H35: 52.398067 | I35: 52.39123046 | J35: 52.38839576 | K35: 52.38740848 | L35: 52.38715243 | M35: 52.38714363 | N35: 52.38719726 | O35: 52.38724368 | P35: 52.38727315 | Q35: 52.38728871 | R35: 52.38729564 | S35: 52.38729856 | T35: 52.38729955 | U35: 52.38729989 | V35: 52.38729997 | W35: 52.3873 | X35: 52.3873 | Y35: 52.38729997 | Z35: 52.38729989 | AA35: 52.38729955 | AB35: 52.38729856 | AC35: 52.38729564 | AD35: 52.38728871 | AE35: 52.38727315 | AF35: 52.38724368 | AG35: 52.38719726 | AH35: 52.38714363 | AI35: 52.38715243 | AJ35: 52.38740848 | AK35: 52.38839576 | AL35: 52.39123046 | AM35: 52.398067 | AN35: 52.41336337 | AO35: 52.4448833 | AP35: 52.50669811 | AQ35: 52.61913834 | AR35: 52.8152 | AS35: 53.3214 | BX35: 0.9970249937 | BY35: 12.51461245 | BZ35: 12.55213333
B36: 0.409 | C36: 52.8732 | D36: 52.65960032 | E36: 52.53119428 | F36: 52.45954211 | G36: 52.42121348 | H36: 52.40216046 | I36: 52.39316684 | J36: 52.38928967 | K36: 52.3877623 | L36: 52.38727207 | M36: 52.38717384 | N36: 52.38719377 | O36: 52.38723548 | P36: 52.38726642 | Q36: 52.38728453 | R36: 52.3872937 | S36: 52.38729763 | T36: 52.38729923 | U36: 52.38729977 | V36: 52.38729994 | W36: 52.38729999 | X36: 52.38729999 | Y36: 52.38729994 | Z36: 52.38729977 | AA36: 52.38729923 | AB36: 52.38729763 | AC36: 52.3872937 | AD36: 52.38728453 | AE36: 52.38726642 | AF36: 52.38723548 | AG36: 52.38719377 | AH36: 52.38717384 | AI36: 52.38727207 | AJ36: 52.3877623 | AK36: 52.38928967 | AL36: 52.39316684 | AM36: 52.40216046 | AN36: 52.42121348 | AO36: 52.45954211 | AP36: 52.53119428 | AQ36: 52.65960032 | AR36: 52.8732 | AS36: 53.3121 | BX36: 0.9970287299 | BY36: 13.70914075 | BZ36: 13.75026337
B37: 0.424 | C37: 52.9395 | D37: 52.70082305 | E37: 52.55865583 | F37: 52.47566641 | G37: 52.43054039 | H37: 52.40702791 | I37: 52.39564254 | J37: 52.39042667 | K37: 52.38826414 | L37: 52.38746175 | M37: 52.38723102 | N37: 52.38720431 | O37: 52.38723027 | P37: 52.38726021 | Q37: 52.3872802 | R37: 52.38729116 | S37: 52.3872965 | T37: 52.38729871 | U37: 52.38729959 | V37: 52.38729988 | W37: 52.38729996 | X37: 52.38729996 | Y37: 52.38729988 | Z37: 52.38729959 | AA37: 52.38729871 | AB37: 52.3872965 | AC37: 52.38729116 | AD37: 52.3872802 | AE37: 52.38726021 | AF37: 52.38723027 | AG37: 52.38720431 | AH37: 52.38723102 | AI37: 52.38746175 | AJ37: 52.38826414 | AK37: 52.39042667 | AL37: 52.39564254 | AM37: 52.40702791 | AN37: 52.43054039 | AO37: 52.47566641 | AP37: 52.55865583 | AQ37: 52.70082305 | AR37: 52.9395 | AS37: 53.3128 | BX37: 0.9969589987 | BY37: 14.78994625 | BZ37: 14.83428166
B38: 0.439 | C38: 53.013 | D38: 52.74752131 | E38: 52.58729025 | F38: 52.49398741 | G38: 52.44099855 | H38: 52.41289587 | I38: 52.39862778 | J38: 52.3919041 | K38: 52.38892227 | L38: 52.38773836 | M38: 52.38732974 | N38: 52.38722979 | O38: 52.3872322 | P38: 52.3872554 | Q38: 52.38727583 | R38: 52.38728844 | S38: 52.38729499 | T38: 52.38729807 | U38: 52.38729931 | V38: 52.38729978 | W38: 52.38729992 | X38: 52.38729992 | Y38: 52.38729978 | Z38: 52.38729931 | AA38: 52.38729807 | AB38: 52.38729499 | AC38: 52.38728844 | AD38: 52.38727583 | AE38: 52.3872554 | AF38: 52.3872322 | AG38: 52.38722979 | AH38: 52.38732974 | AI38: 52.38773836 | AJ38: 52.38892227 | AK38: 52.3919041 | AL38: 52.39862778 | AM38: 52.41289587 | AN38: 52.44099855 | AO38: 52.49398741 | AP38: 52.58729025 | AQ38: 52.74752131 | AR38: 53.013 | AS38: 53.3057 | BX38: 0.9971134548 | BY38: 15.92772225 | BZ38: 15.97534922
B39: 0.454 | C39: 53.0837 | D39: 52.79844758 | E39: 52.61967487 | F39: 52.51349417 | G39: 52.45304025 | H39: 52.41959003 | I39: 52.4022783 | J39: 52.39371467 | K39: 52.38979223 | L39: 52.3881135 | M39: 52.3874791 | N39: 52.38727931 | O39: 52.38724226 | P39: 52.38725406 | Q39: 52.38727205 | R39: 52.38728551 | S39: 52.38729331 | T39: 52.38729718 | U39: 52.38729894 | V39: 52.38729962 | W39: 52.38729986 | X39: 52.38729986 | Y39: 52.38729962 | Z39: 52.38729894 | AA39: 52.38729718 | AB39: 52.38729331 | AC39: 52.38728551 | AD39: 52.38727205 | AE39: 52.38725406 | AF39: 52.38724226 | AG39: 52.38727931 | AH39: 52.3874791 | AI39: 52.3881135 | AJ39: 52.38979223 | AK39: 52.39371467 | AL39: 52.4022783 | AM39: 52.41959003 | AN39: 52.45304025 | AO39: 52.51349417 | AP39: 52.61967487 | AQ39: 52.79844758 | AR39: 53.0837 | AS39: 53.299 | BX39: 0.9971172725 | BY39: 17.06546425 | BZ39: 17.11641249
B40: 0.469 | C40: 53.1605 | D40: 52.84997002 | E40: 52.65480004 | F40: 52.53562003 | G40: 52.46610656 | H40: 52.42739898 | I40: 52.40651125 | J40: 52.39596041 | K40: =f*(J39+L39)+(1-2*f)*K39 -> 52.3908779 | L40: 52.38861882 | M40: 52.3876894 | N40: 52.38735806 | O40: 52.3872659 | P40: 52.38725705 | Q40: 52.38726986 | R40: 52.38728277 | S40: 52.38729141 | T40: 52.38729616 | U40: 52.38729842 | V40: 52.3872994 | W40: 52.38729974 | X40: 52.38729974 | Y40: 52.3872994 | Z40: 52.38729842 | AA40: 52.38729616 | AB40: 52.38729141 | AC40: 52.38728277 | AD40: 52.38726986 | AE40: 52.38725705 | AF40: 52.3872659 | AG40: 52.38735806 | AH40: 52.3876894 | AI40: 52.38861882 | AJ40: 52.3908779 | AK40: 52.39596041 | AL40: 52.40651125 | AM40: 52.42739898 | AN40: 52.46610656 | AO40: 52.53562003 | AP40: 52.65480004 | AQ40: 52.84997002 | AR40: 53.1605 | AS40: 53.3012 | BX40: 0.9970613756 | BY40: 18.20310425 | BZ40: 18.25747149
B41: 0.484 | C41: 53.2371 | D41: 52.90578937 | E41: 52.69156938 | F41: 52.55965223 | G41: 52.48101264 | H41: 52.43602149 | I41: 52.41151297 | J41: 52.39860638 | K41: 52.39224407 | L41: 52.3892622 | M41: 52.38797879 | N41: 52.38747379 | O41: 52.38730621 | P41: 52.38726753 | Q41: 52.38726991 | R41: 52.3872807 | S41: 52.38728953 | T41: 52.38729495 | U41: 52.3872978 | V41: 52.38729909 | W41: 52.38729958 | X41: 52.38729958 | Y41: 52.38729909 | Z41: 52.3872978 | AA41: 52.38729495 | AB41: 52.38728953 | AC41: 52.3872807 | AD41: 52.38726991 | AE41: 52.38726753 | AF41: 52.38730621 | AG41: 52.38747379 | AH41: 52.38797879 | AI41: 52.3892622 | AJ41: 52.39224407 | AK41: 52.39860638 | AL41: 52.41151297 | AM41: 52.43602149 | AN41: 52.48101264 | AO41: 52.55965223 | AP41: 52.69156938 | AQ41: 52.90578937 | AR41: 53.2371 | AS41: 53.2928 | BX41: 0.9969459441 | BY41: 19.34074125 | BZ41: 19.39852624
B42: 0.499 | C42: 53.323 | D42: 52.96244613 | E42: 52.73139333 | F42: 52.58543169 | G42: 52.49729414 | H42: 52.44593244 | I42: 52.4171268 | J42: 52.40177297 | K42: 52.39387977 | L42: 52.39008404 | M42: 52.38835544 | N42: 52.38763706 | O42: 52.38736858 | P42: 52.3872874 | Q42: 52.38727398 | R42: 52.38727975 | S42: 52.38728788 | T42: 52.38729371 | U42: 52.38729705 | V42: 52.3872987 | W42: 52.38729934 | X42: 52.38729934 | Y42: 52.3872987 | Z42: 52.38729705 | AA42: 52.38729371 | AB42: 52.38728788 | AC42: 52.38727975 | AD42: 52.38727398 | AE42: 52.3872874 | AF42: 52.38736858 | AG42: 52.38763706 | AH42: 52.38835544 | AI42: 52.39008404 | AJ42: 52.39387977 | AK42: 52.40177297 | AL42: 52.4171268 | AM42: 52.44593244 | AN42: 52.49729414 | AO42: 52.58543169 | AP42: 52.73139333 | AQ42: 52.96244613 | AR42: 53.323 | AS42: 53.2986 | BX42: 0.9970635427 | BY42: 20.47840925 | BZ42: 20.53957677
B43: 0.514 | C43: 53.4067 | D43: 53.02510794 | E43: 52.77256647 | F43: 52.61341109 | G43: 52.51508891 | H43: 52.45684666 | I43: 52.42363574 | J43: 52.40538295 | K43: 52.39586241 | L43: 52.39108426 | M43: 52.38884425 | N43: 52.38785475 | O43: 52.38745921 | P43: 52.38732019 | Q43: 52.38728327 | R43: 52.38728089 | S43: 52.38728677 | T43: 52.3872925 | U43: 52.38729623 | V43: 52.38729821 | W43: 52.38729903 | X43: 52.38729903 | Y43: 52.38729821 | Z43: 52.38729623 | AA43: 52.3872925 | AB43: 52.38728677 | AC43: 52.38728089 | AD43: 52.38728327 | AE43: 52.38732019 | AF43: 52.38745921 | AG43: 52.38785475 | AH43: 52.38884425 | AI43: 52.39108426 | AJ43: 52.39586241 | AK43: 52.40538295 | AL43: 52.42363574 | AM43: 52.45684666 | AN43: 52.51508891 | AO43: 52.61341109 | AP43: 52.77256647 | AQ43: 53.02510794 | AR43: 53.4067 | AS43: 53.2902 | BX43: 0.9970076548 | BY43: 21.61609825 | BZ43: 21.68062309
B44: 0.529 | C44: 53.4947 | D44: 53.08755178 | E44: 52.81775329 | F44: 52.64284651 | G44: 52.53448243 | H44: 52.46895859 | I44: 52.43087355 | J44: 52.40960823 | K44: 52.39815712 | L44: 52.3923124 | M44: 52.38944934 | N44: 52.38814215 | O44: 52.38758333 | P44: 52.38736959 | Q44: 52.38729998 | R44: 52.38728488 | S44: 52.3872867 | T44: 52.38729153 | U44: 52.38729539 | V44: 52.38729765 | W44: 52.38729863 | X44: 52.38729863 | Y44: 52.38729765 | Z44: 52.38729539 | AA44: 52.38729153 | AB44: 52.3872867 | AC44: 52.38728488 | AD44: 52.38729998 | AE44: 52.38736959 | AF44: 52.38758333 | AG44: 52.38814215 | AH44: 52.38944934 | AI44: 52.3923124 | AJ44: 52.39815712 | AK44: 52.40960823 | AL44: 52.43087355 | AM44: 52.46895859 | AN44: 52.53448243 | AO44: 52.64284651 | AP44: 52.81775329 | AQ44: 53.08755178 | AR44: 53.4947 | AS44: 53.2912 | BX44: 0.9971077088 | BY44: 22.75383725 | BZ44: 22.82166523
B45: 0.544 | C45: 53.5843 | D45: 53.15401133 | E45: 52.86366863 | F45: 52.67504459 | G45: 52.55521158 | H45: 52.48223543 | I45: 52.43901213 | J45: 52.41435704 | K45: 52.40086989 | L45: 52.39375514 | M45: 52.39020218 | N45: 52.38850427 | O45: 52.3877503 | P45: 52.38743933 | Q45: 52.38732636 | R45: 52.38729307 | S45: 52.38728816 | T45: 52.38729106 | U45: 52.38729462 | V45: 52.38729703 | W45: 52.38729816 | X45: 52.38729816 | Y45: 52.38729703 | Z45: 52.38729462 | AA45: 52.38729106 | AB45: 52.38728816 | AC45: 52.38729307 | AD45: 52.38732636 | AE45: 52.38743933 | AF45: 52.3877503 | AG45: 52.38850427 | AH45: 52.39020218 | AI45: 52.39375514 | AJ45: 52.40086989 | AK45: 52.41435704 | AL45: 52.43901213 | AM45: 52.48223543 | AN45: 52.55521158 | AO45: 52.67504459 | AP45: 52.86366863 | AQ45: 53.15401133 | AR45: 53.5843 | AS45: 53.2862 | BX45: 0.9971025966 | BY45: 23.89151925 | BZ45: 23.96270321
B46: 0.559 | C46: 53.6771 | D46: 53.22172712 | E46: 52.91288733 | F46: 52.70833057 | G46: 52.57788425 | H46: 52.49663197 | I46: 52.44799675 | J46: 52.41976088 | K46: 52.40395331 | L46: 52.39547859 | M46: 52.39109978 | N46: 52.38896102 | O46: 52.38796465 | P46: 52.38753514 | Q46: 52.38736492 | R46: 52.3873068 | S46: 52.38729194 | T46: 52.38729138 | U46: 52.38729406 | V46: 52.38729641 | W46: 52.38729761 | X46: 52.38729761 | Y46: 52.38729641 | Z46: 52.38729406 | AA46: 52.38729138 | AB46: 52.38729194 | AC46: 52.3873068 | AD46: 52.38736492 | AE46: 52.38753514 | AF46: =f*(AE45+AG45)+(1-2*f)*AF45 -> 52.38796465 | AG46: 52.38896102 | AH46: 52.39109978 | AI46: 52.39547859 | AJ46: 52.40395331 | AK46: 52.41976088 | AL46: 52.44799675 | AM46: 52.49663197 | AN46: 52.57788425 | AO46: 52.70833057 | AP46: 52.91288733 | AQ46: 53.22172712 | AR46: 53.6771 | AS46: 53.2857 | BX46: 0.9970150916 | BY46: 25.02913625 | BZ46: 25.10373704
B47: 0.574 | C47: 53.7751 | D47: 53.29263023 | E47: 52.96334686 | F47: 52.74419046 | G47: 52.60168782 | H47: 52.51241442 | I47: 52.4578674 | J47: 52.42577457 | K47: 52.40750146 | L47: 52.39746048 | M47: 52.39218367 | N47: 52.38951379 | O47: 52.38823893 | P47: 52.3876606 | Q47: 52.38741916 | R47: 52.38732773 | S47: 52.38729886 | T47: 52.38729295 | U47: 52.3872939 | V47: 52.38729586 | W47: 52.38729703 | X47: 52.38729703 | Y47: 52.38729586 | Z47: 52.3872939 | AA47: 52.38729295 | AB47: 52.38729886 | AC47: 52.38732773 | AD47: 52.38741916 | AE47: 52.3876606 | AF47: 52.38823893 | AG47: 52.38951379 | AH47: 52.39218367 | AI47: 52.39746048 | AJ47: 52.40750146 | AK47: 52.42577457 | AL47: 52.4578674 | AM47: 52.51241442 | AN47: 52.60168782 | AO47: 52.74419046 | AP47: 52.96334686 | AQ47: 53.29263023 | AR47: 53.7751 | AS47: 53.2833 | BX47: 0.9969958945 | BY47: 26.16680025 | BZ47: 26.24476673
B48: 0.589 | C48: 53.87 | D48: 53.36675268 | E48: 53.01663411 | F48: 52.78128099 | G48: 52.6274439 | H48: 52.52921751 | I48: 52.46873233 | J48: 52.43246153 | K48: 52.41148475 | L48: 52.39976573 | M48: 52.39344509 | N48: 52.3901888 | O48: 52.38857596 | P48: 52.38782361 | Q48: 52.38749175 | R48: 52.387358 | S48: 52.38730997 | T48: 52.38729627 | U48: 52.38729439 | V48: 52.38729548 | W48: 52.38729646 | X48: 52.38729646 | Y48: 52.38729548 | Z48: 52.38729439 | AA48: 52.38729627 | AB48: 52.38730997 | AC48: 52.387358 | AD48: 52.38749175 | AE48: 52.38782361 | AF48: 52.38857596 | AG48: 52.3901888 | AH48: 52.39344509 | AI48: 52.39976573 | AJ48: 52.41148475 | AK48: 52.43246153 | AL48: 52.46873233 | AM48: 52.52921751 | AN48: 52.6274439 | AO48: 52.78128099 | AP48: 53.01663411 | AQ48: 53.36675268 | AR48: 53.87 | AS48: 53.2776 | BX48: 0.9971047048 | BY48: 27.30451925 | BZ48: 27.38579232
B49: 0.604 | C49: 53.9711 | D49: 53.44084723 | E49: 53.07216578 | F49: 52.82072423 | G49: 52.6543523 | H49: 52.54747939 | I49: 52.48044897 | J49: 52.43986186 | K49: 52.41596431 | L49: 52.40237785 | M49: 52.39492784 | N49: 52.39098402 | O49: 52.38899233 | P49: 52.38802707 | Q49: 52.38758761 | R49: 52.38739947 | S49: 52.38732658 | T49: 52.38730199 | U49: 52.38729582 | V49: 52.38729543 | W49: 52.38729599 | X49: 52.38729599 | Y49: 52.38729543 | Z49: 52.38729582 | AA49: 52.38730199 | AB49: 52.38732658 | AC49: 52.38739947 | AD49: 52.38758761 | AE49: 52.38802707 | AF49: 52.38899233 | AG49: 52.39098402 | AH49: 52.39492784 | AI49: 52.40237785 | AJ49: 52.41596431 | AK49: 52.43986186 | AL49: 52.48044897 | AM49: 52.54747939 | AN49: 52.6543523 | AO49: 52.82072423 | AP49: 53.07216578 | AQ49: 53.44084723 | AR49: 53.9711 | AS49: 53.28 | BX49: 0.9970994754 | BY49: 28.44228225 | BZ49: 28.52681381
B50: 0.619 | C50: 54.0715 | D50: 53.5190269 | E50: 53.12889477 | F50: 52.86188695 | G50: 52.68314215 | H50: 52.56675801 | I50: 52.49324412 | J50: 52.44793745 | K50: 52.42095355 | L50: 52.4053471 | M50: 52.39662438 | N50: 52.3919286 | O50: 52.38948899 | P50: 52.38828149 | Q50: 52.38770922 | R50: 52.38745524 | S50: 52.38734995 | T50: 52.3873109 | U50: 52.38729861 | V50: 52.38729589 | W50: 52.38729571 | X50: 52.38729571 | Y50: 52.38729589 | Z50: 52.38729861 | AA50: 52.3873109 | AB50: 52.38734995 | AC50: 52.38745524 | AD50: 52.38770922 | AE50: 52.38828149 | AF50: 52.38948899 | AG50: 52.3919286 | AH50: 52.39662438 | AI50: 52.4053471 | AJ50: 52.42095355 | AK50: 52.44793745 | AL50: 52.49324412 | AM50: 52.56675801 | AN50: 52.68314215 | AO50: 52.86188695 | AP50: 53.12889477 | AQ50: 53.5190269 | AR50: 54.0715 | AS50: 53.2807 | BX50: 0.997188998 | BY50: 29.58005025 | BZ50: 29.66783123
B51: 0.634 | C51: 54.1764 | D51: 53.59757898 | E51: 53.18847105 | F51: 52.90459486 | G51: 52.71331666 | H51: 52.58750168 | I51: 52.50689278 | J51: 52.4568033 | K51: 52.42645877 | L51: 52.40867794 | M51: 52.3985729 | N51: 52.3930203 | O51: 52.39008517 | P51: 52.38858886 | Q51: 52.38786323 | R51: 52.38752719 | S51: 52.387382 | T51: 52.38732385 | U51: 52.38730324 | V51: 52.38729712 | W51: 52.3872958 | X51: 52.3872958 | Y51: 52.38729712 | Z51: 52.38730324 | AA51: 52.38732385 | AB51: 52.387382 | AC51: 52.38752719 | AD51: 52.38786323 | AE51: 52.38858886 | AF51: 52.39008517 | AG51: 52.3930203 | AH51: 52.3985729 | AI51: 52.40867794 | AJ51: 52.42645877 | AK51: 52.4568033 | AL51: 52.50689278 | AM51: 52.58750168 | AN51: 52.71331666 | AO51: 52.90459486 | AP51: 53.18847105 | AQ51: 53.59757898 | AR51: 54.1764 | AS51: 53.2814 | BX51: 0.9971153476 | BY51: 30.66087095 | BZ51: 30.75179393
B52: 0.649 | C52: 54.2878 | D52: 53.67969822 | E52: 53.24906705 | F52: 52.94940034 | G52: 52.74499241 | H52: 52.60937559 | I52: 52.52166024 | J52: 52.46635731 | K52: 52.43253798 | L52: 52.41239203 | M52: 52.40077569 | N52: 52.39428682 | O52: 52.39078137 | P52: 52.38896177 | Q52: 52.38805174 | R52: 52.38761954 | S52: 52.38742412 | T52: 52.38734202 | U52: 52.38731025 | V52: 52.38729944 | W52: 52.38729644 | X52: 52.38729644 | Y52: 52.38729944 | Z52: 52.38731025 | AA52: 52.38734202 | AB52: 52.38742412 | AC52: 52.38761954 | AD52: 52.38805174 | AE52: 52.38896177 | AF52: 52.39078137 | AG52: 52.39428682 | AH52: 52.40077569 | AI52: 52.41239203 | AJ52: 52.43253798 | AK52: 52.46635731 | AL52: 52.52166024 | AM52: 52.60937559 | AN52: 52.74499241 | AO52: 52.94940034 | AP52: 53.24906705 | AQ52: 53.67969822 | AR52: 54.2878 | AS52: 53.2821 | BX52: 0.9970874077 | BY52: 31.79853195 | BZ52: 31.89280327
B53: 0.664 | C53: 54.3951 | D53: 53.7655711 | E53: 53.31243695 | F53: 52.9954933 | G53: 52.77827843 | H53: 52.63255372 | I53: 52.53734367 | J53: 52.4767526 | K53: 52.43915413 | L53: 52.41651926 | M53: 52.40325672 | N53: =f*(M52+O52)+(1-2*f)*N52 -> 52.39573041 | O53: 52.3915971 | P53: 52.38940189 | Q53: 52.38828295 | R53: 52.38773411 | S53: 52.38747895 | T53: 52.38736637 | U53: 52.38732039 | V53: 52.38730322 | W53: 52.38729789 | X53: 52.38729789 | Y53: 52.38730322 | Z53: 52.38732039 | AA53: 52.38736637 | AB53: 52.38747895 | AC53: 52.38773411 | AD53: 52.38828295 | AE53: 52.38940189 | AF53: 52.3915971 | AG53: 52.39573041 | AH53: 52.40325672 | AI53: 52.41651926 | AJ53: 52.43915413 | AK53: 52.4767526 | AL53: 52.53734367 | AM53: 52.63255372 | AN53: 52.77827843 | AO53: 52.9954933 | AP53: 53.31243695 | AQ53: 53.7655711 | AR53: 54.3951 | AS53: 53.2817 | BX53: 0.9970435071 | BY53: 32.87932415 | BZ53: 32.97675833
B54: 0.679 | C54: 54.5045 | D54: 53.8509234 | E54: 53.37833558 | F54: 53.04374916 | G54: 52.81287044 | H54: 52.6569963 | I54: 52.55409479 | J54: 52.48787805 | K54: 52.44639458 | L54: 52.42105426 | M54: 52.40603232 | N54: 52.39737219 | O54: 52.39253489 | P54: 52.38992267 | Q54: 52.3885588 | R54: 52.38787621 | S54: 52.38754794 | T54: 52.3873986 | U54: 52.38733433 | V54: 52.38730895 | W54: 52.38730047 | X54: 52.38730047 | Y54: 52.38730895 | Z54: 52.38733433 | AA54: 52.3873986 | AB54: 52.38754794 | AC54: 52.38787621 | AD54: 52.3885588 | AE54: 52.38992267 | AF54: 52.39253489 | AG54: 52.39737219 | AH54: 52.40603232 | AI54: 52.42105426 | AJ54: 52.44639458 | AK54: 52.48787805 | AL54: 52.55409479 | AM54: 52.6569963 | AN54: 52.81287044 | AO54: 53.04374916 | AP54: 53.37833558 | AQ54: 53.8509234 | AR54: 54.5045 | AS54: 53.284 | BX54: 0.9971207106 | BY54: 34.01705315 | BZ54: 34.11775967
B55: 0.694 | C55: 54.6157 | D55: 53.93849861 | E55: 53.44511045 | F55: 53.09393031 | G55: 52.84916298 | H55: 52.68262822 | I55: 52.57184548 | J55: 52.49984576 | K55: 52.45420578 | L55: 52.42604702 | M55: 52.40911061 | N55: 52.39922194 | O55: 52.39361154 | P55: 52.39052671 | Q55: 52.38888845 | R55: 52.38804766 | S55: 52.38763452 | T55: 52.38743976 | U55: 52.38735315 | V55: 52.38731713 | W55: 52.38730457 | X55: 52.38730457 | Y55: 52.38731713 | Z55: 52.38735315 | AA55: 52.38743976 | AB55: 52.38763452 | AC55: 52.38804766 | AD55: 52.38888845 | AE55: 52.39052671 | AF55: 52.39361154 | AG55: 52.39922194 | AH55: 52.40911061 | AI55: 52.42604702 | AJ55: 52.45420578 | AK55: 52.49984576 | AL55: 52.57184548 | AM55: 52.68262822 | AN55: 52.84916298 | AO55: 53.09393031 | AP55: 53.44511045 | AQ55: 53.93849861 | AR55: 54.6157 | AS55: 53.2826 | BX55: 0.9971433885 | BY55: 35.0979109 | BZ55: 35.20170716
B56: 0.709 | C56: 54.7259 | D56: 54.0274405 | E56: 53.51392078 | F56: 53.14542038 | G56: 52.88701745 | H56: 52.709605 | I56: 52.59061146 | J56: 52.51260048 | K56: 52.46266444 | L56: 52.43147719 | M56: 52.41252081 | N56: 52.40129207 | O56: 52.39483359 | P56: 52.39122666 | Q56: 52.38927432 | R56: 52.38825459 | S56: 52.38774019 | T56: 52.38749209 | U56: 52.38737763 | V56: 52.38732848 | W56: 52.38731065 | X56: 52.38731065 | Y56: 52.38732848 | Z56: 52.38737763 | AA56: 52.38749209 | AB56: 52.38774019 | AC56: 52.38825459 | AD56: 52.38927432 | AE56: 52.39122666 | AF56: 52.39483359 | AG56: 52.40129207 | AH56: 52.41252081 | AI56: 52.43147719 | AJ56: 52.46266444 | AK56: 52.51260048 | AL56: 52.59061146 | AM56: 52.709605 | AN56: 52.88701745 | AO56: 53.14542038 | AP56: 53.51392078 | AQ56: 54.0274405 | AR56: 54.7259 | AS56: 53.2864 | BX56: 0.9971557003 | BY56: 36.2356609 | BZ56: 36.34270056
B57: 0.724 | C57: 54.8409 | D57: 54.11692749 | E57: 53.58409142 | F57: 53.19869335 | G57: 52.92620639 | H57: 52.73787221 | I57: 52.61044173 | J57: 52.52618513 | K57: 52.47173643 | L57: 52.43739535 | M57: 52.41625999 | N57: 52.40360026 | O57: 52.39621337 | P57: 52.39202727 | Q57: 52.38972558 | R57: 52.3884991 | S57: 52.38786904 | T57: 52.38755675 | U57: 52.38740923 | V57: 52.38734363 | W57: 52.38731928 | X57: 52.38731928 | Y57: 52.38734363 | Z57: 52.38740923 | AA57: 52.38755675 | AB57: 52.38786904 | AC57: 52.3884991 | AD57: 52.38972558 | AE57: 52.39202727 | AF57: 52.39621337 | AG57: 52.40360026 | AH57: 52.41625999 | AI57: 52.43739535 | AJ57: 52.47173643 | AK57: 52.52618513 | AL57: 52.61044173 | AM57: 52.73787221 | AN57: 52.92620639 | AO57: 53.19869335 | AP57: 53.58409142 | AQ57: 54.11692749 | AR57: 54.8409 | AS57: 53.2824 | BX57: 0.9971590826 | BY57: 37.31649585 | BZ57: 37.42664054
B58: 0.739 | C58: 54.9534 | D58: 54.20941286 | E58: 53.65543239 | F58: 53.25332776 | G58: 52.96692548 | H58: 52.76734174 | I58: 52.63133232 | J58: 52.54060831 | K58: 52.48146592 | L58: 52.44378522 | M58: 52.4203611 | N58: 52.40615164 | O58: 52.39776214 | P58: 52.39293908 | Q58: 52.39024584 | R58: 52.38878769 | S58: 52.3880228 | T58: 52.38763648 | U58: 52.38744887 | V58: 52.38736359 | W58: 52.38733106 | X58: 52.38733106 | Y58: 52.38736359 | Z58: 52.38744887 | AA58: 52.38763648 | AB58: 52.3880228 | AC58: 52.38878769 | AD58: 52.39024584 | AE58: 52.39293908 | AF58: 52.39776214 | AG58: 52.40615164 | AH58: 52.4203611 | AI58: 52.44378522 | AJ58: 52.48146592 | AK58: 52.54060831 | AL58: 52.63133232 | AM58: 52.76734174 | AN58: 52.96692548 | AO58: 53.25332776 | AP58: 53.65543239 | AQ58: 54.20941286 | AR58: 54.9534 | AS58: 53.2855 | BX58: 0.9971117622 | BY58: 38.45419085 | BZ58: 38.56762605
B59: 0.754 | C59: 55.0719 | D59: 54.30135157 | E59: 53.7289207 | F59: 53.30931277 | G59: 53.00893445 | H59: 52.79810351 | I59: 52.65324462 | J59: 52.55588974 | K59: 52.49185061 | L59: 52.45068357 | M59: 52.4248198 | N59: 52.40896775 | O59: 52.39948784 | P59: 52.39396964 | Q59: 52.39084347 | R59: 52.38912314 | S59: 52.38820598 | T59: 52.38773263 | U59: 52.38749838 | V59: 52.38738912 | W59: 52.3873468 | X59: 52.3873468 | Y59: 52.38738912 | Z59: 52.38749838 | AA59: 52.38773263 | AB59: 52.38820598 | AC59: 52.38912314 | AD59: 52.39084347 | AE59: 52.39396964 | AF59: 52.39948784 | AG59: 52.40896775 | AH59: 52.4248198 | AI59: =f*(AH58+AJ58)+(1-2*f)*AI58 -> 52.45068357 | AJ59: 52.49185061 | AK59: 52.55588974 | AL59: 52.65324462 | AM59: 52.79810351 | AN59: 53.00893445 | AO59: 53.30931277 | AP59: 53.7289207 | AQ59: 54.30135157 | AR59: 55.0719 | AS59: 53.284 | BX59: 0.9971204009 | BY59: 39.53503815 | BZ59: 39.65155855
B60: 0.769 | C60: 55.1913 | D60: 54.39721491 | E60: 53.80286728 | F60: 53.36700452 | G60: 53.05226382 | H60: 52.83002547 | I60: 52.67623043 | J60: 52.57201026 | K60: 52.50291775 | L60: 52.45808838 | M60: 52.42966418 | N60: 52.41205104 | O60: 52.4014048 | P60: 52.39512707 | Q60: 52.39152372 | R60: 52.38951177 | S60: 52.38842073 | T60: 52.38784833 | U60: 52.38755886 | V60: 52.38742151 | W60: 52.38736728 | X60: 52.38736728 | Y60: 52.38742151 | Z60: 52.38755886 | AA60: 52.38784833 | AB60: 52.38842073 | AC60: 52.38951177 | AD60: 52.39152372 | AE60: 52.39512707 | AF60: 52.4014048 | AG60: 52.41205104 | AH60: 52.42966418 | AI60: 52.45808838 | AJ60: 52.50291775 | AK60: 52.57201026 | AL60: 52.67623043 | AM60: 52.83002547 | AN60: 53.05226382 | AO60: 53.36700452 | AP60: 53.80286728 | AQ60: 54.39721491 | AR60: 55.1913 | AS60: 53.2919 | BX60: 0.9971869876 | BY60: 40.67279015 | BZ60: 40.79253621
B61: 0.784 | C61: 55.317 | D61: 54.49386207 | E61: 53.8795535 | F61: 53.42561197 | G61: 53.09702302 | H61: 52.8631432 | I61: 52.70021827 | J61: 52.58900751 | K61: 52.51465798 | L61: 52.46602637 | M61: 52.43489534 | N61: 52.41542212 | O61: 52.4035186 | P61: 52.39642112 | Q61: 52.39229375 | R61: 52.38995737 | S61: 52.38867168 | T61: 52.38798523 | U61: 52.38763247 | V61: 52.38746173 | W61: 52.38739352 | X61: 52.38739352 | Y61: 52.38746173 | Z61: 52.38763247 | AA61: 52.38798523 | AB61: 52.38867168 | AC61: 52.38995737 | AD61: 52.39229375 | AE61: 52.39642112 | AF61: 52.4035186 | AG61: 52.41542212 | AH61: 52.43489534 | AI61: 52.46602637 | AJ61: 52.51465798 | AK61: 52.58900751 | AL61: 52.70021827 | AM61: 52.8631432 | AN61: 53.09702302 | AO61: 53.42561197 | AP61: 53.8795535 | AQ61: 54.49386207 | AR61: 55.317 | AS61: 53.2978 | BX61: 0.997158817 | BY61: 41.81049015 | BZ61: 41.93350995
B62: 0.799 | C62: 55.4361 | D62: 54.59490854 | E62: 53.95715045 | F62: 53.48626645 | G62: 53.14285002 | H62: 52.89747621 | I62: 52.72524126 | J62: 52.60684359 | K62: 52.52710213 | L62: 52.47449439 | M62: 52.44053621 | N62: 52.41908488 | O62: 52.4058441 | P62: 52.39785827 | Q62: 52.39316036 | R62: 52.39046577 | S62: 52.38896164 | T62: 52.38814669 | U62: 52.38772054 | V62: 52.38751134 | W62: 52.38742652 | X62: 52.38742652 | Y62: 52.38751134 | Z62: 52.38772054 | AA62: 52.38814669 | AB62: 52.38896164 | AC62: 52.39046577 | AD62: 52.39316036 | AE62: 52.39785827 | AF62: 52.4058441 | AG62: 52.41908488 | AH62: 52.44053621 | AI62: 52.47449439 | AJ62: 52.52710213 | AK62: 52.60684359 | AL62: 52.72524126 | AM62: 52.89747621 | AN62: 53.14285002 | AO62: 53.48626645 | AP62: 53.95715045 | AQ62: 54.59490854 | AR62: 55.4361 | AS62: 53.3 | BX62: 0.9971026716 | BY62: 42.94813015 | BZ62: 43.07447979
B63: 0.814 | C63: 55.5644 | D63: 54.69334404 | E63: 54.03789597 | F63: 53.54794431 | G63: 53.19029 | H63: 52.93286598 | I63: 52.75129156 | J63: 52.62554821 | K63: 52.54023135 | L63: 52.48351837 | M63: 52.44658791 | N63: 52.42305773 | O63: 52.40838682 | P63: 52.3994492 | Q63: 52.39412971 | R63: 52.3910418 | S63: 52.38929512 | T63: 52.38833482 | U63: 52.38782552 | V63: 52.38757153 | W63: 52.38746756 | X63: 52.38746756 | Y63: 52.38757153 | Z63: 52.38782552 | AA63: 52.38833482 | AB63: 52.38929512 | AC63: 52.3910418 | AD63: 52.39412971 | AE63: 52.3994492 | AF63: 52.40838682 | AG63: 52.42305773 | AH63: 52.44658791 | AI63: 52.48351837 | AJ63: 52.54023135 | AK63: 52.62554821 | AL63: 52.75129156 | AM63: 52.93286598 | AN63: 53.19029 | AO63: 53.54794431 | AP63: 54.03789597 | AQ63: 54.69334404 | AR63: 55.5644 | AS63: 53.3062 | BX63: 0.9970604846 | BY63: 44.02883875 | BZ63: 44.15839742
B64: 0.829 | C64: 55.6943 | D64: 54.79767044 | E64: 54.11797488 | F64: 53.61195916 | G64: 53.23878853 | H64: 52.9695674 | I64: 52.77830659 | J64: 52.64510941 | K64: 52.55407194 | L64: 52.49309056 | M64: 52.45307192 | N64: 52.42734447 | O64: 52.41116099 | P64: 52.40119991 | Q64: 52.39520951 | R64: 52.39169078 | S64: 52.38967562 | T64: 52.38855304 | U64: 52.38794905 | V64: 52.38764412 | W64: 52.38751787 | X64: 52.38751787 | Y64: 52.38764412 | Z64: 52.38794905 | AA64: 52.38855304 | AB64: 52.38967562 | AC64: 52.39169078 | AD64: 52.39520951 | AE64: 52.40119991 | AF64: 52.41116099 | AG64: 52.42734447 | AH64: 52.45307192 | AI64: 52.49309056 | AJ64: 52.55407194 | AK64: 52.64510941 | AL64: 52.77830659 | AM64: 52.9695674 | AN64: 53.23878853 | AO64: 53.61195916 | AP64: 54.11797488 | AQ64: 54.79767044 | AR64: 55.6943 | AS64: 53.3155 | BX64: 0.997018338 | BY64: 45.16647375 | BZ64: 45.29935944
B65: 0.844 | C65: 55.8247 | D65: 54.9026385 | E65: 54.20201351 | F65: 53.67623904 | G65: 53.28908667 | H65: 53.00729014 | I65: 52.80640189 | J65: 52.66550927 | K65: 52.56861521 | L65: 52.50323382 | M65: 52.45998701 | N65: 52.43196252 | O65: 52.41417183 | P65: 52.40312121 | Q65: 52.39640548 | R65: 52.39241831 | S65: 52.39010751 | T65: 52.38880397 | U65: 52.38809376 | V65: 52.38773058 | W65: 52.38757896 | X65: 52.38757896 | Y65: 52.38773058 | Z65: 52.38809376 | AA65: 52.38880397 | AB65: 52.39010751 | AC65: 52.39241831 | AD65: 52.39640548 | AE65: 52.40312121 | AF65: 52.41417183 | AG65: 52.43196252 | AH65: 52.45998701 | AI65: 52.50323382 | AJ65: 52.56861521 | AK65: 52.66550927 | AL65: 52.80640189 | AM65: 53.00729014 | AN65: 53.28908667 | AO65: 53.67623904 | AP65: 54.20201351 | AQ65: 54.9026385 | AR65: 55.8247 | AS65: 53.3166 | BX65: 0.997149701 | BY65: 46.3610808 | BZ65: 46.49736548
B66: 0.859 | C66: 55.9599 | D66: 55.0097852 | E66: 54.2866186 | F66: 53.74331425 | G66: 53.3400653 | H66: 53.04643931 | I66: 52.83543203 | J66: 52.6867989 | K66: 52.58386328 | L66: 52.5139441 | M66: 52.46735265 | N66: 52.43691436 | O66: 52.41743315 | P66: 52.40521874 | Q66: =f*(P65+R65)+(1-2*f)*Q65 -> 52.39772575 | R66: 52.39322946 | S66: 52.3905949 | T66: 52.38909107 | U66: 52.38826168 | V66: 52.38783295 | W66: 52.38765232 | X66: 52.38765232 | Y66: 52.38783295 | Z66: 52.38826168 | AA66: 52.38909107 | AB66: 52.3905949 | AC66: 52.39322946 | AD66: 52.39772575 | AE66: 52.40521874 | AF66: 52.41743315 | AG66: 52.43691436 | AH66: 52.46735265 | AI66: 52.5139441 | AJ66: 52.58386328 | AK66: 52.6867989 | AL66: 52.83543203 | AM66: 53.04643931 | AN66: 53.3400653 | AO66: 53.74331425 | AP66: 54.2866186 | AQ66: 55.0097852 | AR66: 55.9599 | AS66: 53.3226 | BX66: 0.997175895 | BY66: 47.4987888 | BZ66: 47.63831971
B67: 0.874 | C67: 56.0931 | D67: 55.11959885 | E67: 54.37364872 | F67: 53.81108299 | G67: 53.39310867 | H67: 53.08641611 | I67: 52.86561307 | J67: 52.7089106 | K67: 52.59983898 | L67: 52.52523171 | M67: 52.4751687 | N67: 52.44221617 | O67: 52.42094934 | P67: 52.4075033 | Q67: 52.39917576 | R67: 52.3941303 | S67: 52.39114202 | T67: 52.38941741 | U67: 52.38845554 | V67: 52.387953 | W67: 52.38773972 | X67: 52.38773972 | Y67: 52.387953 | Z67: 52.38845554 | AA67: 52.38941741 | AB67: 52.39114202 | AC67: 52.3941303 | AD67: 52.39917576 | AE67: 52.4075033 | AF67: 52.42094934 | AG67: 52.44221617 | AH67: 52.4751687 | AI67: 52.52523171 | AJ67: 52.59983898 | AK67: 52.7089106 | AL67: 52.86561307 | AM67: 53.08641611 | AN67: 53.39310867 | AO67: 53.81108299 | AP67: 54.37364872 | AQ67: 55.11959885 | AR67: 56.0931 | AS67: 53.3309 | BX67: 0.9971337261 | BY67: 48.6364598 | BZ67: 48.77927005
B68: 0.889 | C68: 56.2303 | D68: 55.22970418 | E68: 54.46238311 | F68: 53.88104658 | G68: 53.44695468 | H68: 53.12797555 | I68: 52.89662947 | J68: 52.73195778 | K68: 52.61651528 | L68: 52.53710796 | M68: 52.48344797 | N68: 52.44787054 | O68: 52.42473359 | P68: 52.40998 | Q68: 52.40076386 | R68: 52.39512571 | S68: 52.39175347 | T68: 52.38978648 | U68: 52.3886778 | V68: 52.38809297 | W68: 52.38784292 | X68: 52.38784292 | Y68: 52.38809297 | Z68: 52.3886778 | AA68: 52.38978648 | AB68: 52.39175347 | AC68: 52.39512571 | AD68: 52.40076386 | AE68: 52.40998 | AF68: 52.42473359 | AG68: 52.44787054 | AH68: 52.48344797 | AI68: 52.53710796 | AJ68: 52.61651528 | AK68: 52.73195778 | AL68: 52.89662947 | AM68: 53.12797555 | AN68: 53.44695468 | AO68: 53.88104658 | AP68: 54.46238311 | AQ68: 55.22970418 | AR68: 56.2303 | AS68: 53.3328 | BX68: 0.9971178283 | BY68: 49.7741358 | BZ68: 49.92021651
B69: 0.904 | C69: 56.3694 | D69: 55.34257906 | E69: 54.55237563 | F69: 53.95229398 | G69: 53.50265441 | H69: 53.17037864 | I69: 52.92889128 | J69: 52.75577836 | K69: 52.63395166 | L69: 52.54956634 | M69: 52.4921976 | N69: 52.45389013 | O69: 52.42879005 | P69: 52.41265941 | Q69: 52.40249514 | R69: 52.39622212 | S69: 52.39243343 | T69: 52.39020179 | U69: 52.38893128 | V69: 52.38825496 | W69: 52.38796391 | X69: 52.38796391 | Y69: 52.38825496 | Z69: 52.38893128 | AA69: 52.39020179 | AB69: 52.39243343 | AC69: 52.39622212 | AD69: 52.40249514 | AE69: 52.41265941 | AF69: 52.42879005 | AG69: 52.45389013 | AH69: 52.4921976 | AI69: 52.54956634 | AJ69: 52.63395166 | AK69: 52.75577836 | AL69: 52.92889128 | AM69: 53.17037864 | AN69: 53.50265441 | AO69: 53.95229398 | AP69: 54.55237563 | AQ69: 55.34257906 | AR69: 56.3694 | AS69: 53.3374 | BX69: 0.9971492851 | BY69: 50.85495555 | BZ69: 51.00411196
B70: 0.919 | C70: 56.5125 | D70: 55.4570714 | E70: 54.64437004 | F70: 54.02508853 | G70: 53.55944335 | H70: 53.21430851 | I70: 52.96197568 | J70: 52.78059427 | K70: 52.65206846 | L70: 52.56263888 | M70: 52.50142079 | N70: 52.4602808 | O70: 52.4331301 | P70: 52.41554637 | Q70: 52.404378 | R70: 52.39742422 | S70: 52.39318684 | T70: 52.39066685 | U70: 52.38921879 | V70: 52.38844138 | W70: 52.38810474 | X70: 52.38810474 | Y70: 52.38844138 | Z70: 52.38921879 | AA70: 52.39066685 | AB70: 52.39318684 | AC70: 52.39742422 | AD70: 52.404378 | AE70: 52.41554637 | AF70: 52.4331301 | AG70: 52.4602808 | AH70: 52.50142079 | AI70: 52.56263888 | AJ70: 52.65206846 | AK70: 52.78059427 | AL70: 52.96197568 | AM70: 53.21430851 | AN70: 53.55944335 | AO70: 54.02508853 | AP70: 54.64437004 | AQ70: 55.4570714 | AR70: 56.5125 | AS70: 53.349 | BX70: 0.9971754527 | BY70: 51.99274155 | BZ70: 52.14505065
B71: 0.934 | C71: 56.6613 | D71: 55.57452006 | E71: 54.73796029 | F71: 54.09942869 | G71: 53.61775481 | H71: 53.25921271 | I71: 52.99630701 | J71: 52.80616956 | K71: 52.67098599 | L71: 52.5762896 | M71: 52.511136 | N71: 52.46704981 | O71: 52.43775928 | P71: 52.41865058 | Q71: 52.40641732 | R71: 52.39873861 | S71: 52.39401784 | T71: 52.39118553 | U71: 52.3895433 | V71: 52.38865466 | W71: 52.38826763 | X71: 52.38826763 | Y71: 52.38865466 | Z71: 52.3895433 | AA71: 52.39118553 | AB71: 52.39401784 | AC71: 52.39873861 | AD71: 52.40641732 | AE71: 52.41865058 | AF71: 52.43775928 | AG71: 52.46704981 | AH71: 52.511136 | AI71: 52.5762896 | AJ71: 52.67098599 | AK71: 52.80616956 | AL71: 52.99630701 | AM71: 53.25921271 | AN71: 53.61775481 | AO71: 54.09942869 | AP71: 54.73796029 | AQ71: 55.57452006 | AR71: 56.6613 | AS71: 53.3555 | BX71: 0.9972980612 | BY71: 53.13054855 | BZ71: 53.28598546
B72: 0.949 | C72: 56.8086 | D72: 55.69559434 | E72: 54.83378037 | F72: 54.17532759 | G72: 53.6773347 | H72: 53.30548839 | I72: 53.03151745 | J72: 52.83276015 | K72: 52.69057656 | L72: 52.5905845 | M72: 52.52132991 | N72: 52.474209 | O72: 52.44268597 | P72: 52.4219774 | Q72: 52.40862113 | R72: 52.40016987 | S72: 52.39493161 | T72: 52.39176137 | U72: 52.38990794 | V72: 52.38889737 | W72: 52.3884549 | X72: 52.3884549 | Y72: 52.38889737 | Z72: 52.38990794 | AA72: 52.39176137 | AB72: 52.39493161 | AC72: 52.40016987 | AD72: 52.40862113 | AE72: 52.4219774 | AF72: 52.44268597 | AG72: 52.474209 | AH72: 52.52132991 | AI72: 52.5905845 | AJ72: 52.69057656 | AK72: 52.83276015 | AL72: =f*(AK71+AM71)+(1-2*f)*AL71 -> 53.03151745 | AM72: 53.30548839 | AN72: 53.6773347 | AO72: 54.17532759 | AP72: 54.83378037 | AQ72: 55.69559434 | AR72: 56.8086 | AS72: 53.3674 | BX72: 0.9972190436 | BY72: 54.21138825 | BZ72: 54.36986986
B73: 0.964 | C73: 56.9571 | D73: 55.81713871 | E73: 54.93218094 | F73: 54.25296947 | G73: 53.73837337 | H73: 53.35284744 | I73: 53.06791115 | J73: 52.86013453 | K73: 52.71099181 | L73: 52.60545747 | M73: 52.53203975 | N73: 52.48175636 | O73: 52.44791877 | P73: 52.42553497 | Q73: 52.41099452 | R73: 52.40172455 | S73: 52.39593226 | T73: 52.39239853 | U73: 52.39031578 | V73: 52.38917226 | W73: 52.388669 | X73: 52.388669 | Y73: 52.38917226 | Z73: 52.39031578 | AA73: 52.39239853 | AB73: 52.39593226 | AC73: 52.40172455 | AD73: 52.41099452 | AE73: 52.42553497 | AF73: 52.44791877 | AG73: 52.48175636 | AH73: 52.53203975 | AI73: 52.60545747 | AJ73: 52.71099181 | AK73: 52.86013453 | AL73: 53.06791115 | AM73: 53.35284744 | AN73: 53.73837337 | AO73: 54.25296947 | AP73: 54.93218094 | AQ73: 55.81713871 | AR73: 56.9571 | AS73: 53.376 | BX73: 0.997162833 | BY73: 55.34905425 | BZ73: 55.51079694
B74: 0.979 | C74: 57.0965 | D74: 55.94052751 | E74: 55.0317356 | F74: 54.33262207 | G74: 53.80082668 | H74: 53.40151984 | I74: 53.10524647 | J74: 52.88850577 | K74: 52.73209264 | L74: 52.62099777 | M74: 52.54323378 | N74: 52.48971401 | O74: 52.45346093 | P74: 52.42933014 | Q74: 52.41354475 | R74: 52.4034073 | S74: 52.39702511 | T74: 52.39310062 | U74: 52.39077025 | V74: 52.38948206 | W74: 52.38891251 | X74: 52.38891251 | Y74: 52.38948206 | Z74: 52.39077025 | AA74: 52.39310062 | AB74: 52.39702511 | AC74: 52.4034073 | AD74: 52.41354475 | AE74: 52.42933014 | AF74: 52.45346093 | AG74: 52.48971401 | AH74: 52.54323378 | AI74: 52.62099777 | AJ74: 52.73209264 | AK74: 52.88850577 | AL74: 53.10524647 | AM74: 53.40151984 | AN74: 53.80082668 | AO74: 54.33262207 | AP74: 55.0317356 | AQ74: 55.94052751 | AR74: 57.0965 | AS74: 53.3893 | BX74: 0.9971206173 | BY74: 56.48673325 | BZ74: 56.65172017
B75: 0.994 | C75: 57.2419 | D75: 56.06013102 | E75: 55.13319288 | F75: 54.41358246 | G75: 53.86493404 | H75: 53.45137475 | I75: 53.14373002 | J75: 52.91769653 | K75: 52.75402083 | L75: 52.63712562 | M75: 52.55496486 | N75: 52.49806886 | O75: 52.45932655 | P75: 52.43336824 | Q75: 52.41627763 | R75: 52.40522436 | S75: 52.39821432 | T75: 52.39387197 | U75: 52.39127453 | V75: 52.38982979 | W75: 52.3891881 | X75: 52.3891881 | Y75: 52.38982979 | Z75: 52.39127453 | AA75: 52.39387197 | AB75: 52.39821432 | AC75: 52.40522436 | AD75: 52.41627763 | AE75: 52.43336824 | AF75: 52.45932655 | AG75: 52.49806886 | AH75: 52.55496486 | AI75: 52.63712562 | AJ75: 52.75402083 | AK75: 52.91769653 | AL75: 53.14373002 | AM75: 53.45137475 | AN75: 53.86493404 | AO75: 54.41358246 | AP75: 55.13319288 | AQ75: 56.06013102 | AR75: 57.2419 | AS75: 53.3967 | BX75: 0.9971923614 | BY75: 57.56758055 | BZ75: 57.73559357
B76: 1.009 | C76: 57.3766 | D76: 56.18343627 | E76: 55.23351274 | F76: 54.49630601 | G76: 53.93029975 | H76: 53.50262373 | I76: 53.18321933 | J76: 52.94786966 | K76: 52.77665655 | L76: 52.65393261 | M76: 52.56718974 | N76: 52.5068529 | O76: 52.46551235 | P76: 52.43765906 | Q76: 52.41919892 | R76: 52.40718076 | S76: 52.39950514 | T76: 52.39471628 | U76: 52.39183229 | V76: 52.39021836 | W76: 52.38949859 | X76: 52.38949859 | Y76: 52.39021836 | Z76: 52.39183229 | AA76: 52.39471628 | AB76: 52.39950514 | AC76: 52.40718076 | AD76: 52.41919892 | AE76: 52.43765906 | AF76: 52.46551235 | AG76: 52.5068529 | AH76: 52.56718974 | AI76: 52.65393261 | AJ76: 52.77665655 | AK76: 52.94786966 | AL76: 53.18321933 | AM76: 53.50262373 | AN76: 53.93029975 | AO76: 54.49630601 | AP76: 55.23351274 | AQ76: 56.18343627 | AR76: 57.3766 | AS76: 53.407 | BX76: 0.9972237742 | BY76: 58.70536155 | BZ76: 58.87650909
B77: 1.024 | C77: 57.5127 | D77: 56.30113314 | E77: 55.33644022 | F77: 54.57914495 | G77: 53.99723374 | H77: 53.55501322 | I77: 53.22389097 | J77: 52.97890348 | K77: 52.80011905 | L77: 52.67134281 | M77: 52.57996685 | N77: 52.51604466 | O77: 52.47203845 | P77: 52.44220414 | Q77: 52.42231601 | R77: 52.40928199 | S77: 52.40090196 | T77: 52.39563799 | U77: 52.39244684 | V77: 52.39065102 | W77: 52.38984687 | X77: 52.38984687 | Y77: 52.39065102 | Z77: 52.39244684 | AA77: 52.39563799 | AB77: 52.40090196 | AC77: 52.40928199 | AD77: 52.42231601 | AE77: 52.44220414 | AF77: 52.47203845 | AG77: 52.51604466 | AH77: 52.57996685 | AI77: 52.67134281 | AJ77: 52.80011905 | AK77: 52.97890348 | AL77: 53.22389097 | AM77: 53.55501322 | AN77: 53.99723374 | AO77: 54.57914495 | AP77: 55.33644022 | AQ77: 56.30113314 | AR77: 57.5127 | AS77: 53.4156 | BX77: 0.9972814801 | BY77: 59.78623355 | BZ77: 59.96037518
B78: 1.039 | C78: 57.6407 | D78: =f*(C77+E77)+(1-2*f)*D77 -> 56.42058827 | E78: 55.43679392 | F78: 54.6640082 | G78: 54.06482601 | H78: 53.60877045 | I78: 53.26556908 | J78: 53.01093722 | K78: 52.82431656 | L78: 52.68943972 | M78: 52.59325093 | N78: 52.52568142 | O78: 52.47889582 | P78: 52.44701681 | Q78: 52.42563251 | R78: 52.41153392 | S78: 52.40240973 | T78: 52.39664097 | U78: 52.393122 | V78: 52.39113086 | W78: 52.39023597 | X78: 52.39023597 | Y78: 52.39113086 | Z78: 52.393122 | AA78: 52.39664097 | AB78: 52.40240973 | AC78: 52.41153392 | AD78: 52.42563251 | AE78: 52.44701681 | AF78: 52.47889582 | AG78: 52.52568142 | AH78: 52.59325093 | AI78: 52.68943972 | AJ78: 52.82431656 | AK78: 53.01093722 | AL78: 53.26556908 | AM78: 53.60877045 | AN78: 54.06482601 | AO78: 54.6640082 | AP78: 55.43679392 | AQ78: 56.42058827 | AR78: 57.6407 | AS78: 53.427 | BX78: 0.9971936933 | BY78: 60.92392055 | BZ78: 61.10128301
B79: 1.054 | C79: 57.765 | D79: 56.53493539 | E79: 55.53889487 | F79: 54.74800991 | G79: 54.13408083 | H79: 53.66337732 | I79: 53.30842529 | J79: 53.04384586 | K79: 52.84935389 | L79: 52.70815974 | M79: 52.60709897 | N79: 52.53573815 | O79: 52.48610869 | P79: 52.4520949 | Q79: 52.42915785 | R79: 52.41394089 | S79: 52.40403332 | T79: =f*(S78+U78)+(1-2*f)*T78 -> 52.39772958 | U79: 52.39386127 | V79: 52.3916613 | W79: 52.39066898 | X79: 52.39066898 | Y79: 52.3916613 | Z79: 52.39386127 | AA79: 52.39772958 | AB79: 52.40403332 | AC79: 52.41394089 | AD79: 52.42915785 | AE79: 52.4520949 | AF79: 52.48610869 | AG79: 52.53573815 | AH79: 52.60709897 | AI79: 52.70815974 | AJ79: 52.84935389 | AK79: 53.04384586 | AL79: 53.30842529 | AM79: 53.66337732 | AN79: 54.13408083 | AO79: 54.74800991 | AP79: 55.53889487 | AQ79: 56.53493539 | AR79: 57.765 | AS79: 53.4363 | BX79: 0.9971602248 | BY79: 62.06161755 | BZ79: 62.24218699
B80: 1.069 | C80: 57.8876 | D80: 56.64817285 | E80: 55.63816369 | F80: 54.83363373 | G80: 54.20338352 | H80: 53.7193861 | I80: 53.35215397 | J80: 53.07775915 | K80: 52.87514316 | L80: 52.72757912 | M80: 52.62146991 | N80: 52.54625332 | O80: 52.49366466 | P80: 52.45745461 | Q80: 52.43289338 | R80: 52.41650995 | S80: 52.40577711 | T80: 52.39890802 | U80: 52.39466853 | V80: 52.39224565 | W80: 52.39114914 | X80: 52.39114914 | Y80: 52.39224565 | Z80: 52.39466853 | AA80: 52.39890802 | AB80: 52.40577711 | AC80: 52.41650995 | AD80: 52.43289338 | AE80: 52.45745461 | AF80: 52.49366466 | AG80: 52.54625332 | AH80: 52.62146991 | AI80: 52.72757912 | AJ80: 52.87514316 | AK80: 53.07775915 | AL80: 53.35215397 | AM80: 53.7193861 | AN80: 54.20338352 | AO80: 54.83363373 | AP80: 55.63816369 | AQ80: 56.64817285 | AR80: 57.8876 | AS80: 53.4521 | BX80: 0.9972179456 | BY80: 63.19936155 | BZ80: 63.38308714
B81: 1.084 | C81: 58.0064 | D81: 56.75918155 | E81: 55.73758911 | F81: 54.91796264 | G81: 54.274151 | H81: 53.77588543 | I81: 53.39707525 | J81: 53.11249084 | K81: 52.9017812 | L81: 52.74763791 | M81: 52.63641795 | N81: 52.55720232 | O81: 52.5015898 | P81: 52.46309113 | Q81: 52.43685038 | R81: 52.4192441 | S81: 52.40764667 | T81: 52.40018041 | U81: 52.39554753 | V81: 52.39288744 | W81: 52.39167971 | X81: 52.39167971 | Y81: 52.39288744 | Z81: 52.39554753 | AA81: 52.40018041 | AB81: 52.40764667 | AC81: 52.4192441 | AD81: 52.43685038 | AE81: 52.46309113 | AF81: 52.5015898 | AG81: 52.55720232 | AH81: 52.63641795 | AI81: 52.74763791 | AJ81: 52.9017812 | AK81: 53.11249084 | AL81: 53.39707525 | AM81: 53.77588543 | AN81: 54.274151 | AO81: 54.91796264 | AP81: 55.73758911 | AQ81: 56.75918155 | AR81: 58.0064 | AS81: 53.4652 | BX81: 0.9972493151 | BY81: 64.2802307 | BZ81: 64.46693865
B82: 1.099 | C82: 58.1097 | D82: 56.86835543 | E82: 55.83531458 | F82: 55.00303433 | G82: 54.34457652 | H82: 53.83368643 | I82: 53.44266837 | J82: 53.1482367 | K82: 52.92915202 | L82: 52.76840727 | M82: 52.65190392 | N82: 52.56862318 | O82: 52.5098707 | P82: 52.46902238 | Q82: 52.44102835 | R82: 52.42215161 | S82: 52.40964562 | T82: 52.4015514 | U82: 52.39650211 | V82: 52.39359019 | W82: 52.3922641 | X82: 52.3922641 | Y82: 52.39359019 | Z82: 52.39650211 | AA82: 52.4015514 | AB82: 52.40964562 | AC82: 52.42215161 | AD82: 52.44102835 | AE82: 52.46902238 | AF82: 52.5098707 | AG82: 52.56862318 | AH82: 52.65190392 | AI82: 52.76840727 | AJ82: 52.92915202 | AK82: 53.1482367 | AL82: 53.44266837 | AM82: 53.83368643 | AN82: 54.34457652 | AO82: 55.00303433 | AP82: 55.83531458 | AQ82: 56.86835543 | AR82: 58.1097 | AS82: 53.4767 | BX82: 0.997247431 | BY82: 65.4748997 | BZ82: 65.66487578
B83: 1.114 | C83: 58.2147 | D83: 56.96914755 | E83: 55.9324568 | F83: 55.08714196 | G83: 54.41598025 | H83: 53.89168902 | I83: 53.48940372 | J83: 53.18469492 | K83: 52.95738101 | L83: 52.7898144 | M83: 52.66797937 | N83: 52.58049169 | O83: 52.518534 | P83: 52.4752422 | Q83: 52.44543994 | R83: 52.42523423 | S83: 52.41178035 | T83: 52.40302475 | U83: 52.39753632 | V83: 52.39435752 | W83: 52.39290576 | X83: 52.39290576 | Y83: 52.39435752 | Z83: 52.39753632 | AA83: 52.40302475 | AB83: 52.41178035 | AC83: 52.42523423 | AD83: 52.44543994 | AE83: 52.4752422 | AF83: 52.518534 | AG83: 52.58049169 | AH83: 52.66797937 | AI83: 52.7898144 | AJ83: 52.95738101 | AK83: 53.18469492 | AL83: 53.48940372 | AM83: 53.89168902 | AN83: 54.41598025 | AO83: 55.08714196 | AP83: 55.9324568 | AQ83: 56.96914755 | AR83: 58.2147 | AS83: 53.4922 | BX83: 0.9972963066 | BY83: 66.5557717 | BZ83: 66.74872004
B84: 1.129 | C84: 58.3101 | D84: 57.07020967 | E84: 56.02505805 | F84: 55.17140961 | G84: 54.48704662 | H84: 53.95072415 | I84: 53.53661816 | J84: 53.22214406 | K84: 52.98629099 | L84: 52.81194259 | M84: 52.68459905 | N84: 52.59284491 | O84: 52.52756588 | P84: 52.4817694 | Q84: 52.45008343 | R84: 52.42850124 | S84: 52.41405371 | T84: 52.40460564 | U84: 52.39865389 | V84: 52.39519318 | W84: 52.39360822 | X84: 52.39360822 | Y84: 52.39519318 | Z84: 52.39865389 | AA84: 52.40460564 | AB84: 52.41405371 | AC84: 52.42850124 | AD84: 52.45008343 | AE84: 52.4817694 | AF84: 52.52756588 | AG84: 52.59284491 | AH84: 52.68459905 | AI84: 52.81194259 | AJ84: 52.98629099 | AK84: 53.22214406 | AL84: 53.53661816 | AM84: 53.95072415 | AN84: 54.48704662 | AO84: 55.17140961 | AP84: 56.02505805 | AQ84: 57.07020967 | AR84: 58.3101 | AS84: 53.5087 | BX84: 0.9972190277 | BY84: 67.6934517 | BZ84: 67.88960494
B85: 1.144 | C85: 58.392 | D85: 57.16443808 | E85: 56.11772088 | F85: 55.25332192 | G85: 54.55867913 | H85: 54.00986115 | I85: 53.58482714 | J85: 53.26018649 | K85: 53.01605131 | L85: 52.83468688 | M85: 52.70181973 | N85: 52.60565545 | O85: 52.53699292 | P85: 52.48859707 | Q85: 52.45497236 | R85: 52.4319535 | S85: 52.4164728 | T85: 52.40629741 | U85: 52.39985923 | V85: 52.3961008 | W85: 52.39437514 | X85: 52.39437514 | Y85: 52.3961008 | Z85: 52.39985923 | AA85: 52.40629741 | AB85: 52.4164728 | AC85: 52.4319535 | AD85: 52.45497236 | AE85: 52.48859707 | AF85: 52.53699292 | AG85: 52.60565545 | AH85: 52.70181973 | AI85: 52.83468688 | AJ85: 53.01605131 | AK85: 53.26018649 | AL85: 53.58482714 | AM85: 54.00986115 | AN85: 54.55867913 | AO85: =f*(AN84+AP84)+(1-2*f)*AO84 -> 55.25332192 | AP85: 56.11772088 | AQ85: 57.16443808 | AR85: 58.392 | AS85: 53.5226 | BX85: 0.9971627006 | BY85: 68.7742895 | BZ85: 68.973442
B86: 1.159 | C86: 58.4733 | D86: 57.25194359 | E86: 56.20593938 | F86: 55.335462 | G86: 54.62923952 | H86: 54.06975662 | I86: 53.63340457 | J86: 53.29914075 | K86: 53.04642425 | L86: 52.85815331 | M86: 52.71957918 | N86: 52.61896275 | O86: 52.54679938 | P86: 52.49574439 | Q86: 52.46010422 | R86: 52.435601 | S86: 52.41903988 | T86: 52.40810574 | U86: 52.40115588 | V86: 52.3970844 | W86: 52.39521014 | X86: 52.39521014 | Y86: 52.3970844 | Z86: 52.40115588 | AA86: 52.40810574 | AB86: 52.41903988 | AC86: 52.435601 | AD86: 52.46010422 | AE86: 52.49574439 | AF86: 52.54679938 | AG86: 52.61896275 | AH86: 52.71957918 | AI86: 52.85815331 | AJ86: 53.04642425 | AK86: 53.29914075 | AL86: 53.63340457 | AM86: 54.06975662 | AN86: 54.62923952 | AO86: 55.335462 | AP86: 56.20593938 | AQ86: 57.25194359 | AR86: 58.4733 | AS86: 53.5372 | BX86: 0.9973027843 | BY86: 69.96894905 | BZ86: 70.1713632
B87: 1.174 | C87: 58.5436 | D87: 57.33679143 | E87: 56.29087172 | F87: 55.41494018 | G87: 54.70024254 | H87: 54.12933607 | I87: 53.6828021 | J87: 53.33859913 | K87: 53.07760758 | L87: 52.88220016 | M87: 52.73794581 | N87: 52.63273036 | O87: 52.55701311 | P87: 52.50320317 | Q87: 52.46549307 | R87: 52.43944395 | S87: 52.42176261 | T87: 52.41003362 | U87: 52.40254864 | V87: 52.39814757 | W87: 52.39611704 | X87: 52.39611704 | Y87: 52.39814757 | Z87: 52.40254864 | AA87: 52.41003362 | AB87: 52.42176261 | AC87: 52.43944395 | AD87: 52.46549307 | AE87: 52.50320317 | AF87: 52.55701311 | AG87: 52.63273036 | AH87: 52.73794581 | AI87: 52.88220016 | AJ87: 53.07760758 | AK87: 53.33859913 | AL87: 53.6828021 | AM87: 54.12933607 | AN87: 54.70024254 | AO87: 55.41494018 | AP87: 56.29087172 | AQ87: 57.33679143 | AR87: 58.5436 | AS87: 53.5461 | BX87: 0.9972516872 | BY87: 71.10663905 | BZ87: 71.31223678
B88: 1.189 | C88: 58.6124 | D88: 57.41464088 | E88: 56.37312406 | F88: 55.49295658 | G88: 54.76981891 | H88: 54.18951631 | I88: 53.7323171 | J88: 53.37886272 | K88: 53.10934184 | L88: 52.90695165 | M88: 52.7568356 | N88: 52.64700368 | O88: 52.56761342 | P88: 52.51099342 | Q88: 52.47113548 | R88: 52.44349288 | S88: 52.42464278 | T88: 52.41208718 | U88: 52.40404086 | V88: 52.39929461 | W88: 52.39709955 | X88: 52.39709955 | Y88: 52.39929461 | Z88: 52.40404086 | AA88: 52.41208718 | AB88: 52.42464278 | AC88: 52.44349288 | AD88: 52.47113548 | AE88: 52.51099342 | AF88: 52.56761342 | AG88: 52.64700368 | AH88: 52.7568356 | AI88: 52.90695165 | AJ88: 53.10934184 | AK88: 53.37886272 | AL88: 53.7323171 | AM88: 54.18951631 | AN88: 54.76981891 | AO88: 55.49295658 | AP88: 56.37312406 | AQ88: 57.41464088 | AR88: 58.6124 | AS88: 53.5643 | BX88: 0.9971673645 | BY88: 72.187417 | BZ88: 72.39606313
B89: 1.204 | C89: 58.6703 | D89: 57.49024199 | E89: 56.45119632 | F89: 55.56893875 | G89: 54.83893266 | H89: 54.24908247 | I89: 53.78251621 | J89: 53.4194757 | K89: 53.14182443 | L89: 52.93224559 | M89: 52.77632792 | N89: 52.66173352 | O89: 52.57863129 | P89: 52.5191041 | Q89: 52.47704612 | R89: 52.44774732 | S89: 52.4276885 | T89: 52.41426909 | U89: 52.40563766 | V89: 52.40052906 | W89: 52.39816168 | X89: 52.39816168 | Y89: 52.40052906 | Z89: 52.40563766 | AA89: 52.41426909 | AB89: 52.4276885 | AC89: 52.44774732 | AD89: 52.47704612 | AE89: 52.5191041 | AF89: 52.57863129 | AG89: 52.66173352 | AH89: 52.77632792 | AI89: 52.93224559 | AJ89: 53.14182443 | AK89: 53.4194757 | AL89: 53.78251621 | AM89: 54.24908247 | AN89: 54.83893266 | AO89: 55.56893875 | AP89: 56.45119632 | AQ89: 57.49024199 | AR89: 58.6703 | AS89: 53.5777 | BX89: =AS5464/O5464 -> 0.997207387 | BY89: 73.26821775 | BZ89: 73.47988593
B90: 1.219 | C90: 58.7332 | D90: 57.55847377 | E90: 56.52706153 | F90: 55.64260882 | G90: 54.90675003 | H90: 54.30873598 | I90: 53.83260932 | J90: 53.46079308 | K90: 53.1747627 | L90: 52.95821067 | M90: 52.79632305 | N90: 52.67697167 | O90: 52.59003856 | P90: 52.52755694 | Q90: 52.48321991 | R90: 52.45221828 | S90: 52.43090112 | T90: 52.41658586 | U90: 52.40734225 | V90: 52.40185546 | W90: 52.39930718 | X90: 52.39930718 | Y90: 52.40185546 | Z90: 52.40734225 | AA90: 52.41658586 | AB90: 52.43090112 | AC90: 52.45221828 | AD90: 52.48321991 | AE90: 52.52755694 | AF90: 52.59003856 | AG90: 52.67697167 | AH90: 52.79632305 | AI90: 52.95821067 | AJ90: 53.1747627 | AK90: 53.46079308 | AL90: 53.83260932 | AM90: 54.30873598 | AN90: 54.90675003 | AO90: 55.64260882 | AP90: 56.52706153 | AQ90: 57.55847377 | AR90: 58.7332 | AS90: 53.594 | BX90: 0.997215961 | BY90: =BY89+(B5465-B5464)*(AS5465+AS5466)/2 -> 74.40588675 | BZ90: =BZ89+(B5465-B5464)*(O5465+O5466)/2 -> 74.62074832
B91: 1.234 | C91: 58.7793 | D91: 57.62781925 | E91: 56.59817098 | F91: 55.7145091 | G91: 54.9734491 | H91: 54.36771375 | I91: 53.8830821 | J91: 53.50230237 | K91: 53.20838126 | L91: 52.98466119 | M91: 52.8169051 | N91: 52.69265793 | O91: 52.60186993 | P91: 52.53633658 | Q91: 52.48967253 | R91: 52.45690431 | S91: 52.43428914 | T91: 52.41903988 | U91: 52.40916006 | V91: 52.40327732 | W91: 52.40054022 | X91: 52.40054022 | Y91: 52.40327732 | Z91: 52.40916006 | AA91: 52.41903988 | AB91: 52.43428914 | AC91: 52.45690431 | AD91: 52.48967253 | AE91: 52.53633658 | AF91: 52.60186993 | AG91: 52.69265793 | AH91: 52.8169051 | AI91: 52.98466119 | AJ91: 53.20838126 | AK91: 53.50230237 | AL91: 53.8830821 | AM91: 54.36771375 | AN91: 54.9734491 | AO91: 55.7145091 | AP91: 56.59817098 | AQ91: 57.62781925 | AR91: 58.7793 | AS91: 53.611 | BX91: 0.9971858302 | BY91: 75.54358675 | BZ91: 75.76160701
B92: 1.249 | C92: 58.8251 | D92: 57.68677045 | E92: 56.66880956 | F92: 55.78351001 | G92: 55.03892877 | H92: 54.42631232 | I92: 53.93333303 | J92: 53.54433073 | K92: 53.2423495 | L92: 53.01174053 | M92: 52.8379578 | N92: 52.70884785 | O92: 52.61408992 | P92: 52.54546688 | Q92: 52.49639632 | R92: 52.46181707 | S92: 52.43785329 | T92: 52.421638 | U92: 52.41109413 | V92: 52.40479941 | W92: =f*(V91+X91)+(1-2*f)*W91 -> 52.40186462 | X92: 52.40186462 | Y92: 52.40479941 | Z92: 52.41109413 | AA92: 52.421638 | AB92: 52.43785329 | AC92: 52.46181707 | AD92: 52.49639632 | AE92: 52.54546688 | AF92: 52.61408992 | AG92: 52.70884785 | AH92: 52.8379578 | AI92: 53.01174053 | AJ92: 53.2423495 | AK92: 53.54433073 | AL92: 53.93333303 | AM92: 54.42631232 | AN92: 55.03892877 | AO92: 55.78351001 | AP92: 56.66880956 | AQ92: 57.68677045 | AR92: 58.8251 | AS92: 53.6288 | BX92: 0.9972767842 | BY92: 76.68135175 | BZ92: 76.90246201
B93: 1.264 | C93: 58.8625 | D93: 57.74501335 | E93: 56.73300053 | F93: 55.85159951 | G93: 55.1027827 | H93: 54.48420127 | I93: 53.98364448 | J93: 53.5864377 | K93: 53.27688447 | L93: 53.0392371 | M93: 52.85957366 | N93: 52.7254698 | O93: 52.62673584 | P93: 52.55492776 | Q93: 52.50340825 | R93: 52.46695359 | S93: 52.44160256 | T93: 52.42438224 | U93: 52.41315017 | V93: 52.40642519 | W93: 52.40328468 | X93: 52.40328468 | Y93: 52.40642519 | Z93: 52.41315017 | AA93: 52.42438224 | AB93: 52.44160256 | AC93: 52.46695359 | AD93: 52.50340825 | AE93: 52.55492776 | AF93: 52.62673584 | AG93: 52.7254698 | AH93: 52.85957366 | AI93: 53.0392371 | AJ93: 53.27688447 | AK93: 53.5864377 | AL93: 53.98364448 | AM93: 54.48420127 | AN93: 55.1027827 | AO93: 55.85159951 | AP93: 56.73300053 | AQ93: 57.74501335 | AR93: 58.8625 | AS93: 53.6482 | BX93: 0.9973062246 | BY93: 77.81910575 | BZ93: 78.04331333
B94: 1.279 | C94: 58.8944 | D94: 57.79604907 | E94: 56.79619979 | F94: 55.91575316 | G94: 55.16579982 | H94: 54.54130996 | I94: 54.03365255 | J94: 53.62885071 | K94: 53.31167763 | L94: 53.06729384 | M94: 52.88161862 | N94: 52.74258427 | O94: 52.63976449 | P94: 52.56474481 | Q94: 52.51069769 | R94: 52.47232631 | S94: 52.44553677 | T94: 52.42727978 | U94: 52.41533102 | V94: 52.40815961 | W94: 52.40480428 | X94: 52.40480428 | Y94: 52.40815961 | Z94: 52.41533102 | AA94: 52.42727978 | AB94: 52.44553677 | AC94: 52.47232631 | AD94: 52.51069769 | AE94: 52.56474481 | AF94: 52.63976449 | AG94: 52.74258427 | AH94: 52.88161862 | AI94: 53.06729384 | AJ94: 53.31167763 | AK94: 53.62885071 | AL94: 54.03365255 | AM94: 54.54130996 | AN94: 55.16579982 | AO94: 55.91575316 | AP94: 56.79619979 | AQ94: 57.79604907 | AR94: 58.8944 | AS94: 53.6657 | BX94: 0.9972639309 | BY94: 78.95678475 | BZ94: 79.184161
B95: 1.294 | C95: 58.9225 | D95: 57.84371116 | E95: 56.85397527 | F95: 55.97889507 | G95: 55.22650796 | H95: 54.59784179 | I95: 54.08342137 | J95: 53.67125172 | K95: 53.34689825 | L95: 53.09570121 | M95: 52.90418678 | N95: 52.76010745 | O95: 52.65321615 | P95: 52.57489282 | Q95: 52.51828272 | R95: 52.47793043 | S95: 52.44966542 | T95: 52.43033215 | U95: 52.41764264 | V95: 52.4100061 | W95: 52.40642783 | X95: 52.40642783 | Y95: 52.4100061 | Z95: 52.41764264 | AA95: 52.43033215 | AB95: 52.44966542 | AC95: 52.47793043 | AD95: 52.51828272 | AE95: 52.57489282 | AF95: 52.65321615 | AG95: 52.76010745 | AH95: 52.90418678 | AI95: 53.09570121 | AJ95: 53.34689825 | AK95: 53.67125172 | AL95: 54.08342137 | AM95: 54.59784179 | AN95: 55.22650796 | AO95: 55.97889507 | AP95: 56.85397527 | AQ95: 57.84371116 | AR95: 58.9225 | AS95: 53.6811 | BX95: 0.9971811431 | BY95: 80.03753325 | BZ95: 80.2679628
B96: 1.309 | C96: 58.9427 | D96: 57.8868013 | E96: 56.90945383 | F96: 56.03826269 | G96: 55.28637293 | H96: 54.65312199 | I96: 54.13289755 | J96: 53.71374342 | K96: 53.38229652 | L96: 53.12457989 | M96: 52.92713925 | N96: 52.77810166 | O96: 52.66703936 | P96: 52.58539922 | Q96: 52.5261494 | R96: 52.48377912 | S96: 52.45398723 | T96: 52.43354687 | U96: 52.42008762 | V96: 52.41196978 | W96: 52.40815925 | X96: 52.40815925 | Y96: 52.41196978 | Z96: 52.42008762 | AA96: 52.43354687 | AB96: 52.45398723 | AC96: 52.48377912 | AD96: 52.5261494 | AE96: 52.58539922 | AF96: 52.66703936 | AG96: 52.77810166 | AH96: 52.92713925 | AI96: 53.12457989 | AJ96: 53.38229652 | AK96: 53.71374342 | AL96: 54.13289755 | AM96: 54.65312199 | AN96: 55.28637293 | AO96: 56.03826269 | AP96: 56.90945383 | AQ96: 57.8868013 | AR96: 58.9427 | AS96: 53.6979 | BX96: 0.9971844174 | BY96: 81.17526225 | BZ96: 81.40880317
B97: 1.324 | C97: 58.9515 | D97: 57.92480996 | E97: 56.96081979 | F97: 56.09598917 | G97: 55.34377881 | H97: 54.70781223 | I97: 54.18180254 | J97: 53.7561824 | K97: 53.41797246 | L97: 53.15374569 | M97: 52.95056008 | N97: 52.7964768 | O97: 52.68127589 | P97: 52.59623325 | Q97: 52.53431692 | R97: 52.48986544 | S97: 52.45851216 | T97: 52.43692483 | U97: 52.42267217 | V97: 52.41405396 | W97: 52.41000305 | X97: 52.41000305 | Y97: 52.41405396 | Z97: 52.42267217 | AA97: 52.43692483 | AB97: 52.45851216 | AC97: 52.48986544 | AD97: 52.53431692 | AE97: 52.59623325 | AF97: 52.68127589 | AG97: 52.7964768 | AH97: 52.95056008 | AI97: 53.15374569 | AJ97: 53.41797246 | AK97: 53.7561824 | AL97: 54.18180254 | AM97: 54.70781223 | AN97: 55.34377881 | AO97: 56.09598917 | AP97: 56.96081979 | AQ97: 57.92480996 | AR97: 58.9515 | AS97: 53.7167 | BX97: 0.9973610637 | BY97: 82.31306925 | BZ97: 82.54963991
B98: 1.339 | C98: 58.9655 | D98: 57.95514861 | E98: 57.00880022 | F98: 56.15048285 | G98: 55.4000258 | H98: 54.76101718 | I98: 54.23037813 | J98: 53.79847766 | K98: 53.45377077 | L98: 53.18328174 | M98: 52.97431927 | N98: 52.81529085 | O98: 52.6958686 | P98: 52.6074234 | Q98: 52.54276765 | R98: 52.49620328 | S98: 52.46323762 | T98: 52.44047387 | U98: 52.42539852 | V98: 52.41626395 | W98: 52.41196317 | X98: 52.41196317 | Y98: 52.41626395 | Z98: 52.42539852 | AA98: 52.44047387 | AB98: 52.46323762 | AC98: 52.49620328 | AD98: 52.54276765 | AE98: 52.6074234 | AF98: 52.6958686 | AG98: 52.81529085 | AH98: 52.97431927 | AI98: 53.18328174 | AJ98: 53.45377077 | AK98: 53.79847766 | AL98: 54.23037813 | AM98: 54.76101718 | AN98: 55.4000258 | AO98: 56.15048285 | AP98: 57.00880022 | AQ98: 57.95514861 | AR98: 58.9655 | AS98: 53.7311 | BX98: 0.9973275038 | BY98: 83.3939384 | BZ98: 83.63343137
B99: 1.354 | C99: 58.9704 | D99: 57.9861178 | E99: =f*(D98+F98)+(1-2*f)*E98 -> 57.05139587 | F99: 56.20267332 | G99: 55.45395246 | H99: 54.81345407 | I99: 54.27815486 | J99: 53.8406681 | K99: 53.48968264 | L99: 53.21305266 | M99: 52.99848091 | N99: 52.83445513 | O99: 52.7108575 | P99: 52.61893443 | Q99: 52.55152154 | R99: 52.5027833 | S99: 52.46817403 | T99: 52.44419406 | U99: 52.42827309 | V99: 52.41860288 | W99: 52.41404419 | X99: 52.41404419 | Y99: 52.41860288 | Z99: 52.42827309 | AA99: 52.44419406 | AB99: 52.46817403 | AC99: 52.5027833 | AD99: 52.55152154 | AE99: 52.61893443 | AF99: 52.7108575 | AG99: 52.83445513 | AH99: 52.99848091 | AI99: 53.21305266 | AJ99: 53.48968264 | AK99: 53.8406681 | AL99: 54.27815486 | AM99: 54.81345407 | AN99: 55.45395246 | AO99: 56.20267332 | AP99: 57.05139587 | AQ99: 57.9861178 | AR99: 58.9704 | AS99: 53.747 | BX99: 0.9972797361 | BY99: 84.58858325 | BZ99: 84.83130237
B100: 1.369 | C100: 58.9722 | D100: 58.01009858 | E100: 57.09300848 | F100: 56.25106123 | G100: 55.50631817 | H100: 54.8643569 | I100: 54.32548347 | J100: 53.88252357 | K100: 53.5256611 | L100: 53.24308083 | M100: 53.02293864 | N100: 52.85401713 | O100: 52.7261839 | P100: 52.63079419 | Q100: 52.56055766 | R100: 52.5096199 | S100: 52.47331724 | T100: 52.44809357 | U100: 52.43129765 | V100: 52.4210762 | W100: 52.41625001 | X100: 52.41625001 | Y100: 52.4210762 | Z100: 52.43129765 | AA100: 52.44809357 | AB100: 52.47331724 | AC100: 52.5096199 | AD100: 52.56055766 | AE100: 52.63079419 | AF100: 52.7261839 | AG100: 52.85401713 | AH100: 53.02293864 | AI100: 53.24308083 | AJ100: 53.5256611 | AK100: 53.88252357 | AL100: 54.32548347 | AM100: 54.8643569 | AN100: 55.50631817 | AO100: 56.25106123 | AP100: 57.09300848 | AQ100: 58.01009858 | AR100: 58.9722 | AS100: 53.7638 | BX100: 0.9973337982 | BY100: 85.72630425 | BZ100: 85.97212829
B101: 1.384 | C101: 58.9706 | D101: 58.03187825 | E101: 57.12936792 | F101: 56.29809552 | G101: 55.5560513 | H101: 54.91423811 | I101: 54.37189324 | J101: 53.92418361 | K101: 53.5616041 | L101: 53.2732928 | M101: 53.04772284 | N101: 52.87389855 | O101: 52.74188238 | P101: 52.64296508 | Q101: 52.56989578 | R101: 52.5167014 | S101: 52.47867804 | T101: 52.45217152 | U101: 52.43447885 | V101: 52.42368681 | W101: 52.41858526 | X101: 52.41858526 | Y101: 52.42368681 | Z101: 52.43447885 | AA101: 52.45217152 | AB101: 52.47867804 | AC101: 52.5167014 | AD101: 52.56989578 | AE101: 52.64296508 | AF101: 52.74188238 | AG101: 52.87389855 | AH101: 53.04772284 | AI101: 53.2732928 | AJ101: 53.5616041 | AK101: 53.92418361 | AL101: 54.37189324 | AM101: 54.91423811 | AN101: 55.5560513 | AO101: 56.29809552 | AP101: 57.12936792 | AQ101: 58.03187825 | AR101: 58.9706 | AS101: 53.7829 | BX101: 0.9972229111 | BY101: 86.86400425 | BZ101: 87.11295064
B102: 1.399 | C102: 58.9593 | D102: 58.04939991 | E102: 57.16383788 | F102: 56.34127045 | G102: 55.60455018 | H102: 54.96236794 | I102: 54.41768449 | J102: 53.9653756 | K102: 53.59754033 | L102: 53.30365151 | M102: 53.07276107 | N102: 52.89412829 | O102: 52.75789796 | P102: 52.65547218 | Q102: 52.57951268 | R102: 52.52404222 | S102: 52.4842507 | T102: 52.45643628 | U102: 52.43781786 | V102: 52.42644027 | W102: 52.42105375 | X102: 52.42105375 | Y102: 52.42644027 | Z102: 52.43781786 | AA102: 52.45643628 | AB102: 52.4842507 | AC102: 52.52404222 | AD102: 52.57951268 | AE102: 52.65547218 | AF102: 52.75789796 | AG102: 52.89412829 | AH102: 53.07276107 | AI102: 53.30365151 | AJ102: 53.59754033 | AK102: 53.9653756 | AL102: 54.41768449 | AM102: 54.96236794 | AN102: 55.60455018 | AO102: 56.34127045 | AP102: 57.16383788 | AQ102: 58.04939991 | AR102: 58.9593 | AS102: 53.8036 | BX102: 0.9973032282 | BY102: 88.00175125 | BZ102: 88.25376942
B103: 1.414 | C103: 58.9484 | D103: 58.06117639 | E103: 57.19431913 | F103: 56.3828094 | G103: 55.65029439 | H103: 55.00954477 | I103: 54.46238186 | J103: 54.00624993 | K103: 53.63332087 | L103: 53.3341346 | M103: 53.09804703 | N103: 52.91464561 | O103: 52.774255 | P103: 52.66827845 | Q103: 52.58942673 | R103: 52.5316288 | S103: 52.49004607 | T103: 52.46088596 | U103: 52.44132149 | V103: 52.42933918 | W103: 52.42366013 | X103: 52.42366013 | Y103: 52.42933918 | Z103: 52.44132149 | AA103: 52.46088596 | AB103: 52.49004607 | AC103: 52.5316288 | AD103: 52.58942673 | AE103: 52.66827845 | AF103: 52.774255 | AG103: 52.91464561 | AH103: 53.09804703 | AI103: 53.3341346 | AJ103: 53.63332087 | AK103: 54.00624993 | AL103: 54.46238186 | AM103: 55.00954477 | AN103: 55.65029439 | AO103: 56.3828094 | AP103: 57.19431913 | AQ103: 58.06117639 | AR103: 58.9484 | AS103: 53.827 | BX103: 0.9973115603 | BY103: 89.13951125 | BZ103: 89.39458465
B104: 1.429 | C104: 58.9347 | D104: 58.07103108 | E104: 57.22110019 | F104: 56.42103265 | G104: 55.694697 | H104: 55.05482866 | I104: 54.50642911 | J104: 54.04650938 | K104: 53.66900287 | L104: 53.36466623 | M104: 53.12354033 | N104: 52.93545729 | O104: 52.79090696 | P104: 52.68140336 | Q104: 52.59961405 | R104: 52.53947486 | S104: 52.49605702 | T104: 52.46552901 | U104: 52.44499028 | V104: 52.43238915 | W104: 52.42640806 | X104: 52.42640806 | Y104: 52.43238915 | Z104: 52.44499028 | AA104: 52.46552901 | AB104: 52.49605702 | AC104: 52.53947486 | AD104: 52.59961405 | AE104: 52.68140336 | AF104: 52.79090696 | AG104: 52.93545729 | AH104: 53.12354033 | AI104: 53.36466623 | AJ104: 53.66900287 | AK104: 54.04650938 | AL104: 54.50642911 | AM104: 55.05482866 | AN104: 55.694697 | AO104: 56.42103265 | AP104: 57.22110019 | AQ104: 58.07103108 | AR104: 58.9347 | AS104: 53.847 | BX104: 0.9973322236 | BY104: 90.27724525 | BZ104: 90.53539632
B105: 1.444 | C105: 58.9127 | D105: 58.07767852 | E105: 57.24522762 | F105: 56.45670937 | G105: 55.73653602 | H105: 55.09908775 | I105: 54.54924193 | J105: 54.08638674 | K105: 53.70440765 | L105: 53.39525207 | M105: 53.14920623 | N105: 52.9565215 | O105: 52.80786506 | P105: 52.6948135 | Q105: 52.61008992 | R105: 52.54756583 | S105: 52.50229404 | T105: 52.47036253 | U105: 52.44883105 | V105: 52.43559239 | W105: 52.42930213 | X105: 52.42930213 | Y105: 52.43559239 | Z105: =f*(Y104+AA104)+(1-2*f)*Z104 -> 52.44883105 | AA105: 52.47036253 | AB105: 52.50229404 | AC105: 52.54756583 | AD105: 52.61008992 | AE105: 52.6948135 | AF105: 52.80786506 | AG105: 52.9565215 | AH105: 53.14920623 | AI105: 53.39525207 | AJ105: 53.70440765 | AK105: 54.08638674 | AL105: 54.54924193 | AM105: 55.09908775 | AN105: 55.73653602 | AO105: 56.45670937 | AP105: 57.24522762 | AQ105: 58.07767852 | AR105: 58.9127 | AS105: 53.8603 | BX105: 0.9972721864 | BY105: 91.41491425 | BZ105: 91.67620447
B106: 1.459 | C106: 58.8881 | D106: 58.07892235 | E106: 57.26648535 | F106: 56.48977948 | G106: 55.77656429 | H106: 55.14147603 | I106: 54.59133417 | J106: 54.12552034 | K106: 53.73964483 | L106: 53.42578904 | M106: 53.17502612 | N106: 52.97782551 | O106: 52.82509323 | P106: 52.70852059 | Q106: 52.62083161 | R106: 52.55591372 | S106: 52.50874902 | T106: 52.4753948 | U106: 52.45284371 | V106: 52.43895452 | W106: 52.43234581 | X106: 52.43234581 | Y106: 52.43895452 | Z106: 52.45284371 | AA106: 52.4753948 | AB106: 52.50874902 | AC106: 52.55591372 | AD106: 52.62083161 | AE106: 52.70852059 | AF106: 52.82509323 | AG106: 52.97782551 | AH106: 53.17502612 | AI106: 53.42578904 | AJ106: 53.73964483 | AK106: 54.12552034 | AL106: 54.59133417 | AM106: 55.14147603 | AN106: 55.77656429 | AO106: 56.48977948 | AP106: 57.26648535 | AQ106: 58.07892235 | AR106: 58.8881 | AS106: 53.8767 | BX106: 0.9972244375 | BY106: 92.55260125 | BZ106: 92.81700909
B107: 1.474 | C107: 58.8552 | D107: 58.07734525 | E107: 57.28377461 | F107: 56.52050078 | G107: 55.81436765 | H107: 55.18257913 | I107: 54.63213805 | J107: 54.16420018 | K107: 53.77449308 | L107: 53.45631785 | M107: 53.20094337 | N107: 52.99934244 | O107: 52.84258983 | P107: 52.72249655 | Q107: 52.63184987 | R107: 52.56450397 | S107: 52.51543151 | T107: 52.48062212 | U107: 52.45703495 | V107: 52.44247733 | W107: 52.43554357 | X107: 52.43554357 | Y107: 52.44247733 | Z107: 52.45703495 | AA107: 52.48062212 | AB107: 52.51543151 | AC107: 52.56450397 | AD107: 52.63184987 | AE107: 52.72249655 | AF107: 52.84258983 | AG107: 52.99934244 | AH107: 53.20094337 | AI107: 53.45631785 | AJ107: 53.77449308 | AK107: 54.16420018 | AL107: 54.63213805 | AM107: 55.18257913 | AN107: 55.81436765 | AO107: 56.52050078 | AP107: 57.28377461 | AQ107: 58.07734525 | AR107: 58.8552 | AS107: 53.895 | BX107: 0.9973099101 | BY107: 93.69035625 | BZ107: 93.9578102
B108: 1.489 | C108: 58.8264 | D108: 58.06974079 | E108: 57.29843435 | F108: 56.5481495 | G108: 55.85034085 | H108: 55.22194079 | I108: 54.67205895 | J108: 54.20205378 | K108: 53.80910527 | L108: 53.48670531 | M108: 53.22696283 | N108: 53.02104324 | O108: 52.86032822 | P108: 52.73674491 | Q108: 52.64312444 | R108: 52.57334596 | S108: 52.52233299 | T108: 52.48605223 | U108: 52.46140408 | V108: 52.4461663 | W108: 52.43889862 | X108: 52.43889862 | Y108: 52.4461663 | Z108: 52.46140408 | AA108: 52.48605223 | AB108: 52.52233299 | AC108: 52.57334596 | AD108: 52.64312444 | AE108: 52.73674491 | AF108: 52.86032822 | AG108: 53.02104324 | AH108: 53.22696283 | AI108: 53.48670531 | AJ108: 53.80910527 | AK108: 54.20205378 | AL108: 54.67205895 | AM108: 55.22194079 | AN108: 55.85034085 | AO108: 56.5481495 | AP108: 57.29843435 | AQ108: 58.06974079 | AR108: 58.8264 | AS108: 53.9122 | BX108: 0.9973497959 | BY108: 94.82809525 | BZ108: 95.0986078
B109: 1.504 | C109: 58.7952 | D109: 58.06265342 | E109: 57.30860609 | F109: 56.57354121 | G109: 55.88392565 | H109: 55.25993348 | I109: 54.71070895 | J109: 54.23933926 | K109: 53.84324167 | L109: 53.51702345 | M109: 53.25300616 | N109: 53.04291642 | O109: 52.87829517 | P109: 52.75124306 | Q109: 52.65466088 | R109: 52.58242605 | S109: 52.52946148 | T109: 52.49168092 | U109: 52.46595748 | V109: 52.4500228 | W109: 52.44241524 | X109: 52.44241524 | Y109: 52.4500228 | Z109: 52.46595748 | AA109: 52.49168092 | AB109: 52.52946148 | AC109: 52.58242605 | AD109: 52.65466088 | AE109: 52.75124306 | AF109: 52.87829517 | AG109: 53.04291642 | AH109: 53.25300616 | AI109: 53.51702345 | AJ109: 53.84324167 | AK109: 54.23933926 | AL109: 54.71070895 | AM109: 55.25993348 | AN109: 55.88392565 | AO109: 56.57354121 | AP109: 57.30860609 | AQ109: 58.06265342 | AR109: 58.7952 | AS109: 53.9313 | BX109: 0.9972879915 | BY109: 95.96580325 | BZ109: 96.2394019
B110: 1.519 | C110: 58.7581 | D110: 58.05224983 | E110: 57.31779115 | F110: 56.59553282 | G110: 55.9156789 | H110: 55.29611137 | I110: 54.74838065 | J110: 54.27576124 | K110: 53.87705427 | L110: 53.54712067 | M110: 53.27910013 | N110: 53.06491731 | O110: 52.89647379 | P110: 52.76598658 | Q110: 52.66644186 | R110: 52.59175037 | S110: 52.53680858 | T110: 52.49751501 | U110: 52.47069398 | V110: 52.45405205 | W110: 52.44609632 | X110: 52.44609632 | Y110: 52.45405205 | Z110: 52.47069398 | AA110: 52.49751501 | AB110: 52.53680858 | AC110: 52.59175037 | AD110: 52.66644186 | AE110: 52.76598658 | AF110: 52.89647379 | AG110: 53.06491731 | AH110: 53.27910013 | AI110: 53.54712067 | AJ110: 53.87705427 | AK110: 54.27576124 | AL110: 54.74838065 | AM110: 55.29611137 | AN110: 55.9156789 | AO110: 56.59553282 | AP110: 57.31779115 | AQ110: 58.05224983 | AR110: 58.7581 | AS110: 53.9538 | BX110: 0.9973015573 | BY110: 97.10351725 | BZ110: 97.38019252
B111: 1.534 | C111: 58.721 | D111: 58.038407 | E111: 57.32369454 | F111: 56.61605108 | G111: 55.94484973 | H111: 55.33087112 | I111: 54.78472484 | J111: 54.31152532 | K111: 53.91033171 | L111: 53.5770786 | M111: 53.30515064 | N111: 53.08704923 | O111: 52.91483974 | P111: 52.78095875 | Q111: 52.67846762 | R111: 52.60130667 | S111: 52.5443803 | T111: 52.50355011 | U111: 52.47561935 | V111: 52.45825505 | W111: 52.44994586 | X111: 52.44994586 | Y111: 52.45825505 | Z111: 52.47561935 | AA111: 52.50355011 | AB111: 52.5443803 | AC111: 52.60130667 | AD111: 52.67846762 | AE111: 52.78095875 | AF111: 52.91483974 | AG111: 53.08704923 | AH111: 53.30515064 | AI111: 53.5770786 | AJ111: 53.91033171 | AK111: 54.31152532 | AL111: 54.78472484 | AM111: 55.33087112 | AN111: 55.94484973 | AO111: 56.61605108 | AP111: 57.32369454 | AQ111: 58.038407 | AR111: 58.721 | AS111: 53.968 | BX111: 0.9973046075 | BY111: 98.24122825 | BZ111: 98.52097967
B112: 1.549 | C112: 58.6769 | D112: 58.02286533 | E112: 57.32711503 | F112: 56.63368436 | G112: 55.97253815 | H112: =f*(G111+I111)+(1-2*f)*H111 -> 55.36369322 | I112: 54.82002166 | J112: 54.34636689 | K112: 53.94320615 | L112: 53.60675206 | M112: 53.33119575 | N112: 53.109255 | O112: 52.93338579 | P112: 52.79614739 | Q112: 52.69072416 | R112: 52.61109759 | S112: 52.55216877 | T112: 52.50979177 | U112: 52.48073215 | V112: 52.46263656 | W112: 52.45396644 | X112: 52.45396644 | Y112: 52.46263656 | Z112: 52.48073215 | AA112: 52.50979177 | AB112: 52.55216877 | AC112: 52.61109759 | AD112: 52.69072416 | AE112: 52.79614739 | AF112: 52.93338579 | AG112: 53.109255 | AH112: 53.33119575 | AI112: 53.60675206 | AJ112: 53.94320615 | AK112: 54.34636689 | AL112: 54.82002166 | AM112: 55.36369322 | AN112: 55.97253815 | AO112: 56.63368436 | AP112: 57.32711503 | AQ112: 58.02286533 | AR112: 58.6769 | AS112: 53.9886 | BX112: 0.9973023698 | BY112: 99.37897825 | BZ112: 99.66176334
B113: 1.564 | C113: 58.6346 | D113: 58.00268035 | E113: 57.32823743 | F113: 56.64930587 | G113: 55.99784522 | H113: 55.39522872 | I113: 54.85390075 | J113: 54.3804769 | K113: 53.97548356 | L113: 53.63621873 | M113: 53.35713876 | N113: 53.13154768 | O113: 52.95207812 | P113: 52.81154183 | Q113: 52.70320642 | R113: 52.62111263 | S113: 52.56017772 | T113: 52.51623567 | U113: 52.48603732 | V113: 52.46719727 | W113: 52.45816166 | X113: 52.45816166 | Y113: 52.46719727 | Z113: 52.48603732 | AA113: 52.51623567 | AB113: 52.56017772 | AC113: 52.62111263 | AD113: 52.70320642 | AE113: 52.81154183 | AF113: 52.95207812 | AG113: 53.13154768 | AH113: 53.35713876 | AI113: 53.63621873 | AJ113: 53.97548356 | AK113: 54.3804769 | AL113: 54.85390075 | AM113: 55.39522872 | AN113: 55.99784522 | AO113: 56.64930587 | AP113: 57.32823743 | AQ113: 58.00268035 | AR113: 58.6346 | AS113: 54.0063 | BX113: 0.9973790555 | BY113: 100.5167182 | BZ113: 100.8025436
B114: 1.579 | C114: 58.5917 | D114: 57.98210457 | E114: 57.32606551 | F114: 56.66259825 | G114: 56.02147949 | H114: 55.42488446 | I114: 54.88675759 | J114: 54.41358844 | K114: 54.00728768 | L114: 53.66534044 | M114: 53.38302048 | N114: 53.15386454 | O114: 52.9709168 | P114: 52.8271229 | Q114: 52.71590398 | R114: 52.6313508 | S114: 52.56840007 | T114: 52.52288585 | U114: 52.49153327 | V114: 52.47194135 | W114: 52.46253373 | X114: 52.46253373 | Y114: 52.47194135 | Z114: 52.49153327 | AA114: 52.52288585 | AB114: 52.56840007 | AC114: 52.6313508 | AD114: 52.71590398 | AE114: 52.8271229 | AF114: 52.9709168 | AG114: 53.15386454 | AH114: 53.38302048 | AI114: 53.66534044 | AJ114: 54.00728768 | AK114: 54.41358844 | AL114: 54.88675759 | AM114: 55.42488446 | AN114: 56.02147949 | AO114: 56.66259825 | AP114: 57.32606551 | AQ114: 57.98210457 | AR114: 58.5917 | AS114: 54.0291 | BX114: 0.9972908655 | BY114: 101.6544453 | BZ114: 101.9433203
B115: 1.594 | C115: 58.5458 | D115: 57.95963184 | E115: 57.32247122 | F115: 56.67341204 | G115: 56.04302323 | H115: 55.4531755 | I115: 54.91818874 | J115: 54.44594411 | K115: 54.03842648 | L115: 53.69419235 | M115: 53.40874501 | N115: 53.17622334 | O115: 52.98986221 | P115: 52.84288498 | Q115: 52.72880675 | R115: 52.6418036 | S115: 52.57683709 | T115: 52.52973826 | U115: 52.49722391 | V115: 52.47686924 | W115: 52.4670858 | X115: 52.4670858 | Y115: 52.47686924 | Z115: 52.49722391 | AA115: 52.52973826 | AB115: 52.57683709 | AC115: 52.6418036 | AD115: 52.72880675 | AE115: 52.84288498 | AF115: 52.98986221 | AG115: 53.17622334 | AH115: 53.40874501 | AI115: 53.69419235 | AJ115: 54.03842648 | AK115: 54.44594411 | AL115: 54.91818874 | AM115: 55.4531755 | AN115: 56.04302323 | AO115: 56.67341204 | AP115: 57.32247122 | AQ115: 57.95963184 | AR115: 58.5458 | AS115: 54.046 | BX115: 0.9973622979 | BY115: 102.7921513 | BZ115: 103.0840937
B116: 1.609 | C116: 58.4924 | D116: 57.93495807 | E116: 57.31671385 | F116: 56.68244609 | G116: 56.06263988 | H116: 55.47972113 | I116: 54.94854784 | J116: 54.47726363 | K116: 54.06904753 | L116: 53.72263757 | M116: 53.43435421 | N116: 53.19855908 | O116: 53.00891894 | P116: 52.85880385 | Q116: 52.7419076 | R116: 52.65246649 | S116: 52.58548274 | T116: 52.53679527 | U116: 52.50310762 | V116: 52.48198435 | W116: 52.47181972 | X116: 52.47181972 | Y116: 52.48198435 | Z116: 52.50310762 | AA116: 52.53679527 | AB116: 52.58548274 | AC116: 52.65246649 | AD116: 52.7419076 | AE116: 52.85880385 | AF116: 53.00891894 | AG116: 53.19855908 | AH116: 53.43435421 | AI116: 53.72263757 | AJ116: 54.06904753 | AK116: 54.47726363 | AL116: 54.94854784 | AM116: 55.47972113 | AN116: 56.06263988 | AO116: 56.68244609 | AP116: 57.31671385 | AQ116: 57.93495807 | AR116: 58.4924 | AS116: 54.0615 | BX116: 0.9972600238 | BY116: 103.9298592 | BZ116: 104.2248636
B117: 1.624 | C117: 58.4441 | D117: 57.90553761 | E117: 57.30896052 | F117: 56.68944362 | G117: 56.08048865 | H117: 55.50475925 | I117: 54.97752643 | J117: 54.50778045 | K117: 54.09895372 | L117: 53.75076334 | M117: 53.45975174 | N117: 53.22089214 | O117: 53.02804397 | P117: 52.87487748 | Q117: 52.75519235 | R117: 52.66333295 | S117: 52.59433578 | T117: 52.54405325 | U117: 52.50918716 | V117: 52.48728692 | W117: 52.47673809 | X117: 52.47673809 | Y117: 52.48728692 | Z117: 52.50918716 | AA117: 52.54405325 | AB117: 52.59433578 | AC117: 52.66333295 | AD117: 52.75519235 | AE117: 52.87487748 | AF117: 53.02804397 | AG117: 53.22089214 | AH117: 53.45975174 | AI117: 53.75076334 | AJ117: 54.09895372 | AK117: 54.50778045 | AL117: 54.97752643 | AM117: 55.50475925 | AN117: 56.08048865 | AO117: 56.68944362 | AP117: 57.30896052 | AQ117: 57.90553761 | AR117: 58.4441 | AS117: 54.0773 | BX117: 0.997371783 | BY117: 105.0107284 | BZ117: 105.3085918
B118: 1.639 | C118: 58.3917 | D118: 57.87746598 | E118: 57.29786061 | F118: 56.69455423 | G118: 56.09656554 | H118: 55.52822534 | I118: 55.00534265 | J118: 54.53725751 | K118: 54.12829389 | L118: 53.77843049 | M118: 53.48498658 | N118: 53.24315573 | O118: 53.04724478 | P118: 52.89107813 | Q118: 52.76865641 | R118: 52.67439532 | S118: 52.60339125 | T118: 52.55151282 | U118: 52.51546096 | V118: 52.49277954 | W118: 52.48184236 | X118: 52.48184236 | Y118: 52.49277954 | Z118: 52.51546096 | AA118: 52.55151282 | AB118: 52.60339125 | AC118: =f*(AB117+AD117)+(1-2*f)*AC117 -> 52.67439532 | AD118: 52.76865641 | AE118: 52.89107813 | AF118: 53.04724478 | AG118: 53.24315573 | AH118: 53.48498658 | AI118: 53.77843049 | AJ118: 54.12829389 | AK118: 54.53725751 | AL118: 55.00534265 | AM118: 55.52822534 | AN118: 56.09656554 | AO118: 56.69455423 | AP118: 57.29786061 | AQ118: 57.87746598 | AR118: 58.3917 | AS118: 54.0967 | BX118: 0.9973518649 | BY118: 106.1485174 | BZ118: 106.449355
B119: 1.654 | C119: 58.3368 | D119: 57.84583468 | E119: 57.28639238 | F119: 56.69712731 | G119: 56.11091158 | H119: 55.55022091 | I119: 55.03185759 | J119: 54.5658647 | K119: 54.15689077 | L119: 53.80573024 | M119: 53.50996064 | N119: 53.26537504 | O119: 53.0664759 | P119: 52.90740632 | Q119: 52.78228252 | R119: 52.68564872 | S119: 52.61264559 | T119: 52.55917084 | U119: 52.52193053 | V119: 52.49846224 | W119: 52.48713455 | X119: 52.48713455 | Y119: 52.49846224 | Z119: 52.52193053 | AA119: 52.55917084 | AB119: 52.61264559 | AC119: 52.68564872 | AD119: 52.78228252 | AE119: 52.90740632 | AF119: 53.0664759 | AG119: 53.26537504 | AH119: 53.50996064 | AI119: 53.80573024 | AJ119: 54.15689077 | AK119: 54.5658647 | AL119: 55.03185759 | AM119: 55.55022091 | AN119: 56.11091158 | AO119: 56.69712731 | AP119: 57.28639238 | AQ119: 57.84583468 | AR119: 58.3368 | AS119: 54.1118 | BX119: 0.9974338076 | BY119: 107.2862914 | BZ119: 107.5901148
B120: 1.669 | C120: 58.2806 | D120: 57.81270066 | E120: 57.27196201 | F120: 56.6986028 | G120: 56.12326241 | H120: 55.57070189 | I120: 55.05719812 | J120: 54.59345452 | K120: 54.184865 | L120: 53.83253231 | M120: 53.53472709 | N120: 53.28748139 | O120: 53.08574827 | P120: 52.9238317 | Q120: 52.79606801 | R120: 52.69708292 | S120: 52.6220948 | T120: 52.56702621 | U120: 52.52859441 | V120: 52.50433672 | W120: 52.49261569 | X120: 52.49261569 | Y120: 52.50433672 | Z120: 52.52859441 | AA120: 52.56702621 | AB120: 52.6220948 | AC120: 52.69708292 | AD120: 52.79606801 | AE120: 52.9238317 | AF120: 53.08574827 | AG120: 53.28748139 | AH120: 53.53472709 | AI120: 53.83253231 | AJ120: 54.184865 | AK120: 54.59345452 | AL120: 55.05719812 | AM120: 55.57070189 | AN120: 56.12326241 | AO120: 56.6986028 | AP120: 57.27196201 | AQ120: 57.81270066 | AR120: 58.2806 | AS120: 54.1271 | BX120: 0.9973314543 | BY120: 108.4808795 | BZ120: 108.787909
B121: 1.684 | C121: 58.2337 | D121: 57.77745583 | E121: 57.25617787 | F121: 56.69764416 | G121: 56.13428493 | H121: 55.58960032 | I121: 55.08127562 | J121: 54.62014197 | K121: 54.21208604 | L121: 53.85891657 | M121: 53.55919137 | N121: 53.30950361 | O121: 53.10501434 | P121: 52.94035728 | Q121: 52.80999314 | R121: 52.70869436 | S121: 52.63173328 | T121: 52.57507627 | U121: 52.53545285 | V121: 52.51040284 | W121: 52.49828715 | X121: 52.49828715 | Y121: 52.51040284 | Z121: 52.53545285 | AA121: 52.57507627 | AB121: 52.63173328 | AC121: 52.70869436 | AD121: 52.80999314 | AE121: 52.94035728 | AF121: 53.10501434 | AG121: 53.30950361 | AH121: 53.55919137 | AI121: 53.85891657 | AJ121: 54.21208604 | AK121: 54.62014197 | AL121: 55.08127562 | AM121: 55.58960032 | AN121: 56.13428493 | AO121: 56.69764416 | AP121: 57.25617787 | AQ121: 57.77745583 | AR121: 58.2337 | AS121: 54.1514 | BX121: 0.9973151936 | BY121: 109.6186266 | BZ121: 109.9286621
B122: 1.699 | C122: 58.175 | D122: 57.74598787 | E122: 57.2381509 | F122: 56.69530923 | G122: 56.14332104 | H122: 55.60719382 | I122: 55.10411 | J122: 54.64582474 | K122: 54.23864401 | L122: 53.8847767 | M122: 53.58340303 | N122: 53.33137385 | O122: 53.12428799 | P122: 52.95695063 | Q122: 52.82405702 | R122: 52.72047066 | S122: 52.64155783 | T122: 52.58331833 | U122: 52.5425045 | V122: 52.51666138 | W122: 52.50414958 | X122: 52.50414958 | Y122: 52.51666138 | Z122: 52.5425045 | AA122: 52.58331833 | AB122: 52.64155783 | AC122: 52.72047066 | AD122: 52.82405702 | AE122: 52.95695063 | AF122: 53.12428799 | AG122: 53.33137385 | AH122: 53.58340303 | AI122: 53.8847767 | AJ122: 54.23864401 | AK122: 54.64582474 | AL122: 55.10411 | AM122: 55.60719382 | AN122: 56.14332104 | AO122: 56.69530923 | AP122: 57.2381509 | AQ122: 57.74598787 | AR122: 58.175 | AS122: 54.1667 | BX122: 0.9974144394 | BY122: 110.7563686 | BZ122: 111.0694119
B123: 1.714 | C123: 58.1208 | D123: 57.70784682 | E123: 57.22121314 | F123: 56.69088349 | G123: 56.1509957 | H123: 55.62318256 | I123: 55.12578672 | J123: 54.67055274 | K123: 54.26444083 | L123: 53.91017685 | M123: 53.6072794 | N123: 53.35312062 | O123: 53.14352113 | P123: 52.97361696 | Q123: 52.83823795 | R123: 52.73240947 | S123: 52.65156106 | T123: 52.59175011 | U123: 52.54974839 | V123: 52.52311202 | W123: 52.51020368 | X123: 52.51020368 | Y123: 52.52311202 | Z123: 52.54974839 | AA123: 52.59175011 | AB123: 52.65156106 | AC123: 52.73240947 | AD123: 52.83823795 | AE123: 52.97361696 | AF123: 53.14352113 | AG123: 53.35312062 | AH123: 53.6072794 | AI123: 53.91017685 | AJ123: 54.26444083 | AK123: 54.67055274 | AL123: 55.12578672 | AM123: 55.62318256 | AN123: 56.1509957 | AO123: 56.69088349 | AP123: 57.22121314 | AQ123: 57.70784682 | AR123: 58.1208 | AS123: 54.1869 | BX123: 0.9973122494 | BY123: 111.8372111 | BZ123: 112.153121
B124: 1.729 | C124: 58.0686 | D124: 57.67219496 | E124: 57.20006993 | F124: 56.68625858 | G124: 56.15683827 | H124: 55.63790061 | I124: 55.14618762 | J124: 54.69432148 | K124: 54.28952853 | L124: 53.93503162 | M124: 53.63086263 | N124: 53.37468157 | O124: 53.16272854 | P124: 52.99032268 | Q124: 52.85253659 | R124: 52.7444966 | S124: 52.66174047 | T124: 52.60036748 | U124: 52.55718324 | V124: 52.52975462 | W124: 52.51644965 | X124: 52.51644965 | Y124: 52.52975462 | Z124: 52.55718324 | AA124: 52.60036748 | AB124: 52.66174047 | AC124: 52.7444966 | AD124: 52.85253659 | AE124: 52.99032268 | AF124: 53.16272854 | AG124: 53.37468157 | AH124: 53.63086263 | AI124: 53.93503162 | AJ124: 54.28952853 | AK124: 54.69432148 | AL124: 55.14618762 | AM124: 55.63790061 | AN124: 56.15683827 | AO124: 56.68625858 | AP124: 57.20006993 | AQ124: 57.67219496 | AR124: 58.0686 | AS124: 54.2039 | BX124: 0.997397446 | BY124: 112.9749111 | BZ124: 113.2938642
B125: 1.744 | C125: 58.0108 | D125: 57.63555625 | E125: 57.17989913 | F125: 56.67870586 | G125: 56.16191052 | H125: 55.65107384 | I125: 55.16546836 | J125: 54.71709883 | K125: =f*(J124+L124)+(1-2*f)*K124 -> 54.31386533 | L125: 53.95938384 | M125: 53.6540826 | N125: 53.39608223 | O125: 53.18186427 | P125: 53.00707418 | Q125: 52.86692987 | R125: 52.75673073 | S125: 52.67208715 | T125: 52.60916849 | U125: 52.56480693 | V125: 52.53658864 | W125: 52.52288754 | X125: 52.52288754 | Y125: 52.53658864 | Z125: 52.56480693 | AA125: 52.60916849 | AB125: 52.67208715 | AC125: 52.75673073 | AD125: 52.86692987 | AE125: 53.00707418 | AF125: 53.18186427 | AG125: 53.39608223 | AH125: 53.6540826 | AI125: 53.95938384 | AJ125: 54.31386533 | AK125: 54.71709883 | AL125: 55.16546836 | AM125: 55.65107384 | AN125: 56.16191052 | AO125: 56.67870586 | AP125: 57.17989913 | AQ125: 57.63555625 | AR125: 58.0108 | AS125: 54.2178 | BX125: 0.9972671806 | BY125: 114.1125691 | BZ125: 114.434604
B126: 1.759 | C126: 57.95 | D126: 57.59664656 | E126: 57.15786551 | F126: 56.67115647 | G126: 56.16479374 | H126: 55.66328249 | I126: 55.18348576 | J126: 54.73893884 | K126: 54.33745501 | L126: 53.98318073 | M126: 53.67697012 | N126: 53.41726726 | O126: 53.20094227 | P126: 53.02383826 | Q126: 52.88141947 | R126: 52.76909632 | S126: 52.68259921 | T126: 52.61814773 | U126: 52.57261819 | V126: 52.54361308 | W126: 52.52951711 | X126: 52.52951711 | Y126: 52.54361308 | Z126: 52.57261819 | AA126: 52.61814773 | AB126: 52.68259921 | AC126: 52.76909632 | AD126: 52.88141947 | AE126: 53.02383826 | AF126: 53.20094227 | AG126: 53.41726726 | AH126: 53.67697012 | AI126: 53.98318073 | AJ126: 54.33745501 | AK126: 54.73893884 | AL126: 55.18348576 | AM126: 55.66328249 | AN126: 56.16479374 | AO126: 56.67115647 | AP126: 57.15786551 | AQ126: 57.59664656 | AR126: 57.95 | AS126: 54.2341 | BX126: 0.9973295678 | BY126: 115.1933841 | BZ126: 115.5183038
B127: 1.774 | C127: 57.8926 | D127: 57.55531062 | E127: 57.13467455 | F127: 56.66164662 | G127: 56.16714123 | H127: 55.67378951 | I127: 55.20054212 | J127: 54.75977582 | K127: 54.36029834 | L127: 54.00643734 | M127: 53.69947387 | N127: 53.43825655 | O127: 53.21992017 | P127: 53.04062143 | Q127: 52.89598188 | R127: 52.78159279 | S127: 52.69326645 | T127: 52.62730351 | U127: 52.58061388 | V127: 52.55082718 | W127: 52.53633774 | X127: 52.53633774 | Y127: 52.55082718 | Z127: 52.58061388 | AA127: 52.62730351 | AB127: 52.69326645 | AC127: 52.78159279 | AD127: 52.89598188 | AE127: 53.04062143 | AF127: 53.21992017 | AG127: 53.43825655 | AH127: 53.69947387 | AI127: 54.00643734 | AJ127: 54.36029834 | AK127: 54.75977582 | AL127: 55.20054212 | AM127: 55.67378951 | AN127: 56.16714123 | AO127: 56.66164662 | AP127: 57.13467455 | AQ127: 57.55531062 | AR127: 57.8926 | AS127: 54.2483 | BX127: 0.9973465496 | BY127: 116.3311181 | BZ127: 116.6590371
B128: 1.789 | C128: 57.8307 | D128: 57.51498158 | E128: 57.10932365 | F128: 56.6512543 | G128: 56.16769946 | H128: 55.68351741 | I128: 55.21625878 | J128: 54.77975428 | K128: 54.38237083 | L128: 54.0291297 | M128: 53.72160911 | N128: 53.45900539 | O128: 53.23880935 | P128: 53.057392 | Q128: 52.9106192 | R128: 52.7942038 | S128: 52.70408745 | T128: 52.63662931 | U128: 52.58879271 | V128: 52.55822908 | W128: 52.54334876 | X128: 52.54334876 | Y128: 52.55822908 | Z128: 52.58879271 | AA128: 52.63662931 | AB128: 52.70408745 | AC128: 52.7942038 | AD128: 52.9106192 | AE128: 53.057392 | AF128: 53.23880935 | AG128: 53.45900539 | AH128: 53.72160911 | AI128: 54.0291297 | AJ128: 54.38237083 | AK128: 54.77975428 | AL128: 55.21625878 | AM128: 55.68351741 | AN128: 56.16769946 | AO128: 56.6512543 | AP128: 57.10932365 | AQ128: 57.51498158 | AR128: 57.8307 | AS128: 54.2573 | BX128: 0.9973949074 | BY128: 117.5826772 | BZ128: 117.9138401
B129: 1.804 | C129: 57.7734 | D129: 57.47146246 | E129: 57.08396328 | F129: 56.63892261 | G129: 56.16739597 | H129: 55.69170616 | I129: 55.23113981 | J129: 54.79868382 | K129: 54.40373002 | L129: 54.05125254 | M129: 53.74334308 | N129: 53.47952524 | O129: 53.25757324 | P129: 53.07415549 | Q129: 52.92530827 | R129: 52.80692915 | S129: 52.7150511 | T129: 52.6461236 | U129: 52.5971506 | V129: 52.56581778 | W129: 52.55054891 | X129: 52.55054891 | Y129: 52.56581778 | Z129: 52.5971506 | AA129: 52.6461236 | AB129: 52.7150511 | AC129: 52.80692915 | AD129: 52.92530827 | AE129: 53.07415549 | AF129: 53.25757324 | AG129: 53.47952524 | AH129: 53.74334308 | AI129: 54.05125254 | AJ129: 54.40373002 | AK129: 54.79868382 | AL129: 55.23113981 | AM129: 55.69170616 | AN129: 56.16739597 | AO129: 56.63892261 | AP129: 57.08396328 | AQ129: 57.47146246 | AR129: 57.7734 | AS129: 54.2773 | BX129: 0.9974346439 | BY129: 118.6635368 | BZ129: 118.9975306
B130: 1.819 | C130: 57.7179 | D130: 57.43006167 | E130: 57.05612063 | F130: 56.62610682 | G130: 56.16538153 | H130: 55.69902396 | I130: 55.2447416 | J130: 54.81683004 | K130: 54.42428308 | L130: 54.07281771 | M130: 53.76467773 | N130: 53.4997829 | O130: 53.27621884 | P130: 53.09088316 | Q130: 52.9400509 | R130: 52.81975224 | S130: 52.7261562 | T130: 52.655779 | U130: 52.60568617 | V130: 52.57359066 | W130: 52.55793708 | X130: 52.55793708 | Y130: 52.57359066 | Z130: 52.60568617 | AA130: 52.655779 | AB130: 52.7261562 | AC130: 52.81975224 | AD130: 52.9400509 | AE130: 53.09088316 | AF130: 53.27621884 | AG130: 53.4997829 | AH130: 53.76467773 | AI130: 54.07281771 | AJ130: 54.42428308 | AK130: 54.81683004 | AL130: 55.2447416 | AM130: 55.69902396 | AN130: 56.16538153 | AO130: 56.62610682 | AP130: 57.05612063 | AQ130: 57.43006167 | AR130: 57.7179 | AS130: 54.2924 | BX130: 0.9973409934 | BY130: 119.8581302 | BZ130: 120.1952903
B131: 1.834 | C131: 57.6623 | D131: 57.38839907 | E131: 57.02898864 | F131: 56.61124643 | G131: 56.16265624 | H131: 55.7048668 | I131: 55.25750167 | J131: 54.83394194 | K131: 54.44416127 | L131: 54.09378161 | M131: 53.7856028 | N131: 53.51978166 | O131: 53.29471644 | P131: 53.10757836 | Q131: 52.95482523 | R131: 52.83267286 | S131: 52.73739113 | T131: 52.66559402 | U131: 52.61439455 | V131: 52.58154643 | W131: 52.56551139 | X131: 52.56551139 | Y131: 52.58154643 | Z131: 52.61439455 | AA131: 52.66559402 | AB131: 52.73739113 | AC131: 52.83267286 | AD131: 52.95482523 | AE131: 53.10757836 | AF131: =f*(AE130+AG130)+(1-2*f)*AF130 -> 53.29471644 | AG131: 53.51978166 | AH131: 53.7856028 | AI131: 54.09378161 | AJ131: 54.44416127 | AK131: 54.83394194 | AL131: 55.25750167 | AM131: 55.7048668 | AN131: 56.16265624 | AO131: 56.61124643 | AP131: 57.02898864 | AQ131: 57.38839907 | AR131: 57.6623 | AS131: 54.3107 | BX131: 0.9973719119 | BY131: 120.9389605 | BZ131: 121.2789746
B132: 1.849 | C132: 57.608 | D132: 57.34702351 | E132: 57.00076358 | F132: 56.59631999 | G132: 56.15820499 | H132: 55.70991082 | I132: 55.26902041 | J132: 54.85028664 | K132: 54.46322627 | L132: 54.11420138 | M132: 53.80609845 | N132: 53.53950227 | O132: 53.31306829 | P132: 53.12421624 | Q132: 52.96963205 | R132: 52.84567478 | S132: 52.74875466 | T132: 52.67556062 | U132: 52.62327424 | V132: 52.58968179 | W132: 52.57327028 | X132: 52.57327028 | Y132: 52.58968179 | Z132: 52.62327424 | AA132: 52.67556062 | AB132: 52.74875466 | AC132: 52.84567478 | AD132: 52.96963205 | AE132: 53.12421624 | AF132: 53.31306829 | AG132: 53.53950227 | AH132: 53.80609845 | AI132: 54.11420138 | AJ132: 54.46322627 | AK132: 54.85028664 | AL132: 55.26902041 | AM132: 55.70991082 | AN132: 56.15820499 | AO132: 56.59631999 | AP132: 57.00076358 | AQ132: 57.34702351 | AR132: 57.608 | AS132: 54.3227 | BX132: 0.9973606807 | BY132: 122.1335759 | BZ132: 122.4767276
B133: 1.864 | C133: 57.5572 | D133: 57.30575733 | E133: 56.97261019 | F133: 56.58002737 | G133: 56.15327958 | H133: 55.71349329 | I133: 55.27974137 | J133: 54.86561248 | K133: 54.48163053 | L133: 54.13400233 | M133: 53.82618236 | N133: 53.55893559 | O133: 53.33125309 | P133: 53.14079746 | Q133: 52.98445153 | R133: 52.85875727 | S133: 52.76023502 | T133: 52.68567723 | U133: 52.63231969 | V133: 52.59799515 | W133: 52.58121134 | X133: 52.58121134 | Y133: 52.59799515 | Z133: 52.63231969 | AA133: 52.68567723 | AB133: 52.76023502 | AC133: 52.85875727 | AD133: 52.98445153 | AE133: 53.14079746 | AF133: 53.33125309 | AG133: 53.55893559 | AH133: 53.82618236 | AI133: 54.13400233 | AJ133: 54.48163053 | AK133: 54.86561248 | AL133: 55.27974137 | AM133: 55.71349329 | AN133: 56.15327958 | AO133: 56.58002737 | AP133: 56.97261019 | AQ133: 57.30575733 | AR133: 57.5572 | AS133: 54.3403 | BX133: 0.9974003227 | BY133: 123.2713229 | BZ133: 123.6174415
B134: 1.879 | C134: 57.502 | D134: 57.26622291 | E134: 56.94385099 | F134: 56.56349594 | G134: 56.14697063 | H134: 55.71641315 | I134: 55.28923638 | J134: 54.88019971 | K134: 54.49922106 | L134: 54.15326438 | M134: 53.84581455 | N134: 53.57807959 | O134: 53.34926609 | P134: 53.15730215 | Q134: 52.99928299 | R134: 52.87190501 | S134: 52.77183073 | T134: 52.69593542 | U134: 52.6415292 | V134: 52.6064826 | W134: 52.58933253 | X134: 52.58933253 | Y134: 52.6064826 | Z134: 52.6415292 | AA134: 52.69593542 | AB134: 52.77183073 | AC134: 52.87190501 | AD134: 52.99928299 | AE134: 53.15730215 | AF134: 53.34926609 | AG134: 53.57807959 | AH134: 53.84581455 | AI134: 54.15326438 | AJ134: 54.49922106 | AK134: 54.88019971 | AL134: 55.28923638 | AM134: 55.71641315 | AN134: 56.14697063 | AO134: 56.56349594 | AP134: 56.94385099 | AQ134: 57.26622291 | AR134: 57.502 | AS134: 54.3576 | BX134: 0.9973978704 | BY134: 124.3521655 | BZ134: 124.7011166
B135: 1.894 | C135: 57.4464 | D135: 57.22432219 | E135: 56.91579464 | F135: 56.5459942 | G135: 56.14018087 | H135: 55.71804898 | I135: 55.29801385 | J135: 54.89377617 | K135: 54.51616717 | L135: 54.17189673 | M135: 53.86503142 | N135: 53.59691256 | O135: 53.36709653 | P135: 53.17372704 | Q135: 53.01410937 | R135: 52.88511647 | S135: 52.78353023 | T135: 52.70633337 | U135: 52.65089675 | V135: 52.61514222 | W135: 52.59763095 | X135: 52.59763095 | Y135: 52.61514222 | Z135: 52.65089675 | AA135: 52.70633337 | AB135: 52.78353023 | AC135: 52.88511647 | AD135: 53.01410937 | AE135: 53.17372704 | AF135: 53.36709653 | AG135: 53.59691256 | AH135: 53.86503142 | AI135: 54.17189673 | AJ135: 54.51616717 | AK135: 54.89377617 | AL135: 55.29801385 | AM135: 55.71804898 | AN135: 56.14018087 | AO135: 56.5459942 | AP135: 56.91579464 | AQ135: 57.22432219 | AR135: 57.4464 | AS135: 54.3708 | BX135: 0.9973743674 | BY135: 125.4898865 | BZ135: 125.8418241
B136: 1.909 | C136: 57.3941 | D136: 57.18249167 | E136: 56.88614647 | F136: 56.5285686 | G136: 56.13228479 | H136: 55.71906354 | I136: 55.30565778 | J136: 54.90666101 | K136: 54.53229873 | L136: 54.18999599 | M136: 53.8837797 | N136: 53.61544619 | O136: 53.38473195 | P136: 53.19005856 | Q136: 53.02892781 | R136: 52.89837776 | S136: 52.79533154 | T136: 52.71686252 | U136: 52.66042034 | V136: 52.62396961 | W136: 52.60610414 | X136: 52.60610414 | Y136: 52.62396961 | Z136: 52.66042034 | AA136: 52.71686252 | AB136: 52.79533154 | AC136: 52.89837776 | AD136: 53.02892781 | AE136: 53.19005856 | AF136: 53.38473195 | AG136: 53.61544619 | AH136: 53.8837797 | AI136: 54.18999599 | AJ136: 54.53229873 | AK136: 54.90666101 | AL136: 55.30565778 | AM136: 55.71906354 | AN136: 56.13228479 | AO136: 56.5285686 | AP136: 56.88614647 | AQ136: 57.18249167 | AR136: 57.3941 | AS136: 54.384 | BX136: 0.9973894386 | BY136: 126.6275804 | BZ136: 126.9825284
B137: 1.924 | C137: 57.3419 | D137: 57.14148996 | E137: 56.85651776 | F137: 56.50983992 | G137: 56.12408926 | H137: 55.71897426 | I137: 55.31262987 | J137: 54.91858092 | K137: 54.54781141 | L137: 54.20745717 | M137: 53.90211008 | N137: 53.63364906 | O137: 53.40217107 | P137: 53.20628887 | Q137: 53.04372492 | R137: 52.91168607 | S137: 52.80722373 | T137: 52.72752067 | U137: 52.67009362 | V137: 52.63296248 | W137: 52.61474872 | X137: 52.61474872 | Y137: 52.63296248 | Z137: 52.67009362 | AA137: 52.72752067 | AB137: 52.80722373 | AC137: 52.91168607 | AD137: 53.04372492 | AE137: 53.20628887 | AF137: 53.40217107 | AG137: 53.63364906 | AH137: 53.90211008 | AI137: 54.20745717 | AJ137: 54.54781141 | AK137: 54.91858092 | AL137: 55.31262987 | AM137: 55.71897426 | AN137: 56.12408926 | AO137: 56.50983992 | AP137: 56.85651776 | AQ137: 57.14148996 | AR137: 57.3419 | AS137: 54.3987 | BX137: 0.997332615 | BY137: 127.7652645 | BZ137: 128.1232295
B138: 1.939 | C138: 57.291 | D138: 57.10057279 | E138: 56.82666019 | F138: 56.49093371 | G138: 56.11471942 | H138: 55.71837939 | I138: 55.31857928 | J138: 54.92984517 | K138: 54.56252848 | L138: 54.22439611 | M138: 53.91995818 | N138: =f*(M137+O137)+(1-2*f)*N137 -> 53.65154407 | O138: 53.41939484 | P138: 53.22241061 | Q138: 53.05849513 | R138: 52.92502955 | S138: 52.81920402 | T138: 52.73829939 | U138: 52.67991422 | V138: 52.64211605 | W138: 52.62356183 | X138: 52.62356183 | Y138: 52.64211605 | Z138: 52.67991422 | AA138: 52.73829939 | AB138: 52.81920402 | AC138: 52.92502955 | AD138: 53.05849513 | AE138: 53.22241061 | AF138: 53.41939484 | AG138: 53.65154407 | AH138: 53.91995818 | AI138: 54.22439611 | AJ138: 54.56252848 | AK138: 54.92984517 | AL138: 55.31857928 | AM138: 55.71837939 | AN138: 56.11471942 | AO138: 56.49093371 | AP138: 56.82666019 | AQ138: 57.10057279 | AR138: 57.291 | AS138: 54.4089 | BX138: 0.9973774693 | BY138: 128.9598767 | BZ138: 129.3209623
B139: 1.954 | C139: 57.238 | D139: 57.06017663 | E139: 56.79675025 | F139: 56.47134283 | G139: 56.10498116 | H139: 55.71670516 | I139: 55.3239338 | J139: 54.94020844 | K139: 54.57664993 | L139: 54.24069987 | M139: 53.93738906 | N139: 53.66909159 | O139: 53.43641016 | P139: 53.23841162 | Q139: 53.07322895 | R139: 52.93840377 | S139: 52.83126252 | T139: 52.74919591 | U139: 52.68987567 | V139: 52.65142764 | W139: 52.63253968 | X139: 52.63253968 | Y139: 52.65142764 | Z139: 52.68987567 | AA139: 52.74919591 | AB139: 52.83126252 | AC139: 52.93840377 | AD139: 53.07322895 | AE139: 53.23841162 | AF139: 53.43641016 | AG139: 53.66909159 | AH139: 53.93738906 | AI139: 54.24069987 | AJ139: 54.57664993 | AK139: 54.94020844 | AL139: 55.3239338 | AM139: 55.71670516 | AN139: 56.10498116 | AO139: 56.47134283 | AP139: 56.79675025 | AQ139: 57.06017663 | AR139: 57.238 | AS139: 54.4202 | BX139: 0.997411828 | BY139: 130.0976288 | BZ139: 130.461657
B140: 1.969 | C140: 57.1904 | D140: 57.01875582 | E140: 56.76675943 | F140: 56.45152626 | G140: 56.09437745 | H140: 55.71452998 | I140: 55.32831089 | J140: 54.94996659 | K140: 54.59000886 | L140: 54.25649306 | M140: 53.954331 | N140: 53.68632516 | O140: 53.4531922 | P140: 53.25429027 | Q140: 53.08791806 | R140: 52.95179922 | S140: 52.84339541 | T140: 52.76020222 | U140: 52.69997512 | V140: 52.66089219 | W140: 52.64167902 | X140: 52.64167902 | Y140: 52.66089219 | Z140: 52.69997512 | AA140: 52.76020222 | AB140: 52.84339541 | AC140: 52.95179922 | AD140: 53.08791806 | AE140: 53.25429027 | AF140: 53.4531922 | AG140: 53.68632516 | AH140: 53.954331 | AI140: 54.25649306 | AJ140: 54.59000886 | AK140: 54.94996659 | AL140: 55.32831089 | AM140: 55.71452998 | AN140: 56.09437745 | AO140: 56.45152626 | AP140: 56.76675943 | AQ140: 57.01875582 | AR140: 57.1904 | AS140: 54.4354 | BX140: 0.997428596 | BY140: 131.2353128 | BZ140: 131.6023486
B141: 1.984 | C141: 57.1436 | D141: 56.97987572 | E141: 56.73616099 | F141: 56.4312445 | G141: 56.08339423 | H141: 55.71144694 | I141: 55.33212127 | J141: 54.95886332 | K141: 54.60280334 | L141: 54.27166422 | M141: 53.9708582 | N141: 53.70319914 | O141: 53.4697556 | P141: 53.27003046 | Q141: 53.10255679 | R141: 52.96520972 | S141: 52.85559409 | T141: 52.77131484 | U141: 52.71020617 | V141: 52.67050659 | W141: 52.65097571 | X141: 52.65097571 | Y141: 52.67050659 | Z141: 52.71020617 | AA141: 52.77131484 | AB141: 52.85559409 | AC141: 52.96520972 | AD141: 53.10255679 | AE141: 53.27003046 | AF141: 53.4697556 | AG141: 53.70319914 | AH141: 53.9708582 | AI141: 54.27166422 | AJ141: 54.60280334 | AK141: 54.95886332 | AL141: 55.33212127 | AM141: 55.71144694 | AN141: 56.08339423 | AO141: 56.4312445 | AP141: 56.73616099 | AQ141: 56.97987572 | AR141: 57.1436 | AS141: 54.4484 | BX141: 0.9972981476 | BY141: 132.3160955 | BZ141: 132.6860026
B142: 1.999 | C142: 57.1012 | D142: =f*(C141+E141)+(1-2*f)*D141 -> 56.94117066 | E142: 56.70654723 | F142: 56.41047009 | G142: 56.07173438 | H142: 55.70787676 | I142: 55.33505726 | J142: 54.96718492 | K142: 54.61486182 | L142: 54.28634153 | M142: 53.98689705 | N142: 53.71975504 | O142: 53.48607095 | P142: 53.28563601 | Q142: 53.11713417 | R142: 52.97862816 | S142: 52.86785363 | T142: 52.78252641 | U142: 52.72056541 | V142: 52.68026564 | W142: 52.66042614 | X142: 52.66042614 | Y142: 52.68026564 | Z142: 52.72056541 | AA142: 52.78252641 | AB142: 52.86785363 | AC142: 52.97862816 | AD142: 53.11713417 | AE142: 53.28563601 | AF142: 53.48607095 | AG142: 53.71975504 | AH142: 53.98689705 | AI142: 54.28634153 | AJ142: 54.61486182 | AK142: 54.96718492 | AL142: 55.33505726 | AM142: 55.70787676 | AN142: 56.07173438 | AO142: 56.41047009 | AP142: 56.70654723 | AQ142: 56.94117066 | AR142: 57.1012 | AS142: 54.4633 | BX142: 0.9974025589 | BY142: 133.4538375 | BZ142: 133.8266879
B143: 2.014 | C143: 57.0567 | D143: 56.90507675 | E143: 56.67681156 | F143: 56.38982885 | G143: 56.05957861 | H143: 55.70354037 | I143: 55.33745105 | J143: 54.97470875 | K143: 54.62637931 | L143: 54.30041047 | M143: 54.00252727 | N143: 53.73594436 | O143: 53.50215925 | P143: 53.30108751 | Q143: 53.13164828 | R143: 52.99204662 | S143: 52.88016685 | T143: 52.79383264 | U143: 52.73104665 | V143: 52.69016577 | W143: 52.6700259 | X143: 52.6700259 | Y143: 52.69016577 | Z143: 52.73104665 | AA143: 52.79383264 | AB143: 52.88016685 | AC143: 52.99204662 | AD143: 53.13164828 | AE143: 53.30108751 | AF143: 53.50215925 | AG143: 53.73594436 | AH143: 54.00252727 | AI143: 54.30041047 | AJ143: 54.62637931 | AK143: 54.97470875 | AL143: 55.33745105 | AM143: 55.70354037 | AN143: 56.05957861 | AO143: 56.38982885 | AP143: 56.67681156 | AQ143: 56.90507675 | AR143: 57.0567 | AS143: 54.4743 | BX143: 0.9974369205 | BY143: 134.5916134 | BZ143: 134.96737
B144: 2.029 | C144: 57.0127 | D144: 56.86799194 | E144: 56.64839985 | F144: 56.36889295 | G144: 56.04710054 | H144: 55.69867694 | I144: 55.33907057 | J144: 54.98168271 | K144: 54.63719895 | L144: 54.3140003 | M144: 54.01767257 | N144: 53.75181426 | O144: 53.5179883 | P144: 53.31639356 | Q144: 53.14608582 | R144: 53.00546044 | S144: 52.89252761 | T144: 52.80522694 | U144: 52.7416459 | V144: 52.70020174 | W144: 52.679771 | X144: 52.679771 | Y144: 52.70020174 | Z144: 52.7416459 | AA144: 52.80522694 | AB144: 52.89252761 | AC144: 53.00546044 | AD144: 53.14608582 | AE144: 53.31639356 | AF144: 53.5179883 | AG144: 53.75181426 | AH144: 54.01767257 | AI144: =f*(AH143+AJ143)+(1-2*f)*AI143 -> 54.3140003 | AJ144: 54.63719895 | AK144: 54.98168271 | AL144: 55.33907057 | AM144: 55.69867694 | AN144: 56.04710054 | AO144: 56.36889295 | AP144: 56.64839985 | AQ144: 56.86799194 | AR144: 57.0127 | AS144: 54.49 | BX144: 0.9974676796 | BY144: 135.7293605 | BZ144: 136.108049
B145: 2.044 | C145: 56.9724 | D145: 56.83175773 | E145: 56.61940882 | F145: 56.34843222 | G145: 56.03421448 | H145: 55.69326593 | I145: 55.34014405 | J145: 54.98792663 | K145: 54.6474982 | L145: 54.32700236 | M145: 54.03241584 | N145: 53.76731379 | O145: 53.53358405 | P145: 53.33153243 | Q145: 53.16044825 | R145: 53.01886006 | S145: 52.90493027 | T145: 52.81670418 | U145: 52.75235729 | V145: 52.71036952 | W145: 52.68965684 | X145: 52.68965684 | Y145: 52.71036952 | Z145: 52.75235729 | AA145: 52.81670418 | AB145: 52.90493027 | AC145: 53.01886006 | AD145: 53.16044825 | AE145: 53.33153243 | AF145: 53.53358405 | AG145: 53.76731379 | AH145: 54.03241584 | AI145: 54.32700236 | AJ145: 54.6474982 | AK145: 54.98792663 | AL145: 55.34014405 | AM145: 55.69326593 | AN145: 56.03421448 | AO145: 56.34843222 | AP145: 56.61940882 | AQ145: 56.83175773 | AR145: 56.9724 | AS145: 54.5003 | BX145: 0.9973915662 | BY145: 136.8670365 | BZ145: 137.2487248
B146: 2.059 | C146: 56.9323 | D146: 56.79706097 | E146: 56.59104059 | F146: 56.32750909 | G146: 56.02128022 | H146: 55.68737561 | I146: 55.34058169 | J146: 54.99363098 | K146: 54.657143 | L146: 54.33953913 | M146: 54.04668252 | N146: 53.78249394 | O146: 53.54891217 | P146: 53.34651668 | Q146: 53.1747205 | R146: 53.03224315 | S146: 52.91736754 | T146: 52.82825863 | U146: 52.76317622 | V146: 52.72066392 | W146: 52.69967911 | X146: 52.69967911 | Y146: 52.72066392 | Z146: 52.76317622 | AA146: 52.82825863 | AB146: 52.91736754 | AC146: 53.03224315 | AD146: 53.1747205 | AE146: 53.34651668 | AF146: 53.54891217 | AG146: 53.78249394 | AH146: 54.04668252 | AI146: 54.33953913 | AJ146: 54.657143 | AK146: 54.99363098 | AL146: 55.34058169 | AM146: 55.68737561 | AN146: 56.02128022 | AO146: 56.32750909 | AP146: 56.59104059 | AQ146: 56.79706097 | AR146: 56.9323 | AS146: 54.5101 | BX146: 0.997348672 | BY146: 137.947802 | BZ146: 138.3323639
B147: 2.074 | C147: 56.8916 | D147: 56.76281193 | E147: 56.56321263 | F147: 56.30684907 | G147: 56.00788873 | H147: 55.68113885 | I147: 55.34050582 | J147: 54.99869359 | K147: 54.66628047 | L147: 54.35151361 | M147: 54.06055415 | N147: 53.79730369 | O147: 53.5640023 | P147: 53.3613228 | Q147: 53.18890703 | R147: 53.04559883 | S147: 52.9298353 | T147: 52.83988436 | U147: 52.77409724 | V147: 52.73108044 | W147: 52.70983305 | X147: 52.70983305 | Y147: 52.73108044 | Z147: 52.77409724 | AA147: 52.83988436 | AB147: 52.9298353 | AC147: 53.04559883 | AD147: 53.18890703 | AE147: 53.3613228 | AF147: 53.5640023 | AG147: 53.79730369 | AH147: 54.06055415 | AI147: 54.35151361 | AJ147: 54.66628047 | AK147: 54.99869359 | AL147: 55.34050582 | AM147: 55.68113885 | AN147: 56.00788873 | AO147: 56.30684907 | AP147: 56.56321263 | AQ147: 56.76281193 | AR147: 56.8916 | AS147: 54.5209 | BX147: 0.9973479326 | BY147: 139.0854841 | BZ147: 139.4730335
B148: 2.089 | C148: 56.8526 | D148: 56.72854843 | E148: 56.53574605 | F148: 56.28623772 | G148: 55.99444218 | H148: 55.6744212 | I148: 55.33993524 | J148: 55.00324155 | K148: 54.67481899 | L148: 54.36303332 | M148: 54.07396173 | N148: 53.81179518 | O148: 53.57881934 | P148: 53.37596654 | Q148: 53.20299134 | R148: 53.0589269 | S148: 52.94232526 | T148: 52.85157653 | U148: 52.78511514 | V148: 52.74161403 | W148: 52.72011405 | X148: 52.72011405 | Y148: 52.74161403 | Z148: 52.78511514 | AA148: 52.85157653 | AB148: 52.94232526 | AC148: 53.0589269 | AD148: 53.20299134 | AE148: 53.37596654 | AF148: 53.57881934 | AG148: 53.81179518 | AH148: 54.07396173 | AI148: 54.36303332 | AJ148: 54.67481899 | AK148: 55.00324155 | AL148: 55.33993524 | AM148: 55.6744212 | AN148: 55.99444218 | AO148: 56.28623772 | AP148: 56.53574605 | AQ148: 56.72854843 | AR148: 56.8526 | AS148: 54.5317 | BX148: 0.9974137344 | BY148: 140.2232131 | BZ148: 140.6137
B149: 2.104 | C149: 56.8118 | D149: 56.69528191 | E149: 56.50830769 | F149: 56.26577617 | G149: 55.98078471 | H149: 55.66742201 | I149: 55.33886698 | J149: 55.00724371 | K149: 54.68286909 | L149: 54.374024 | M149: 54.08698029 | N149: 53.82591972 | O149: 53.593395 | P149: 53.39042344 | Q149: 53.21698042 | R149: 53.07221535 | S149: 52.95483473 | T149: 52.86332847 | U149: 52.79622495 | V149: 52.75225973 | W149: 52.73051726 | X149: 52.73051726 | Y149: 52.75225973 | Z149: 52.79622495 | AA149: 52.86332847 | AB149: 52.95483473 | AC149: 53.07221535 | AD149: 53.21698042 | AE149: 53.39042344 | AF149: 53.593395 | AG149: 53.82591972 | AH149: 54.08698029 | AI149: 54.374024 | AJ149: 54.68286909 | AK149: 55.00724371 | AL149: 55.33886698 | AM149: 55.66742201 | AN149: 55.98078471 | AO149: 56.26577617 | AP149: 56.50830769 | AQ149: 56.69528191 | AR149: 56.8118 | AS149: 54.5408 | BX149: 0.9974357716 | BY149: 141.360955 | BZ149: 141.7543634
B150: 2.119 | C150: 56.7786 | D150: 56.66119023 | E150: 56.48142512 | F150: 56.24523104 | G150: 55.96705669 | H150: 55.66007088 | I150: 55.33738235 | J150: 55.01075112 | K150: 54.69038338 | L150: 54.38457306 | M150: 54.09955278 | N150: 53.83972739 | O150: 53.60769492 | P150: 53.40471144 | Q150: 53.23085685 | R150: 53.08546589 | S150: 52.96735458 | T150: 52.87513625 | U150: 52.8074209 | V150: 52.76301268 | W150: 52.74103781 | X150: 52.74103781 | Y150: 52.76301268 | Z150: 52.8074209 | AA150: 52.87513625 | AB150: 52.96735458 | AC150: 53.08546589 | AD150: 53.23085685 | AE150: 53.40471144 | AF150: 53.60769492 | AG150: 53.83972739 | AH150: 54.09955278 | AI150: 54.38457306 | AJ150: 54.69038338 | AK150: 55.01075112 | AL150: 55.33738235 | AM150: 55.66007088 | AN150: 55.96705669 | AO150: 56.24523104 | AP150: 56.48142512 | AQ150: 56.66119023 | AR150: 56.7786 | AS150: 54.5514 | BX150: 0.9974419442 | BY150: 142.5555211 | BZ150: 142.9520567
B151: 2.134 | C151: 56.749 | D151: 56.63101829 | E151: 56.45412078 | F151: 56.22491801 | G151: 55.95311566 | H151: 55.65247279 | I151: 55.33547459 | J151: 55.01378184 | K151: 54.69742729 | L151: 54.39463275 | M151: 54.11174386 | N151: 53.85317557 | O151: 53.62175089 | P151: 53.41880606 | Q151: =f*(P150+R150)+(1-2*f)*Q150 -> 53.24462958 | R151: 53.09866572 | S151: 52.97988344 | T151: 52.88699253 | U151: 52.81869854 | V151: 52.77386753 | W151: 52.75167081 | X151: 52.75167081 | Y151: 52.77386753 | Z151: 52.81869854 | AA151: 52.88699253 | AB151: 52.97988344 | AC151: 53.09866572 | AD151: 53.24462958 | AE151: 53.41880606 | AF151: 53.62175089 | AG151: 53.85317557 | AH151: 54.11174386 | AI151: 54.39463275 | AJ151: 54.69742729 | AK151: 55.01378184 | AL151: 55.33547459 | AM151: 55.65247279 | AN151: 55.95311566 | AO151: 56.22491801 | AP151: 56.45412078 | AQ151: 56.63101829 | AR151: 56.749 | AS151: 54.559 | BX151: 0.9973359684 | BY151: 143.6931751 | BZ151: 144.092714
B152: 2.149 | C152: 56.7193 | D152: 56.60251064 | E152: 56.42881178 | F152: 56.20430531 | G152: 55.93916057 | H152: 55.64455892 | I152: 55.33320303 | J152: 55.01636484 | K152: 54.70398859 | L152: 54.40426452 | M152: 54.1235119 | N152: 53.86630957 | O152: 53.63553147 | P152: 53.43272623 | Q152: 53.25828085 | R152: 53.1118181 | S152: 52.99241152 | T152: 52.89889427 | U152: 52.8300516 | V152: 52.78481961 | W152: 52.76241116 | X152: 52.76241116 | Y152: 52.78481961 | Z152: 52.8300516 | AA152: 52.89889427 | AB152: 52.99241152 | AC152: 53.1118181 | AD152: 53.25828085 | AE152: 53.43272623 | AF152: 53.63553147 | AG152: 53.86630957 | AH152: 54.1235119 | AI152: 54.40426452 | AJ152: 54.70398859 | AK152: 55.01636484 | AL152: 55.33320303 | AM152: 55.64455892 | AN152: 55.93916057 | AO152: 56.20430531 | AP152: 56.42881178 | AQ152: 56.60251064 | AR152: 56.7193 | AS152: 54.574 | BX152: 0.9973982321 | BY152: 144.8308962 | BZ152: 145.2333681
B153: 2.164 | C153: 56.6952 | D153: 56.57497379 | E153: 56.40422745 | F153: 56.18464163 | G153: 55.92490723 | H153: 55.63645203 | I153: 55.33055031 | J153: 55.01852384 | K153: 54.71011061 | L153: 54.41344425 | M153: 54.1349072 | N153: 53.87909548 | O153: 53.64906672 | P153: 53.44644874 | Q153: 53.27182083 | R153: 53.1249098 | S153: 53.00493861 | T153: 52.91083358 | U153: 52.84147612 | V153: 52.79586326 | W153: 52.77325396 | X153: 52.77325396 | Y153: 52.79586326 | Z153: 52.84147612 | AA153: 52.91083358 | AB153: 53.00493861 | AC153: 53.1249098 | AD153: 53.27182083 | AE153: 53.44644874 | AF153: 53.64906672 | AG153: 53.87909548 | AH153: 54.1349072 | AI153: 54.41344425 | AJ153: 54.71011061 | AK153: 55.01852384 | AL153: 55.33055031 | AM153: 55.63645203 | AN153: 55.92490723 | AO153: 56.18464163 | AP153: 56.40422745 | AQ153: 56.57497379 | AR153: 56.6952 | AS153: 54.5877 | BX153: =AS5528/O5528 -> 0.9974588141 | BY153: 145.9686662 | BZ153: 146.3740192
B154: 2.179 | C154: 56.6585 | D154: 56.55052857 | E154: 56.38059544 | F154: 56.1652149 | G154: 55.91101007 | H154: 55.62801016 | I154: 55.32758672 | J154: 55.02027218 | K154: 54.71579458 | L154: 54.4222165 | M154: 54.14590333 | N154: 53.89157111 | O154: 53.66233 | P154: 53.45999232 | Q154: 53.28523222 | R154: 53.13794521 | S154: 53.01745449 | T154: 52.92280821 | U154: 52.85296544 | V154: 52.80699401 | W154: 52.78419394 | X154: 52.78419394 | Y154: 52.80699401 | Z154: 52.85296544 | AA154: 52.92280821 | AB154: 53.01745449 | AC154: 53.13794521 | AD154: 53.28523222 | AE154: 53.45999232 | AF154: 53.66233 | AG154: 53.89157111 | AH154: 54.14590333 | AI154: 54.4222165 | AJ154: 54.71579458 | AK154: 55.02027218 | AL154: 55.32758672 | AM154: 55.62801016 | AN154: 55.91101007 | AO154: 56.1652149 | AP154: 56.38059544 | AQ154: 56.55052857 | AR154: 56.6585 | AS154: 54.5993 | BX154: 0.9974895058 | BY154: =BY153+(B5529-B5528)*(AS5529+AS5530)/2 -> 147.1064261 | BZ154: =BZ153+(B5529-B5528)*(O5529+O5530)/2 -> 147.5146673
B155: 2.194 | C155: 56.633 | D155: 56.5205471 | E155: 56.35860476 | F155: 56.14642895 | G155: 55.89707697 | H155: 55.61957942 | I155: 55.32425232 | J155: 55.02164489 | K155: 54.72106854 | L155: 54.43057049 | M155: 54.15653927 | N155: 53.90371197 | O155: 53.67534779 | P155: 53.47333631 | Q155: 53.29852565 | R155: 53.15091116 | S155: 53.02995986 | T155: 52.93480991 | U155: 52.86451609 | V155: 52.81820596 | W155: 52.79522623 | X155: 52.79522623 | Y155: 52.81820596 | Z155: 52.86451609 | AA155: 52.93480991 | AB155: 53.02995986 | AC155: 53.15091116 | AD155: 53.29852565 | AE155: 53.47333631 | AF155: 53.67534779 | AG155: 53.90371197 | AH155: 54.15653927 | AI155: 54.43057049 | AJ155: 54.72106854 | AK155: 55.02164489 | AL155: 55.32425232 | AM155: 55.61957942 | AN155: 55.89707697 | AO155: 56.14642895 | AP155: 56.35860476 | AQ155: 56.5205471 | AR155: 56.633 | AS155: 54.6067 | BX155: 0.9974466253 | BY155: 148.1872535 | BZ155: 148.59828
B156: 2.209 | C156: 56.6067 | D156: 56.4966006 | E156: 56.33429825 | F156: 56.12844048 | G156: 55.88345815 | H156: 55.61095222 | I156: 55.32072958 | J156: 55.02262767 | K156: 54.72594514 | L156: 54.43853831 | M156: 54.16679923 | N156: 53.91554896 | O156: 53.6880991 | P156: 53.486498 | Q156: 53.31168509 | R156: 53.16381271 | S156: 53.04244438 | T156: 52.94683707 | U156: 52.8761211 | V156: 52.82949487 | W156: 52.80634546 | X156: 52.80634546 | Y156: 52.82949487 | Z156: 52.8761211 | AA156: 52.94683707 | AB156: 53.04244438 | AC156: 53.16381271 | AD156: 53.31168509 | AE156: 53.486498 | AF156: 53.6880991 | AG156: 53.91554896 | AH156: 54.16679923 | AI156: 54.43853831 | AJ156: 54.72594514 | AK156: 55.02262767 | AL156: 55.32072958 | AM156: 55.61095222 | AN156: 55.88345815 | AO156: 56.12844048 | AP156: 56.33429825 | AQ156: 56.4966006 | AR156: 56.6067 | AS156: 54.6104 | BX156: 0.9974124173 | BY156: 149.3818249 | BZ156: 149.7959541
B157: 2.224 | C157: 56.5814 | D157: 56.47134111 | E157: 56.31322304 | F157: 56.10950924 | G157: 55.87014028 | H157: 55.60237962 | I157: 55.31691703 | J157: 55.02331447 | K157: 54.73043338 | L157: 54.44611948 | M157: 54.17671317 | N157: 53.92706529 | O157: 53.70060657 | P157: 53.49946003 | Q157: 53.32472083 | R157: 53.17663725 | S157: 53.05490939 | T157: 52.95888127 | U157: 52.88777742 | V157: 52.84085462 | W157: 52.81754678 | X157: 52.81754678 | Y157: 52.84085462 | Z157: 52.88777742 | AA157: 52.95888127 | AB157: 53.05490939 | AC157: 53.17663725 | AD157: 53.32472083 | AE157: 53.49946003 | AF157: 53.70060657 | AG157: 53.92706529 | AH157: 54.17671317 | AI157: 54.44611948 | AJ157: 54.73043338 | AK157: 55.02331447 | AL157: =f*(AK156+AM156)+(1-2*f)*AL156 -> 55.31691703 | AM157: 55.60237962 | AN157: 55.87014028 | AO157: 56.10950924 | AP157: 56.31322304 | AQ157: 56.47134111 | AR157: 56.5814 | AS157: 54.6199 | BX157: 0.9974063507 | BY157: 150.5195638 | BZ157: 150.936593
B158: 2.239 | C158: 56.5556 | D158: 56.44808667 | E158: 56.29116059 | F158: 56.09225674 | G158: 55.85640236 | H158: 55.59381417 | I158: 55.31297833 | J158: 55.02366357 | K158: 54.73457879 | L158: 54.45333283 | M158: 54.1862737 | N158: 53.93828585 | O158: 53.7128544 | P158: 53.51223777 | Q158: 53.33761871 | R158: 53.18939002 | S158: 53.06734475 | T158: 52.9709414 | U158: 52.89947793 | V158: 52.85228122 | W158: 52.82882477 | X158: 52.82882477 | Y158: 52.85228122 | Z158: 52.89947793 | AA158: 52.9709414 | AB158: 53.06734475 | AC158: 53.18939002 | AD158: 53.33761871 | AE158: 53.51223777 | AF158: 53.7128544 | AG158: 53.93828585 | AH158: 54.1862737 | AI158: 54.45333283 | AJ158: 54.73457879 | AK158: 55.02366357 | AL158: 55.31297833 | AM158: 55.59381417 | AN158: 55.85640236 | AO158: 56.09225674 | AP158: 56.29116059 | AQ158: 56.44808667 | AR158: 56.5556 | AS158: 54.6254 | BX158: 0.9975088875 | BY158: 151.7142171 | BZ158: 152.1342607
B159: 2.254 | C159: 56.5312 | D159: 56.42417727 | E159: 56.27084877 | F159: 56.07437745 | G159: 55.84346665 | H159: 55.58498466 | I159: 55.30887563 | J159: 55.02377485 | K159: 54.73837177 | L159: 54.46019743 | M159: 54.19550174 | N159: 53.94920023 | O159: 53.72486157 | P159: 53.52481724 | Q159: 53.35038824 | R159: 53.20205942 | S159: 53.07975213 | T159: 52.98300908 | U159: 52.91121991 | V159: 52.86376844 | W159: 52.84017466 | X159: 52.84017466 | Y159: 52.86376844 | Z159: 52.91121991 | AA159: 52.98300908 | AB159: 53.07975213 | AC159: 53.20205942 | AD159: 53.35038824 | AE159: 53.52481724 | AF159: 53.72486157 | AG159: 53.94920023 | AH159: 54.19550174 | AI159: 54.46019743 | AJ159: 54.73837177 | AK159: 55.02377485 | AL159: 55.30887563 | AM159: 55.58498466 | AN159: 55.84346665 | AO159: 56.07437745 | AP159: 56.27084877 | AQ159: 56.42417727 | AR159: 56.5312 | AS159: 54.635 | BX159: 0.997457242 | BY159: 152.7950986 | BZ159: 153.217862
B160: 2.269 | C160: 56.5141 | D160: 56.40177125 | E160: 56.24997321 | F160: 56.05771318 | G160: 55.83012575 | H160: 55.57645544 | I160: 55.30452479 | J160: 55.02362857 | K160: 54.74186955 | L160: 54.46671936 | M160: 54.20440215 | N160: 53.95982742 | O160: 53.73661689 | P160: 53.53721176 | Q160: 53.36301736 | R160: 53.21465048 | S160: 53.09212192 | T160: 52.99508354 | U160: 52.92299622 | V160: 52.87531249 | W160: 52.85159101 | X160: 52.85159101 | Y160: 52.87531249 | Z160: 52.92299622 | AA160: 52.99508354 | AB160: 53.09212192 | AC160: 53.21465048 | AD160: 53.36301736 | AE160: 53.53721176 | AF160: 53.73661689 | AG160: 53.95982742 | AH160: 54.20440215 | AI160: 54.46671936 | AJ160: 54.74186955 | AK160: 55.02362857 | AL160: 55.30452479 | AM160: 55.57645544 | AN160: 55.83012575 | AO160: 56.05771318 | AP160: 56.24997321 | AQ160: 56.40177125 | AR160: 56.5141 | AS160: 54.6399 | BX160: 0.9975229163 | BY160: 153.9328316 | BZ160: 154.3584919
B161: 2.284 | C161: 56.4976 | D161: 56.38267321 | E161: 56.23039483 | F161: 56.04061928 | G161: 55.817505 | H161: 55.56761979 | I161: 55.30018661 | J161: 55.02321108 | K161: 54.74506737 | L161: 54.47292886 | M161: 54.21298722 | N161: 53.97016494 | O161: 53.74813563 | P161: 53.5494105 | Q161: 53.37551455 | R161: 53.22715289 | S161: 53.10445588 | T161: 53.00715663 | U161: 52.93480441 | V161: 52.88690712 | W161: 52.86306914 | X161: 52.86306914 | Y161: 52.88690712 | Z161: 52.93480441 | AA161: 53.00715663 | AB161: 53.10445588 | AC161: 53.22715289 | AD161: 53.37551455 | AE161: 53.5494105 | AF161: 53.74813563 | AG161: 53.97016494 | AH161: 54.21298722 | AI161: 54.47292886 | AJ161: 54.74506737 | AK161: 55.02321108 | AL161: 55.30018661 | AM161: 55.56761979 | AN161: 55.817505 | AO161: 56.04061928 | AP161: 56.23039483 | AQ161: 56.38267321 | AR161: 56.4976 | AS161: 54.6539 | BX161: 0.9973976497 | BY161: 155.0705576 | BZ161: 155.4991188
B162: 2.299 | C162: 56.4826 | D162: 56.36459986 | E162: 56.21225104 | F162: 56.02448764 | G162: 55.80455132 | H162: 55.55912884 | I162: 55.29556935 | J162: 55.02264583 | K162: 54.74797312 | L162: 54.47883057 | M162: 54.22127078 | N162: 53.98022605 | O162: 53.75941184 | P162: 53.56142462 | Q162: 53.38786985 | R162: 53.23957127 | S162: 53.11674512 | T162: 53.01922777 | U162: 52.94663744 | V162: 52.89854872 | W162: 52.87460365 | X162: 52.87460365 | Y162: 52.89854872 | Z162: 52.94663744 | AA162: 53.01922777 | AB162: 53.11674512 | AC162: 53.23957127 | AD162: 53.38786985 | AE162: 53.56142462 | AF162: 53.75941184 | AG162: 53.98022605 | AH162: 54.22127078 | AI162: 54.47883057 | AJ162: 54.74797312 | AK162: 55.02264583 | AL162: 55.29556935 | AM162: 55.55912884 | AN162: 55.80455132 | AO162: 56.02448764 | AP162: 56.21225104 | AQ162: 56.36459986 | AR162: 56.4826 | AS162: 54.6593 | BX162: 0.9975158714 | BY162: 156.2083286 | BZ162: 156.6397426
B163: 2.314 | C163: 56.4675 | D163: 56.34797953 | E163: 56.19511495 | F163: 56.0089201 | G163: 55.79221931 | H163: 55.55035287 | I163: 55.29103837 | J163: 55.02179944 | K163: 54.75064901 | L163: 54.48443513 | M163: 54.22926194 | N163: 53.99001501 | O163: 53.77045716 | P163: 53.57324678 | Q163: 53.40009058 | R163: 53.25189664 | S163: 53.12899131 | T163: 53.03128923 | U163: 52.95849306 | V163: 52.91023113 | W163: 52.88618997 | X163: 52.88618997 | Y163: 52.91023113 | Z163: 52.95849306 | AA163: 53.03128923 | AB163: 53.12899131 | AC163: 53.25189664 | AD163: 53.40009058 | AE163: 53.57324678 | AF163: 53.77045716 | AG163: 53.99001501 | AH163: 54.22926194 | AI163: 54.48443513 | AJ163: 54.75064901 | AK163: 55.02179944 | AL163: 55.29103837 | AM163: 55.55035287 | AN163: 55.79221931 | AO163: 56.0089201 | AP163: 56.19511495 | AQ163: 56.34797953 | AR163: 56.4675 | AS163: 54.6711 | BX163: 0.9974818119 | BY163: 157.3461256 | BZ163: 157.7803636
B164: 2.329 | C164: 56.4505 | D164: 56.33184528 | E164: 56.1789874 | F164: 55.99415916 | G164: 55.78004238 | H164: 55.54191026 | I164: 55.28623623 | J164: 55.02087452 | K164: 54.75303767 | L164: 54.4897774 | M164: 54.2369682 | N164: 53.99954198 | O164: 53.78127045 | P164: 53.5848859 | Q164: 53.41216909 | R164: 53.26413307 | S164: 53.14118643 | T164: =f*(S163+U163)+(1-2*f)*T163 -> 53.04334048 | U164: 52.97036447 | V164: 52.92195086 | W164: 52.89782279 | X164: 52.89782279 | Y164: 52.92195086 | Z164: 52.97036447 | AA164: 53.04334048 | AB164: 53.14118643 | AC164: 53.26413307 | AD164: 53.41216909 | AE164: 53.5848859 | AF164: 53.78127045 | AG164: 53.99954198 | AH164: 54.2369682 | AI164: 54.4897774 | AJ164: 54.75303767 | AK164: 55.02087452 | AL164: 55.28623623 | AM164: 55.54191026 | AN164: 55.78004238 | AO164: 55.99415916 | AP164: 56.1789874 | AQ164: 56.33184528 | AR164: 56.4505 | AS164: 54.6803 | BX164: 0.9975666584 | BY164: 158.4838836 | BZ164: 158.9209815
B165: 2.344 | C165: 56.4375 | D165: 56.31529536 | E165: 56.16351787 | F165: 55.97998729 | G165: 55.76842205 | H165: 55.53342224 | I165: 55.28154864 | J165: 55.01967687 | K165: 54.75525214 | L165: 54.49483437 | M165: 54.24441158 | N165: 54.00881038 | O165: 53.79186093 | P165: 53.59633803 | Q165: 53.42411141 | R165: 53.27627309 | S165: 53.15333192 | T165: 53.05537432 | U165: 52.9822495 | V165: 52.93370193 | W165: 52.90949766 | X165: 52.90949766 | Y165: 52.93370193 | Z165: 52.9822495 | AA165: 53.05537432 | AB165: 53.15333192 | AC165: 53.27627309 | AD165: 53.42411141 | AE165: 53.59633803 | AF165: 53.79186093 | AG165: 54.00881038 | AH165: 54.24441158 | AI165: 54.49483437 | AJ165: 54.75525214 | AK165: 55.01967687 | AL165: 55.28154864 | AM165: 55.53342224 | AN165: 55.76842205 | AO165: 55.97998729 | AP165: 56.16351787 | AQ165: 56.31529536 | AR165: 56.4375 | AS165: 54.6867 | BX165: 0.9974186473 | BY165: 159.6215786 | BZ165: 160.0615965
B166: 2.359 | C166: 56.4316 | D166: 56.30098592 | E166: 56.14815347 | F166: 55.96642214 | G166: 55.75708274 | H166: 55.52525751 | I166: 55.27671081 | J166: 55.01844157 | K166: 54.75719099 | L166: 54.49967065 | M166: 54.25158331 | N166: 54.01783542 | O166: 53.80222862 | P166: 53.60761042 | Q166: 53.4359122 | R166: 53.2883201 | S166: 53.16542075 | T166: 53.06739018 | U166: 52.99414172 | V166: 52.94548095 | W166: 52.9212094 | X166: 52.9212094 | Y166: 52.94548095 | Z166: 52.99414172 | AA166: 53.06739018 | AB166: 53.16542075 | AC166: 53.2883201 | AD166: 53.4359122 | AE166: 53.60761042 | AF166: 53.80222862 | AG166: 54.01783542 | AH166: 54.25158331 | AI166: 54.49967065 | AJ166: 54.75719099 | AK166: 55.01844157 | AL166: 55.27671081 | AM166: 55.52525751 | AN166: 55.75708274 | AO166: 55.96642214 | AP166: 56.14815347 | AQ166: 56.30098592 | AR166: 56.4316 | AS166: 54.7015 | BX166: 0.9974613444 | BY166: 160.8161667 | BZ166: 161.2592391
B167: 2.374 | C167: 56.4205 | D167: 56.2902351 | E167: 56.13417014 | F167: 55.9530634 | G167: 55.7462025 | H167: 55.51716648 | I167: 55.27200635 | J167: 55.01699899 | K167: 54.75899594 | L167: 54.50423501 | M167: 54.25852175 | N167: 54.02661337 | O167: 53.81238439 | P167: 53.61870073 | Q167: 53.44757645 | R167: 53.30026821 | S167: 53.17745403 | T167: 53.07938152 | U167: 53.00603899 | V167: 52.95728219 | W167: 52.9329537 | X167: 52.9329537 | Y167: 52.95728219 | Z167: 53.00603899 | AA167: 53.07938152 | AB167: 53.17745403 | AC167: 53.30026821 | AD167: 53.44757645 | AE167: 53.61870073 | AF167: 53.81238439 | AG167: 54.02661337 | AH167: 54.25852175 | AI167: 54.50423501 | AJ167: 54.75899594 | AK167: 55.01699899 | AL167: 55.27200635 | AM167: 55.51716648 | AN167: 55.7462025 | AO167: 55.9530634 | AP167: 56.13417014 | AQ167: 56.2902351 | AR167: 56.4205 | AS167: 54.6997 | BX167: 0.9974378456 | BY167: 161.8969951 | BZ167: 162.3428177
B168: 2.389 | C168: 56.4086 | D168: 56.2777512 | E168: 56.12205315 | F168: 55.94060171 | G168: 55.7354726 | H168: 55.50936449 | I168: 55.26724156 | J168: 55.01554947 | K168: 54.7605647 | L168: 54.50861292 | M168: 54.26520153 | N168: 54.03516792 | O168: 53.82232567 | P168: 53.62961656 | Q168: 53.45910034 | R168: 53.31212018 | S168: 53.18942581 | T168: 53.09134764 | U168: 53.01793531 | V168: 52.96910234 | W168: 52.94472555 | X168: 52.94472555 | Y168: 52.96910234 | Z168: 53.01793531 | AA168: 53.09134764 | AB168: 53.18942581 | AC168: 53.31212018 | AD168: 53.45910034 | AE168: 53.62961656 | AF168: 53.82232567 | AG168: 54.03516792 | AH168: 54.26520153 | AI168: 54.50861292 | AJ168: 54.7605647 | AK168: 55.01554947 | AL168: 55.26724156 | AM168: 55.50936449 | AN168: 55.7354726 | AO168: 55.94060171 | AP168: 56.12205315 | AQ168: 56.2777512 | AR168: 56.4086 | AS168: 54.7032 | BX168: 0.9974857472 | BY168: 163.034758 | BZ168: 163.4834239
B169: 2.404 | C169: 56.4 | D169: 56.26572737 | E169: 56.10959183 | F169: 55.92914477 | G169: 55.72532147 | H169: 55.50161538 | I169: 55.26261132 | J169: 55.01395624 | K169: 54.76203227 | L169: 54.51274537 | M169: 54.27167465 | N169: 54.04348632 | O169: 53.83206751 | P169: 53.64035506 | Q169: 53.47048875 | R169: 53.32387137 | S169: 53.20133687 | T169: 53.10328272 | U169: 53.02982855 | V169: 52.98093598 | W169: 52.95652077 | X169: 52.95652077 | Y169: 52.98093598 | Z169: 53.02982855 | AA169: 53.10328272 | AB169: 53.20133687 | AC169: 53.32387137 | AD169: 53.47048875 | AE169: 53.64035506 | AF169: 53.83206751 | AG169: 54.04348632 | AH169: 54.27167465 | AI169: 54.51274537 | AJ169: 54.76203227 | AK169: 55.01395624 | AL169: 55.26261132 | AM169: 55.50161538 | AN169: 55.72532147 | AO169: 55.92914477 | AP169: 56.10959183 | AQ169: 56.26572737 | AR169: 56.4 | AS169: 54.7121 | BX169: 0.9975288869 | BY169: 164.1725021 | BZ169: 164.6240272
B170: 2.419 | C170: 56.3975 | D170: 56.25514854 | E170: 56.09782819 | F170: 55.91783369 | G170: 55.71570077 | H170: 55.49421314 | I170: 55.25794147 | J170: 55.01237452 | K170: 54.76330827 | L170: 54.51672094 | M170: 54.27790806 | N170: 54.0516006 | O170: 53.84160284 | P170: 53.65092578 | Q170: 53.48173823 | R170: 53.33552438 | S170: 53.2131822 | T170: 53.11518594 | U170: 53.04171319 | V170: 52.99277986 | W170: 52.96833458 | X170: 52.96833458 | Y170: 52.99277986 | Z170: 53.04171319 | AA170: 53.11518594 | AB170: 53.2131822 | AC170: 53.33552438 | AD170: 53.48173823 | AE170: 53.65092578 | AF170: 53.84160284 | AG170: 54.0516006 | AH170: 54.27790806 | AI170: 54.51672094 | AJ170: 54.76330827 | AK170: 55.01237452 | AL170: 55.25794147 | AM170: 55.49421314 | AN170: 55.71570077 | AO170: =f*(AN169+AP169)+(1-2*f)*AO169 -> 55.91783369 | AP170: 56.09782819 | AQ170: 56.25514854 | AR170: 56.3975 | AS170: 54.7229 | BX170: 0.9974575069 | BY170: 165.3102231 | BZ170: 165.7646275
B171: 2.434 | C171: 56.3927 | D171: 56.24790553 | E171: 56.08685683 | F171: 55.90712155 | G171: 55.70633558 | H171: 55.48705957 | I171: 55.25344375 | J171: 55.01068131 | K171: 54.76450775 | L171: 54.52048277 | M171: 54.28395907 | N171: 54.05949239 | O171: 53.85095157 | P171: 53.66132393 | Q171: 53.49285453 | R171: 53.34707519 | S171: 53.22496248 | T171: 53.12705216 | U171: 53.0535871 | V171: 53.00462892 | W171: 52.98016294 | X171: 52.98016294 | Y171: 53.00462892 | Z171: 53.0535871 | AA171: 53.12705216 | AB171: 53.22496248 | AC171: 53.34707519 | AD171: 53.49285453 | AE171: 53.66132393 | AF171: 53.85095157 | AG171: 54.05949239 | AH171: 54.28395907 | AI171: 54.52048277 | AJ171: 54.76450775 | AK171: 55.01068131 | AL171: 55.25344375 | AM171: 55.48705957 | AN171: 55.70633558 | AO171: 55.90712155 | AP171: 56.08685683 | AQ171: 56.24790553 | AR171: 56.3927 | AS171: 54.7251 | BX171: 0.9974936226 | BY171: 166.4479601 | BZ171: 166.905225
B172: 2.449 | C172: 56.392 | D172: 56.24004058 | E172: 56.07781494 | F172: 55.89693573 | G172: 55.69738879 | H172: 55.48012096 | I172: 55.24901797 | J172: 55.00903077 | K172: 54.76554739 | L172: 54.52411242 | M172: 54.28979312 | N172: 54.06719845 | O172: 53.86010311 | P172: 53.67156179 | Q172: 53.50383359 | R172: 53.35852679 | S172: 53.23667331 | T172: 53.13888051 | U172: 53.06544526 | V172: 53.01647999 | W172: 52.99200132 | X172: 52.99200132 | Y172: 53.01647999 | Z172: 53.06544526 | AA172: 53.13888051 | AB172: 53.23667331 | AC172: 53.35852679 | AD172: 53.50383359 | AE172: 53.67156179 | AF172: 53.86010311 | AG172: 54.06719845 | AH172: 54.28979312 | AI172: 54.52411242 | AJ172: 54.76554739 | AK172: 55.00903077 | AL172: 55.24901797 | AM172: 55.48012096 | AN172: 55.69738879 | AO172: 55.89693573 | AP172: 56.07781494 | AQ172: 56.24004058 | AR172: 56.392 | AS172: 54.7372 | BX172: 0.9974905876 | BY172: 167.585762 | BZ172: 168.0458197
B173: 2.464 | C173: 56.3914 | D173: 56.23507305 | E173: 56.06878902 | F173: 55.88790295 | G173: 55.68881416 | H173: 55.47342653 | I173: 55.24471916 | J173: 55.00733907 | K173: 54.76653856 | L173: 54.52755548 | M173: 54.29546633 | N173: 54.07469812 | O173: 53.86908086 | P173: 53.68163266 | Q173: 53.51468265 | R173: 53.36987517 | S173: 53.24831558 | T173: 53.15066642 | U173: 53.07728557 | V173: 53.02832835 | W173: 53.00384584 | X173: 53.00384584 | Y173: 53.02832835 | Z173: 53.07728557 | AA173: 53.15066642 | AB173: 53.24831558 | AC173: 53.36987517 | AD173: 53.51468265 | AE173: 53.68163266 | AF173: 53.86908086 | AG173: 54.07469812 | AH173: 54.29546633 | AI173: 54.52755548 | AJ173: 54.76653856 | AK173: 55.00733907 | AL173: 55.24471916 | AM173: 55.47342653 | AN173: 55.68881416 | AO173: 55.88790295 | AP173: 56.06878902 | AQ173: 56.23507305 | AR173: 56.3914 | AS173: 54.7459 | BX173: 0.9976126127 | BY173: 168.7236471 | BZ173: 169.1864114
B174: 2.479 | C174: 56.3927 | D174: 56.23025511 | E174: 56.06172352 | F174: 55.87909518 | G174: 55.68092762 | H174: 55.46698149 | I174: 55.24052268 | J174: 55.00568402 | K174: 54.76741796 | L174: 54.53089125 | M174: 54.30094421 | N174: 54.08202923 | O174: 53.87787234 | P174: 53.69155114 | Q174: 53.52539678 | R174: 53.38112415 | S174: 53.25988515 | T174: 53.16240915 | U174: 53.08910346 | V174: 53.04017095 | W174: 53.01569221 | X174: 53.01569221 | Y174: 53.04017095 | Z174: 53.08910346 | AA174: 53.16240915 | AB174: 53.25988515 | AC174: 53.38112415 | AD174: 53.52539678 | AE174: 53.69155114 | AF174: 53.87787234 | AG174: 54.08202923 | AH174: 54.30094421 | AI174: 54.53089125 | AJ174: 54.76741796 | AK174: 55.00568402 | AL174: 55.24052268 | AM174: 55.46698149 | AN174: 55.68092762 | AO174: 55.87909518 | AP174: 56.06172352 | AQ174: 56.23025511 | AR174: 56.3927 | AS174: 54.7496 | BX174: 0.9976410988 | BY174: 169.8615081 | BZ174: 170.3270004
B175: 2.494 | C175: 56.3939 | D175: 56.22730993 | E175: 56.05490251 | F175: 55.8715762 | G175: 55.67329283 | H175: 55.46092697 | I175: 55.23646792 | J175: 55.0040256 | K175: 54.76825958 | L175: 54.53407496 | M175: 54.3062823 | N175: 54.08917024 | O175: 53.88650251 | P175: 53.70130929 | Q175: 53.53598471 | R175: 53.39226945 | S175: 53.27138337 | T175: 53.17410446 | U175: 53.10089693 | V175: 53.05200342 | W175: 53.02753676 | X175: 53.02753676 | Y175: 53.05200342 | Z175: 53.10089693 | AA175: 53.17410446 | AB175: 53.27138337 | AC175: 53.39226945 | AD175: 53.53598471 | AE175: 53.70130929 | AF175: 53.88650251 | AG175: 54.08917024 | AH175: 54.3062823 | AI175: 54.53407496 | AJ175: 54.76825958 | AK175: 55.0040256 | AL175: 55.23646792 | AM175: 55.46092697 | AN175: 55.67329283 | AO175: 55.8715762 | AP175: 56.05490251 | AQ175: 56.22730993 | AR175: 56.3939 | AS175: 54.7575 | BX175: 0.9975754817 | BY175: 170.999252 | BZ175: 171.4675866
B176: 2.509 | C176: 56.3958 | D176: 56.22449508 | E176: 56.04961918 | F176: 55.86433892 | G176: 55.66647872 | H176: 55.45507543 | I176: 55.23260505 | J176: 55.00241736 | K176: 54.76902477 | L176: 54.53716785 | M176: 54.31145033 | N176: 54.09615943 | O176: 53.89495792 | P176: 53.71092315 | Q176: 53.54644083 | R176: 53.40331583 | S176: 53.28280619 | T176: 53.18575191 | U176: 53.11266178 | V176: 53.06382287 | W176: 53.03937547 | X176: 53.03937547 | Y176: 53.06382287 | Z176: 53.11266178 | AA176: 53.18575191 | AB176: 53.28280619 | AC176: 53.40331583 | AD176: 53.54644083 | AE176: 53.71092315 | AF176: 53.89495792 | AG176: 54.09615943 | AH176: 54.31145033 | AI176: 54.53716785 | AJ176: 54.76902477 | AK176: 55.00241736 | AL176: 55.23260505 | AM176: 55.45507543 | AN176: 55.66647872 | AO176: 55.86433892 | AP176: 56.04961918 | AQ176: 56.22449508 | AR176: 56.3958 | AS176: 54.7617 | BX176: 0.9974408552 | BY176: 172.136947 | BZ176: 172.6081699
B177: 2.524 | C177: 56.3937 | D177: 56.22276719 | E177: 56.04458481 | F177: 55.85825185 | G177: 55.65992561 | H177: 55.44972039 | I177: 55.22887087 | J177: 55.0008666 | K177: 54.76976783 | L177: 54.54013853 | M177: 54.31649547 | N177: 54.10297688 | O177: 53.90326441 | P177: 53.72038401 | Q177: 53.55677502 | R177: 53.41425875 | S177: 53.29415556 | T177: 53.19734747 | U177: 53.12439624 | V177: 53.07562521 | W177: =f*(V176+X176)+(1-2*f)*W176 -> 53.05120485 | X177: 53.05120485 | Y177: 53.07562521 | Z177: 53.12439624 | AA177: 53.19734747 | AB177: 53.29415556 | AC177: 53.41425875 | AD177: 53.55677502 | AE177: 53.72038401 | AF177: 53.90326441 | AG177: 54.10297688 | AH177: 54.31649547 | AI177: 54.54013853 | AJ177: 54.76976783 | AK177: 55.0008666 | AL177: 55.22887087 | AM177: 55.44972039 | AN177: 55.65992561 | AO177: 55.85825185 | AP177: 56.04458481 | AQ177: 56.22276719 | AR177: 56.3937 | AS177: 54.77 | BX177: 0.9974944391 | BY177: 173.2746711 | BZ177: 173.7487505
B178: 2.539 | C178: 56.3958 | D178: 56.21925933 | E178: 56.04064098 | F178: 55.85244865 | G178: 55.65417772 | H178: 55.44456992 | I178: 55.22540889 | J178: 54.99936926 | K178: 54.77047887 | L178: 54.5430351 | M178: 54.32139441 | N178: 54.10965726 | O178: 53.91140896 | P178: 53.72970888 | Q178: 53.56698118 | R178: 53.42510379 | S178: 53.30542738 | T178: 53.20889111 | U178: 53.13609633 | V178: 53.08740779 | W178: 53.06302116 | X178: 53.06302116 | Y178: 53.08740779 | Z178: 53.13609633 | AA178: 53.20889111 | AB178: 53.30542738 | AC178: 53.42510379 | AD178: 53.56698118 | AE178: 53.72970888 | AF178: 53.91140896 | AG178: 54.10965726 | AH178: 54.32139441 | AI178: 54.5430351 | AJ178: 54.77047887 | AK178: 54.99936926 | AL178: 55.22540889 | AM178: 55.44456992 | AN178: 55.65417772 | AO178: 55.85244865 | AP178: 56.04064098 | AQ178: 56.21925933 | AR178: 56.3958 | AS178: 54.7735 | BX178: 0.9974965739 | BY178: 174.4692918 | BZ178: 174.9463572
B179: 2.554 | C179: 56.4006 | D179: 56.218254 | E179: 56.03600841 | F179: 55.84757191 | G179: 55.64869214 | H179: 55.43994739 | I179: 55.22208054 | J179: 54.99798986 | K179: 54.77117885 | L179: 54.54584304 | M179: 54.32618644 | N179: 54.11618412 | O179: 53.91941616 | P179: 53.73888906 | Q179: 53.57707004 | R179: 53.4358462 | S179: 53.31662422 | T179: 53.22037893 | U179: 53.14776064 | V179: 53.09916678 | W179: 53.07482114 | X179: 53.07482114 | Y179: 53.09916678 | Z179: 53.14776064 | AA179: 53.22037893 | AB179: 53.31662422 | AC179: 53.4358462 | AD179: 53.57707004 | AE179: 53.73888906 | AF179: 53.91941616 | AG179: 54.11618412 | AH179: 54.32618644 | AI179: 54.54584304 | AJ179: 54.77117885 | AK179: 54.99798986 | AL179: 55.22208054 | AM179: 55.43994739 | AN179: 55.64869214 | AO179: 55.84757191 | AP179: 56.03600841 | AQ179: 56.218254 | AR179: 56.4006 | AS179: 54.775 | BX179: 0.9975167929 | BY179: 175.6070018 | BZ179: 176.0869323
B180: 2.569 | C180: 56.4061 | D180: 56.21830259 | E180: 56.03301281 | F180: 55.84251871 | G180: 55.64391876 | H180: 55.43553347 | I180: 55.21906901 | J180: 54.99667357 | K180: 54.77189266 | L180: 54.54859105 | M180: 54.33085787 | N180: 54.12258785 | O180: 53.92727464 | P180: 53.74794136 | Q180: 53.58703545 | R180: 53.44649226 | S180: 53.32774197 | T180: 53.23181135 | U180: 53.15938536 | V180: 53.11089979 | W180: 53.08660129 | X180: 53.08660129 | Y180: 53.11089979 | Z180: 53.15938536 | AA180: 53.23181135 | AB180: 53.32774197 | AC180: 53.44649226 | AD180: 53.58703545 | AE180: 53.74794136 | AF180: 53.92727464 | AG180: 54.12258785 | AH180: 54.33085787 | AI180: 54.54859105 | AJ180: 54.77189266 | AK180: 54.99667357 | AL180: 55.21906901 | AM180: 55.43553347 | AN180: 55.64391876 | AO180: 55.84251871 | AP180: 56.03301281 | AQ180: 56.21830259 | AR180: 56.4061 | AS180: 54.7849 | BX180: 0.9974593062 | BY180: 176.7446517 | BZ180: 177.2275046
B181: 2.584 | C181: 56.4113 | D181: 56.21951596 | E181: 56.03049459 | F181: 55.83859652 | G181: 55.63918392 | H181: 55.43162419 | I181: 55.21619918 | J181: 54.99551931 | K181: 54.77260845 | L181: 54.55128545 | M181: 54.33543681 | N181: 54.12885727 | O181: 53.93500686 | P181: 53.75685783 | Q181: 53.59688838 | R181: 53.45703721 | S181: 53.33878375 | T181: 53.24318456 | U181: 53.17096943 | V181: 53.12260321 | W181: 53.09835863 | X181: 53.09835863 | Y181: 53.12260321 | Z181: 53.17096943 | AA181: 53.24318456 | AB181: 53.33878375 | AC181: 53.45703721 | AD181: 53.59688838 | AE181: 53.75685783 | AF181: 53.93500686 | AG181: 54.12885727 | AH181: 54.33543681 | AI181: 54.55128545 | AJ181: 54.77260845 | AK181: 54.99551931 | AL181: 55.21619918 | AM181: 55.43162419 | AN181: 55.63918392 | AO181: 55.83859652 | AP181: 56.03049459 | AQ181: 56.21951596 | AR181: 56.4113 | AS181: 54.7908 | BX181: 0.9974163445 | BY181: 177.8823178 | BZ181: 178.3680742
B182: 2.599 | C182: 56.4189 | D182: 56.22085274 | E182: 56.02910264 | F182: 55.83496046 | G182: 55.63524176 | H182: 55.42781841 | I182: 55.21365651 | J182: 54.9944398 | K182: 54.77337677 | L182: 54.55393433 | M182: 54.33992186 | N182: 54.13501653 | O182: 53.9426043 | P182: 53.7656544 | Q182: 53.60662303 | R182: 53.46748771 | S182: 53.34974549 | T182: 53.25449943 | U182: 53.18250923 | V182: 53.13427497 | W182: 53.11008988 | X182: 53.11008988 | Y182: 53.13427497 | Z182: 53.18250923 | AA182: 53.25449943 | AB182: 53.34974549 | AC182: 53.46748771 | AD182: 53.60662303 | AE182: 53.7656544 | AF182: 53.9426043 | AG182: 54.13501653 | AH182: 54.33992186 | AI182: 54.55393433 | AJ182: 54.77337677 | AK182: 54.9944398 | AL182: 55.21365651 | AM182: 55.42781841 | AN182: 55.63524176 | AO182: 55.83496046 | AP182: 56.02910264 | AQ182: 56.22085274 | AR182: 56.4189 | AS182: 54.7999 | BX182: 0.9974921265 | BY182: 178.9631727 | BZ182: 179.4516128
B183: 2.614 | C183: 56.4293 | D183: 56.22389975 | E183: 56.02794518 | F183: 55.83226215 | G183: 55.6315137 | H183: 55.42455782 | I183: 55.21121063 | J183: 54.99354642 | K183: 54.77416093 | L183: 54.55656173 | M183: 54.34432854 | N183: 54.14106158 | O183: 53.95008607 | P183: 53.77432466 | Q183: 53.61625015 | R183: 53.47783921 | S183: 53.36063073 | T183: 53.26575227 | U183: 53.19400404 | V183: 53.14591166 | W183: 53.12179234 | X183: 53.12179234 | Y183: 53.14591166 | Z183: 53.19400404 | AA183: 53.26575227 | AB183: 53.36063073 | AC183: 53.47783921 | AD183: 53.61625015 | AE183: 53.77432466 | AF183: 53.95008607 | AG183: 54.14106158 | AH183: 54.34432854 | AI183: 54.55656173 | AJ183: 54.77416093 | AK183: 54.99354642 | AL183: 55.21121063 | AM183: 55.42455782 | AN183: 55.6315137 | AO183: 55.83226215 | AP183: 56.02794518 | AQ183: 56.22389975 | AR183: 56.4293 | AS183: 54.8064 | BX183: 0.9975543314 | BY183: 180.1009406 | BZ183: 180.592177
B184: 2.629 | C184: 56.4375 | D184: 56.22847024 | E184: =f*(D183+F183)+(1-2*f)*E183 -> 56.02807657 | F184: 55.82981114 | G184: 55.6285101 | H184: 55.42146525 | I184: 55.20912175 | J184: 54.99271354 | K184: 54.77502526 | L184: 54.55915819 | M184: 54.34866704 | N184: 54.14700906 | O184: 53.95744773 | P184: 53.78288284 | Q184: 53.62576478 | R184: 53.48809847 | S184: 53.37143558 | T184: 53.27694432 | U184: 53.20545042 | V184: 53.15751153 | W184: 53.13346298 | X184: 53.13346298 | Y184: 53.15751153 | Z184: 53.20545042 | AA184: 53.27694432 | AB184: 53.37143558 | AC184: 53.48809847 | AD184: 53.62576478 | AE184: 53.78288284 | AF184: 53.95744773 | AG184: 54.14700906 | AH184: 54.34866704 | AI184: 54.55915819 | AJ184: 54.77502526 | AK184: 54.99271354 | AL184: 55.20912175 | AM184: 55.42146525 | AN184: 55.6285101 | AO184: 55.82981114 | AP184: 56.02807657 | AQ184: 56.22847024 | AR184: 56.4375 | AS184: 54.8158 | BX184: 0.9975424473 | BY184: 181.2387007 | BZ184: 181.7327386
B185: 2.644 | C185: 56.4457 | D185: 56.23264899 | E185: 56.02910636 | F185: 55.8283423 | G185: 55.62573084 | H185: 55.41890139 | I185: 55.20715496 | J185: 54.99209415 | K185: 54.77590649 | L185: 54.56175944 | M185: 54.35294115 | N185: 54.15286228 | O185: 53.96470407 | P185: 53.79132486 | Q185: 53.63517692 | R185: 53.49826142 | S185: 53.38216378 | T185: 53.28807207 | U185: 53.216848 | V185: 53.16907137 | W185: 53.14509938 | X185: 53.14509938 | Y185: 53.16907137 | Z185: 53.216848 | AA185: 53.28807207 | AB185: 53.38216378 | AC185: 53.49826142 | AD185: 53.63517692 | AE185: 53.79132486 | AF185: 53.96470407 | AG185: 54.15286228 | AH185: 54.35294115 | AI185: 54.56175944 | AJ185: 54.77590649 | AK185: 54.99209415 | AL185: 55.20715496 | AM185: 55.41890139 | AN185: 55.62573084 | AO185: 55.8283423 | AP185: 56.02910636 | AQ185: 56.23264899 | AR185: 56.4457 | AS185: 54.82 | BX185: 0.9975449777 | BY185: 182.3764317 | BZ185: 182.8732975
B186: 2.659 | C186: 56.4537 | D186: 56.23724982 | E186: 56.03045083 | F186: 55.8274484 | G186: 55.62368988 | H186: 55.4165222 | I186: 55.20555123 | J186: 54.9915489 | K186: 54.77689388 | L186: 54.56433787 | M186: 54.3571699 | N186: 54.15863034 | O186: 53.9718552 | P186: 53.79966257 | Q186: 53.64448293 | R186: 53.50833458 | S186: 53.39281181 | T186: 53.29913706 | U186: 53.22819354 | V186: 53.18058974 | W186: 53.15669873 | X186: 53.15669873 | Y186: 53.18058974 | Z186: 53.22819354 | AA186: 53.29913706 | AB186: 53.39281181 | AC186: 53.50833458 | AD186: 53.64448293 | AE186: 53.79966257 | AF186: 53.9718552 | AG186: 54.15863034 | AH186: 54.3571699 | AI186: 54.56433787 | AJ186: 54.77689388 | AK186: 54.9915489 | AL186: 55.20555123 | AM186: 55.4165222 | AN186: 55.62368988 | AO186: 55.8274484 | AP186: 56.03045083 | AQ186: 56.23724982 | AR186: 56.4537 | AS186: 54.8296 | BX186: 0.9974962799 | BY186: 183.457259 | BZ186: 183.9568259
B187: 2.674 | C187: 56.4627 | D187: 56.24191975 | E187: 56.03228787 | F187: 55.82708255 | G187: 55.62204029 | H187: 55.4146819 | I187: 55.20408444 | J187: 54.99123308 | K187: 54.77790953 | L187: 54.56694499 | M187: 54.36134494 | N187: 54.1643228 | O187: 53.97891125 | P187: 53.80789466 | Q187: 53.65369162 | R187: 53.5183147 | S187: 53.40338343 | T187: 53.31013604 | U187: 53.23948696 | V187: 53.19206367 | W187: 53.1682589 | X187: 53.1682589 | Y187: 53.19206367 | Z187: 53.23948696 | AA187: 53.31013604 | AB187: 53.40338343 | AC187: 53.5183147 | AD187: 53.65369162 | AE187: 53.80789466 | AF187: 53.97891125 | AG187: 54.1643228 | AH187: 54.36134494 | AI187: 54.56694499 | AJ187: 54.77790953 | AK187: 54.99123308 | AL187: 55.20408444 | AM187: 55.4146819 | AN187: 55.62204029 | AO187: 55.82708255 | AP187: 56.03228787 | AQ187: 56.24191975 | AR187: 56.4627 | AS187: 54.8311 | BX187: 0.9975180428 | BY187: 184.594993 | BZ187: 185.0973794
B188: 2.689 | C188: 56.4713 | D188: 56.24731412 | E188: 56.03442975 | F188: 55.82716145 | G188: 55.62091958 | H188: 55.41311461 | I188: 55.20299384 | J188: 54.9910046 | K188: 54.77905099 | L188: 54.56954071 | M188: 54.36549554 | N188: 54.16994083 | O188: 53.98587655 | P188: 53.81603025 | Q188: 53.66280103 | R188: 53.52820776 | S188: 53.41387563 | T188: 53.3210707 | U188: 53.25072525 | V188: 53.20349198 | W188: 53.17977734 | X188: 53.17977734 | Y188: 53.20349198 | Z188: 53.25072525 | AA188: 53.3210707 | AB188: 53.41387563 | AC188: 53.52820776 | AD188: 53.66280103 | AE188: 53.81603025 | AF188: 53.98587655 | AG188: 54.16994083 | AH188: 54.36549554 | AI188: 54.56954071 | AJ188: 54.77905099 | AK188: 54.9910046 | AL188: 55.20299384 | AM188: 55.41311461 | AN188: 55.62091958 | AO188: 55.82716145 | AP188: 56.03442975 | AQ188: 56.24731412 | AR188: 56.4713 | AS188: 54.8308 | BX188: 0.9975377465 | BY188: 185.732755 | BZ188: 186.2379304
B189: 2.704 | C189: 56.4845 | D189: 56.25268582 | E189: 56.03714721 | F189: 55.82765811 | G189: 55.62016324 | H189: 55.41199406 | I189: 55.20208974 | J189: 54.99102184 | K189: 54.78023325 | L189: 54.57218512 | M189: 54.36960383 | N189: 54.17550072 | O189: 53.99275622 | P189: 53.82407078 | Q189: 53.67181842 | R189: 53.53801154 | S189: 53.42429202 | T189: 53.33193819 | U189: 53.26190857 | V189: 53.21487196 | W189: 53.19125216 | X189: 53.19125216 | Y189: 53.21487196 | Z189: 53.26190857 | AA189: 53.33193819 | AB189: 53.42429202 | AC189: 53.53801154 | AD189: 53.67181842 | AE189: 53.82407078 | AF189: 53.99275622 | AG189: 54.17550072 | AH189: 54.36960383 | AI189: 54.57218512 | AJ189: 54.78023325 | AK189: 54.99102184 | AL189: 55.20208974 | AM189: 55.41199406 | AN189: 55.62016324 | AO189: 55.82765811 | AP189: 56.03714721 | AQ189: 56.25268582 | AR189: 56.4845 | AS189: 54.8346 | BX189: 0.9975717379 | BY189: 186.813627 | BZ189: 187.3214513
B190: 2.719 | C190: 56.4952 | D190: 56.26056109 | E190: 56.04007439 | F190: 55.82862306 | G190: 55.61983696 | H190: 55.41115448 | I190: 55.20152672 | J190: 54.99115699 | K190: 54.78155928 | L190: 54.57483036 | M190: 54.37370617 | N190: 54.18099682 | O190: 53.99955899 | P190: 53.83202227 | Q190: 53.68074365 | R190: 53.54773123 | S190: 53.43463026 | T190: 53.34274022 | U190: 53.27303422 | V190: 53.22620267 | W190: 53.2026811 | X190: 53.2026811 | Y190: 53.22620267 | Z190: =f*(Y189+AA189)+(1-2*f)*Z189 -> 53.27303422 | AA190: 53.34274022 | AB190: 53.43463026 | AC190: 53.54773123 | AD190: 53.68074365 | AE190: 53.83202227 | AF190: 53.99955899 | AG190: 54.18099682 | AH190: 54.37370617 | AI190: 54.57483036 | AJ190: 54.78155928 | AK190: 54.99115699 | AL190: 55.20152672 | AM190: 55.41115448 | AN190: 55.61983696 | AO190: 55.82862306 | AP190: 56.04007439 | AQ190: 56.26056109 | AR190: 56.4952 | AS190: 54.838 | BX190: 0.9975388356 | BY190: 187.951414 | BZ190: 188.461997
B191: 2.734 | C191: 56.5102 | D191: 56.26740893 | E191: 56.04444634 | F191: 55.82991269 | G191: 55.6198871 | H191: 55.41069709 | I191: 55.2011677 | J191: 54.99153055 | K191: 54.78294741 | L191: 54.57754233 | M191: 54.37777787 | N191: 54.18645078 | O191: 54.00628533 | P191: 53.83988909 | Q191: 53.68958213 | R191: 53.5573658 | S191: 53.44489362 | T191: 53.35347443 | U191: 53.28410251 | V191: 53.23748169 | W191: 53.21406251 | X191: 53.21406251 | Y191: 53.23748169 | Z191: 53.28410251 | AA191: 53.35347443 | AB191: 53.44489362 | AC191: 53.5573658 | AD191: 53.68958213 | AE191: 53.83988909 | AF191: 54.00628533 | AG191: 54.18645078 | AH191: 54.37777787 | AI191: 54.57754233 | AJ191: 54.78294741 | AK191: 54.99153055 | AL191: 55.2011677 | AM191: 55.41069709 | AN191: 55.6198871 | AO191: 55.82991269 | AP191: 56.04444634 | AQ191: 56.26740893 | AR191: 56.5102 | AS191: 54.8457 | BX191: 0.9976236524 | BY191: 189.089188 | BZ191: 189.6025401
B192: 2.749 | C192: 56.5274 | D192: 56.27700336 | E192: 56.04852486 | F192: 55.83209401 | G192: 55.62029141 | H192: 55.41053287 | I192: 55.20111555 | J192: 54.99204055 | K192: 54.78448518 | L192: 54.58027166 | M192: 54.38186047 | N192: 54.19185157 | O192: 54.01294785 | P192: 53.84767423 | Q192: 53.69833566 | R192: 53.56691942 | S192: 53.45508055 | T192: 53.36414246 | U192: 53.29511111 | V192: 53.24870829 | W192: 53.22539437 | X192: 53.22539437 | Y192: 53.24870829 | Z192: 53.29511111 | AA192: 53.36414246 | AB192: 53.45508055 | AC192: 53.56691942 | AD192: 53.69833566 | AE192: 53.84767423 | AF192: 54.01294785 | AG192: 54.19185157 | AH192: 54.38186047 | AI192: 54.58027166 | AJ192: 54.78448518 | AK192: 54.99204055 | AL192: 55.20111555 | AM192: 55.41053287 | AN192: 55.62029141 | AO192: 55.83209401 | AP192: 56.04852486 | AQ192: 56.27700336 | AR192: 56.5274 | AS192: 54.8576 | BX192: 0.9975205914 | BY192: 190.226951 | BZ192: 190.7430806
B193: 2.764 | C193: 56.5421 | D193: 56.28760891 | E193: 56.05435437 | F193: 55.83433349 | G193: 55.62128047 | H193: 55.41069798 | I193: 55.20128119 | J193: 54.99277586 | K193: 54.78610221 | L193: 54.58307924 | M193: 54.3859261 | N193: 54.19722504 | O193: 54.01954306 | P193: 53.85538474 | Q193: 53.70700776 | R193: 53.57639234 | S193: 53.46519383 | T193: 53.37474249 | U193: 53.3060604 | V193: 53.25988034 | W193: 53.2366753 | X193: 53.2366753 | Y193: 53.25988034 | Z193: 53.3060604 | AA193: 53.37474249 | AB193: 53.46519383 | AC193: 53.57639234 | AD193: 53.70700776 | AE193: 53.85538474 | AF193: 54.01954306 | AG193: 54.19722504 | AH193: 54.3859261 | AI193: 54.58307924 | AJ193: 54.78610221 | AK193: 54.99277586 | AL193: 55.20128119 | AM193: 55.41069798 | AN193: 55.62128047 | AO193: 55.83433349 | AP193: 56.05435437 | AQ193: 56.28760891 | AR193: 56.5421 | AS193: 54.8605 | BX193: 0.997608908 | BY193: 191.3078952 | BZ193: 191.8265916
B194: 2.779 | C194: 56.5562 | D194: 56.29788466 | E194: 56.06075775 | F194: 55.83770503 | G194: 55.62247589 | H194: 55.41126203 | I194: 55.20172222 | J194: 54.99366216 | K194: 54.78786866 | L194: 54.58591948 | M194: 54.39001582 | N194: 54.20255685 | O194: 54.02608677 | P194: 53.86302087 | Q194: 53.71560207 | R194: 53.58578762 | S194: 53.47523279 | T194: 53.385276 | U194: 53.31694848 | V194: 53.27099728 | W194: 53.24790354 | X194: 53.24790354 | Y194: 53.27099728 | Z194: 53.31694848 | AA194: 53.385276 | AB194: 53.47523279 | AC194: 53.58578762 | AD194: 53.71560207 | AE194: 53.86302087 | AF194: 54.02608677 | AG194: 54.20255685 | AH194: 54.39001582 | AI194: 54.58591948 | AJ194: 54.78786866 | AK194: 54.99366216 | AL194: 55.20172222 | AM194: 55.41126203 | AN194: 55.62247589 | AO194: 55.83770503 | AP194: 56.06075775 | AQ194: 56.29788466 | AR194: 56.5562 | AS194: 54.8709 | BX194: 0.9976531184 | BY194: 192.4457652 | BZ194: 192.9671269
B195: 2.794 | C195: 56.5675 | D195: 56.30813713 | E195: 56.06756784 | F195: 55.84149063 | G195: 55.62441877 | H195: 55.41207205 | I195: 55.20243823 | J195: 54.99475888 | K195: 54.78972881 | L195: 54.58884473 | M195: 54.39410196 | N195: 54.20787405 | O195: 54.03257266 | P195: 53.87059204 | Q195: 53.7241203 | R195: 53.59510679 | S195: 53.48519958 | T195: 53.39574177 | U195: 53.32777573 | V195: 53.28205734 | W195: 53.25907793 | X195: 53.25907793 | Y195: 53.28205734 | Z195: 53.32777573 | AA195: 53.39574177 | AB195: 53.48519958 | AC195: 53.59510679 | AD195: 53.7241203 | AE195: 53.87059204 | AF195: 54.03257266 | AG195: 54.20787405 | AH195: 54.39410196 | AI195: 54.58884473 | AJ195: 54.78972881 | AK195: 54.99475888 | AL195: 55.20243823 | AM195: 55.41207205 | AN195: 55.62441877 | AO195: 55.84149063 | AP195: 56.06756784 | AQ195: 56.30813713 | AR195: 56.5675 | AS195: 54.8709 | BX195: 0.9976730461 | BY195: 193.5835642 | BZ195: 194.1076597
B196: 2.809 | C196: 56.5793 | D196: 56.3172308 | E196: 56.07458014 | F196: 55.84584806 | G196: 55.62670513 | H196: 55.41338474 | I196: 55.20338394 | J196: 54.99604079 | K196: 54.79173494 | L196: 54.59181633 | M196: 54.39822206 | N196: 54.21316108 | O196: 54.0390182 | P196: 53.87809634 | Q196: 53.73256783 | R196: 53.60435178 | S196: 53.49509445 | T196: 53.40614101 | U196: 53.33854073 | V196: 53.29306007 | W196: 53.270197 | X196: 53.270197 | Y196: 53.29306007 | Z196: 53.33854073 | AA196: 53.40614101 | AB196: 53.49509445 | AC196: 53.60435178 | AD196: 53.73256783 | AE196: 53.87809634 | AF196: 54.0390182 | AG196: 54.21316108 | AH196: 54.39822206 | AI196: 54.59181633 | AJ196: 54.79173494 | AK196: 54.99604079 | AL196: 55.20338394 | AM196: 55.41338474 | AN196: 55.62670513 | AO196: 55.84584806 | AP196: 56.07458014 | AQ196: 56.3172308 | AR196: 56.5793 | AS196: 54.8836 | BX196: 0.9975331032 | BY196: 194.7212802 | BZ196: 195.2481899
B197: 2.824 | C197: 56.5909 | D197: 56.32662687 | E197: 56.08131494 | F197: 55.85048797 | G197: 55.62952249 | H197: =f*(G196+I196)+(1-2*f)*H196 -> 55.41499099 | I197: 55.2046699 | J197: 54.99751045 | K197: 54.7938578 | L197: 54.59487649 | M197: 54.40235107 | N197: 54.21844403 | O197: 54.04541547 | P197: 53.88554473 | Q197: 53.74094483 | R197: 53.61352536 | S197: 53.50491891 | T197: 53.41647318 | U197: 53.34924378 | V197: 53.30400406 | W197: 53.28125978 | X197: 53.28125978 | Y197: 53.30400406 | Z197: 53.34924378 | AA197: 53.41647318 | AB197: 53.50491891 | AC197: 53.61352536 | AD197: 53.74094483 | AE197: 53.88554473 | AF197: 54.04541547 | AG197: 54.21844403 | AH197: 54.40235107 | AI197: 54.59487649 | AJ197: 54.7938578 | AK197: 54.99751045 | AL197: 55.2046699 | AM197: 55.41499099 | AN197: 55.62952249 | AO197: 55.85048797 | AP197: 56.08131494 | AQ197: 56.32662687 | AR197: 56.5909 | AS197: 54.8853 | BX197: 0.9975319813 | BY197: 195.8021028 | BZ197: 196.3316912
B198: 2.839 | C198: 56.6035 | D198: 56.33580164 | E198: 56.08832379 | F198: 55.85525966 | G198: 55.63263571 | H198: 55.41702828 | I198: 55.20619973 | J198: 54.99920729 | K198: 54.79611813 | L198: 54.59800031 | M198: 54.40652125 | N198: 54.22370781 | O198: 54.05178216 | P198: 53.89293384 | Q198: 53.74925794 | R198: 53.62262843 | S198: 53.5146741 | T198: 53.42673915 | U198: 53.35988395 | V198: 53.31488895 | W198: 53.29226508 | X198: 53.29226508 | Y198: 53.31488895 | Z198: 53.35988395 | AA198: 53.42673915 | AB198: 53.5146741 | AC198: 53.62262843 | AD198: 53.74925794 | AE198: 53.89293384 | AF198: 54.05178216 | AG198: 54.22370781 | AH198: 54.40652125 | AI198: 54.59800031 | AJ198: 54.79611813 | AK198: 54.99920729 | AL198: 55.20619973 | AM198: 55.41702828 | AN198: 55.63263571 | AO198: 55.85525966 | AP198: 56.08832379 | AQ198: 56.33580164 | AR198: 56.6035 | AS198: 54.8855 | BX198: 0.9975235331 | BY198: 196.9398338 | BZ198: 197.4722163
B199: 2.854 | C199: 56.6193 | D199: 56.34558576 | E199: 56.09529817 | F199: 55.86031136 | G199: 55.6360308 | H199: 55.41934064 | I199: 55.20805591 | J199: 55.00109597 | K199: 54.79852361 | L199: 54.60121261 | M199: 54.41071429 | N199: 54.2289761 | O199: 54.0581099 | P199: 53.90027533 | Q199: 53.7575062 | R199: 53.63166481 | S199: 53.5243609 | T199: 53.43693903 | U199: 53.37046146 | V199: 53.32571369 | W199: 53.30321211 | X199: 53.30321211 | Y199: 53.32571369 | Z199: 53.37046146 | AA199: 53.43693903 | AB199: 53.5243609 | AC199: 53.63166481 | AD199: 53.7575062 | AE199: 53.90027533 | AF199: 54.0581099 | AG199: 54.2289761 | AH199: 54.41071429 | AI199: 54.60121261 | AJ199: 54.79852361 | AK199: 55.00109597 | AL199: 55.20805591 | AM199: 55.41934064 | AN199: 55.6360308 | AO199: 55.86031136 | AP199: 56.09529817 | AQ199: 56.34558576 | AR199: 56.6193 | AS199: 54.8927 | BX199: 0.9975767748 | BY199: 198.0207258 | BZ199: 198.5557128
B200: 2.869 | C200: 56.6341 | D200: 56.35692124 | E200: 56.10270177 | F200: 55.8654918 | G200: 55.63970357 | H200: 55.42195617 | I200: 55.21014855 | J200: 55.003219 | K200: 54.80106943 | L200: 54.60450907 | M200: 54.41495306 | N200: 54.23423674 | O200: 54.06441553 | P200: 53.90756506 | Q200: 53.76569704 | R200: 53.64063455 | S200: 53.53398124 | T200: 53.44707337 | U200: 53.38097588 | V200: 53.33647798 | W200: 53.31409997 | X200: 53.31409997 | Y200: 53.33647798 | Z200: 53.38097588 | AA200: 53.44707337 | AB200: 53.53398124 | AC200: 53.64063455 | AD200: 53.76569704 | AE200: 53.90756506 | AF200: 54.06441553 | AG200: 54.23423674 | AH200: 54.41495306 | AI200: 54.60450907 | AJ200: 54.80106943 | AK200: 55.003219 | AL200: 55.21014855 | AM200: 55.42195617 | AN200: 55.63970357 | AO200: 55.8654918 | AP200: 56.10270177 | AQ200: 56.35692124 | AR200: 56.6341 | AS200: 54.8997 | BX200: 0.9976156455 | BY200: 199.1585458 | BZ200: 199.6962328
B201: 2.884 | C201: 56.6518 | D201: 56.36803057 | E201: 56.11093217 | F201: 55.87101845 | G201: 55.6435943 | H201: 55.42483026 | I201: 55.21250891 | J201: 55.00553189 | K201: 54.80377389 | L201: 54.60789827 | M201: 54.41923033 | N201: 54.23950857 | O201: 54.07069169 | P201: 53.91481463 | Q201: 53.77382875 | R201: 53.64954222 | S201: 53.54353549 | T201: 53.45714291 | U201: 53.39142729 | V201: 53.34718115 | W201: 53.32492804 | X201: 53.32492804 | Y201: 53.34718115 | Z201: 53.39142729 | AA201: 53.45714291 | AB201: 53.54353549 | AC201: 53.64954222 | AD201: 53.77382875 | AE201: 53.91481463 | AF201: 54.07069169 | AG201: 54.23950857 | AH201: 54.41923033 | AI201: 54.60789827 | AJ201: 54.80377389 | AK201: 55.00553189 | AL201: 55.21250891 | AM201: 55.42483026 | AN201: 55.6435943 | AO201: 55.87101845 | AP201: 56.11093217 | AQ201: 56.36803057 | AR201: 56.6518 | AS201: 54.9014 | BX201: 0.9976496014 | BY201: 200.2963548 | BZ201: 200.8367503
B202: 2.899 | C202: 56.6688 | D202: 56.38093591 | E202: 56.11924734 | F202: 55.87706179 | G202: 55.64778468 | H202: 55.42794769 | I202: 55.21509488 | J202: 55.00805722 | K202: 54.80662021 | L202: 54.61138585 | M202: 54.42355913 | N202: 54.24478513 | O202: 54.07695289 | P202: 53.92202004 | Q202: 53.78190908 | R202: 53.65838728 | S202: 53.55302621 | T202: 53.46714789 | U202: 53.40181575 | V202: 53.35782294 | W202: 53.33569567 | X202: 53.33569567 | Y202: 53.35782294 | Z202: 53.40181575 | AA202: 53.46714789 | AB202: 53.55302621 | AC202: 53.65838728 | AD202: 53.78190908 | AE202: 53.92202004 | AF202: 54.07695289 | AG202: 54.24478513 | AH202: 54.42355913 | AI202: 54.61138585 | AJ202: 54.80662021 | AK202: 55.00805722 | AL202: 55.21509488 | AM202: 55.42794769 | AN202: 55.64778468 | AO202: 55.87706179 | AP202: 56.11924734 | AQ202: 56.38093591 | AR202: 56.6688 | AS202: 54.9128 | BX202: 0.9976007579 | BY202: 201.4341037 | BZ202: 201.9772653
... 441 more rows

Sheet Sheet1
A1: 0.064 | B1: 57 | C1: 52.3873 | D1: 53.4122
A2: 0.079 | B2: 57 | C2: 52.3848 | D2: 53.4139 | E2: Vial
A3: 0.094 | B3: 57 | C3: 52.3808 | D3: 53.4067
A4: 0.109 | B4: 57 | C4: 52.3779 | D4: 53.4041
A5: 0.124 | B5: 57 | C5: 52.3754 | D5: 53.3943
A6: 0.139 | B6: 57 | C6: 52.3717 | D6: 53.386
A7: 0.154 | B7: 57 | C7: 52.3748 | D7: 53.3855
A8: 0.169 | B8: 57 | C8: 52.3787 | D8: 53.3791
A9: 0.184 | B9: 57 | C9: 52.3785 | D9: 53.3776
A10: 0.199 | B10: 57 | C10: 52.3885 | D10: 53.3783
A11: 0.214 | B11: 57 | C11: 52.3981 | D11: 53.3721
A12: 0.229 | B12: 57 | C12: 52.4091 | D12: 53.3688
A13: 0.244 | B13: 57 | C13: 52.4247 | D13: 53.3638
A14: 0.259 | B14: 57 | C14: 52.4432 | D14: 53.3567
A15: 0.274 | B15: 57 | C15: 52.4685 | D15: 53.3545
A16: 0.289 | B16: 57 | C16: 52.492 | D16: 53.344
A17: 0.304 | B17: 57 | C17: 52.5243 | D17: 53.3397
A18: 0.319 | B18: 57 | C18: 52.5616 | D18: 53.3326
A19: 0.334 | B19: 57 | C19: 52.6024 | D19: 53.3338
A20: 0.349 | B20: 57 | C20: 52.65 | D20: 53.3283
A21: 0.364 | B21: 57 | C21: 52.7033 | D21: 53.3343
A22: 0.379 | B22: 57 | C22: 52.7568 | D22: 53.3243
A23: 0.394 | B23: 57 | C23: 52.8152 | D23: 53.3214
A24: 0.409 | B24: 57 | C24: 52.8732 | D24: 53.3121
A25: 0.424 | B25: 57 | C25: 52.9395 | D25: 53.3128
A26: 0.439 | B26: 57 | C26: 53.013 | D26: 53.3057
A27: 0.454 | B27: 57 | C27: 53.0837 | D27: 53.299
A28: 0.469 | B28: 57 | C28: 53.1605 | D28: 53.3012
A29: 0.484 | B29: 57 | C29: 53.2371 | D29: 53.2928
A30: 0.499 | B30: 57 | C30: 53.323 | D30: 53.2986
A31: 0.514 | B31: 57 | C31: 53.4067 | D31: 53.2902
A32: 0.529 | B32: 57 | C32: 53.4947 | D32: 53.2912
A33: 0.544 | B33: 57 | C33: 53.5843 | D33: 53.2862
A34: 0.559 | B34: 57 | C34: 53.6771 | D34: 53.2857
A35: 0.574 | B35: 57 | C35: 53.7751 | D35: 53.2833
A36: 0.589 | B36: 57 | C36: 53.87 | D36: 53.2776
A37: 0.604 | B37: 57 | C37: 53.9711 | D37: 53.28
A38: 0.619 | B38: 57 | C38: 54.0715 | D38: 53.2807
A39: 0.634 | B39: 57 | C39: 54.1764 | D39: 53.2814
A40: 0.649 | B40: 57 | C40: 54.2878 | D40: 53.2821
A41: 0.664 | B41: 57 | C41: 54.3951 | D41: 53.2817
A42: 0.679 | B42: 57 | C42: 54.5045 | D42: 53.284
A43: 0.694 | B43: 57 | C43: 54.6157 | D43: 53.2826
A44: 0.709 | B44: 57 | C44: 54.7259 | D44: 53.2864
A45: 0.724 | B45: 57 | C45: 54.8409 | D45: 53.2824
A46: 0.739 | B46: 57 | C46: 54.9534 | D46: 53.2855
A47: 0.754 | B47: 57 | C47: 55.0719 | D47: 53.284
A48: 0.769 | B48: 57 | C48: 55.1913 | D48: 53.2919
A49: 0.784 | B49: 57 | C49: 55.317 | D49: 53.2978
A50: 0.799 | B50: 57 | C50: 55.4361 | D50: 53.3
A51: 0.814 | B51: 57 | C51: 55.5644 | D51: 53.3062
A52: 0.829 | B52: 57 | C52: 55.6943 | D52: 53.3155
A53: 0.844 | B53: 57 | C53: 55.8247 | D53: 53.3166
A54: 0.859 | B54: 57 | C54: 55.9599 | D54: 53.3226
A55: 0.874 | B55: 57 | C55: 56.0931 | D55: 53.3309
A56: 0.889 | B56: 57 | C56: 56.2303 | D56: 53.3328
A57: 0.904 | B57: 57 | C57: 56.3694 | D57: 53.3374
A58: 0.919 | B58: 57 | C58: 56.5125 | D58: 53.349
A59: 0.934 | B59: 57 | C59: 56.6613 | D59: 53.3555
A60: 0.949 | B60: 57 | C60: 56.8086 | D60: 53.3674
A61: 0.964 | B61: 57 | C61: 56.9571 | D61: 53.376
A62: 0.979 | B62: 57 | C62: 57.0965 | D62: 53.3893
A63: 0.994 | B63: 57 | C63: 57.2419 | D63: 53.3967
A64: 1.009 | B64: 57 | C64: 57.3766 | D64: 53.407
A65: 1.024 | B65: 57 | C65: 57.5127 | D65: 53.4156
A66: 1.039 | B66: 57 | C66: 57.6407 | D66: 53.427
A67: 1.054 | B67: 57 | C67: 57.765 | D67: 53.4363
A68: 1.069 | B68: 57 | C68: 57.8876 | D68: 53.4521
A69: 1.084 | B69: 57 | C69: 58.0064 | D69: 53.4652
A70: 1.099 | B70: 57 | C70: 58.1097 | D70: 53.4767
A71: 1.114 | B71: 57 | C71: 58.2147 | D71: 53.4922
A72: 1.129 | B72: 57 | C72: 58.3101 | D72: 53.5087
A73: 1.144 | B73: 57 | C73: 58.392 | D73: 53.5226
A74: 1.159 | B74: 57 | C74: 58.4733 | D74: 53.5372
A75: 1.174 | B75: 57 | C75: 58.5436 | D75: 53.5461
A76: 1.189 | B76: 57 | C76: 58.6124 | D76: 53.5643
A77: 1.204 | B77: 57 | C77: 58.6703 | D77: 53.5777
A78: 1.219 | B78: 57 | C78: 58.7332 | D78: 53.594
A79: 1.234 | B79: 57 | C79: 58.7793 | D79: 53.611
A80: 1.249 | B80: 57 | C80: 58.8251 | D80: 53.6288
A81: 1.264 | B81: 57 | C81: 58.8625 | D81: 53.6482
A82: 1.279 | B82: 57 | C82: 58.8944 | D82: 53.6657
A83: 1.294 | B83: 57 | C83: 58.9225 | D83: 53.6811
A84: 1.309 | B84: 57 | C84: 58.9427 | D84: 53.6979
A85: 1.324 | B85: 57 | C85: 58.9515 | D85: 53.7167
A86: 1.339 | B86: 57 | C86: 58.9655 | D86: 53.7311
A87: 1.354 | B87: 57 | C87: 58.9704 | D87: 53.747
A88: 1.369 | B88: 57 | C88: 58.9722 | D88: 53.7638
A89: 1.384 | B89: 57 | C89: 58.9706 | D89: 53.7829
A90: 1.399 | B90: 57 | C90: 58.9593 | D90: 53.8036
A91: 1.414 | B91: 57 | C91: 58.9484 | D91: 53.827
A92: 1.429 | B92: 57 | C92: 58.9347 | D92: 53.847
A93: 1.444 | B93: 57 | C93: 58.9127 | D93: 53.8603
A94: 1.459 | B94: 57 | C94: 58.8881 | D94: 53.8767
A95: 1.474 | B95: 57 | C95: 58.8552 | D95: 53.895
A96: 1.489 | B96: 57 | C96: 58.8264 | D96: 53.9122
A97: 1.504 | B97: 57 | C97: 58.7952 | D97: 53.9313
A98: 1.519 | B98: 57 | C98: 58.7581 | D98: 53.9538
A99: 1.534 | B99: 57 | C99: 58.721 | D99: 53.968
A100: 1.549 | B100: 57 | C100: 58.6769 | D100: 53.9886
A101: 1.564 | B101: 57 | C101: 58.6346 | D101: 54.0063
A102: 1.579 | B102: 57 | C102: 58.5917 | D102: 54.0291
A103: 1.594 | B103: 57 | C103: 58.5458 | D103: 54.046
A104: 1.609 | B104: 57 | C104: 58.4924 | D104: 54.0615
A105: 1.624 | B105: 57 | C105: 58.4441 | D105: 54.0773
A106: 1.639 | B106: 57 | C106: 58.3917 | D106: 54.0967
A107: 1.654 | B107: 57 | C107: 58.3368 | D107: 54.1118
A108: 1.669 | B108: 57 | C108: 58.2806 | D108: 54.1271
A109: 1.684 | B109: 57 | C109: 58.2337 | D109: 54.1514
A110: 1.699 | B110: 57 | C110: 58.175 | D110: 54.1667
A111: 1.714 | B111: 57 | C111: 58.1208 | D111: 54.1869
A112: 1.729 | B112: 57 | C112: 58.0686 | D112: 54.2039
A113: 1.744 | B113: 57 | C113: 58.0108 | D113: 54.2178
A114: 1.759 | B114: 57 | C114: 57.95 | D114: 54.2341
A115: 1.774 | B115: 57 | C115: 57.8926 | D115: 54.2483
A116: 1.789 | B116: 57 | C116: 57.8307 | D116: 54.2573
A117: 1.804 | B117: 57 | C117: 57.7734 | D117: 54.2773
A118: 1.819 | B118: 57 | C118: 57.7179 | D118: 54.2924
A119: 1.834 | B119: 57 | C119: 57.6623 | D119: 54.3107
A120: 1.849 | B120: 57 | C120: 57.608 | D120: 54.3227
A121: 1.864 | B121: 57 | C121: 57.5572 | D121: 54.3403
A122: 1.879 | B122: 57 | C122: 57.502 | D122: 54.3576
A123: 1.894 | B123: 57 | C123: 57.4464 | D123: 54.3708
A124: 1.909 | B124: 57 | C124: 57.3941 | D124: 54.384
A125: 1.924 | B125: 57 | C125: 57.3419 | D125: 54.3987
A126: 1.939 | B126: 57 | C126: 57.291 | D126: 54.4089
A127: 1.954 | B127: 57 | C127: 57.238 | D127: 54.4202
A128: 1.969 | B128: 57 | C128: 57.1904 | D128: 54.4354
A129: 1.984 | B129: 57 | C129: 57.1436 | D129: 54.4484
A130: 1.999 | B130: 57 | C130: 57.1012 | D130: 54.4633
A131: 2.014 | B131: 57 | C131: 57.0567 | D131: 54.4743
A132: 2.029 | B132: 57 | C132: 57.0127 | D132: 54.49
A133: 2.044 | B133: 57 | C133: 56.9724 | D133: 54.5003
A134: 2.059 | B134: 57 | C134: 56.9323 | D134: 54.5101
A135: 2.074 | B135: 57 | C135: 56.8916 | D135: 54.5209
A136: 2.089 | B136: 57 | C136: 56.8526 | D136: 54.5317
A137: 2.104 | B137: 57 | C137: 56.8118 | D137: 54.5408
A138: 2.119 | B138: 57 | C138: 56.7786 | D138: 54.5514
A139: 2.134 | B139: 57 | C139: 56.749 | D139: 54.559
A140: 2.149 | B140: 57 | C140: 56.7193 | D140: 54.574
A141: 2.164 | B141: 57 | C141: 56.6952 | D141: 54.5877
A142: 2.179 | B142: 57 | C142: 56.6585 | D142: 54.5993
A143: 2.194 | B143: 57 | C143: 56.633 | D143: 54.6067
A144: 2.209 | B144: 57 | C144: 56.6067 | D144: 54.6104
A145: 2.224 | B145: 57 | C145: 56.5814 | D145: 54.6199
A146: 2.239 | B146: 57 | C146: 56.5556 | D146: 54.6254
A147: 2.254 | B147: 57 | C147: 56.5312 | D147: 54.635
A148: 2.269 | B148: 57 | C148: 56.5141 | D148: 54.6399
A149: 2.284 | B149: 57 | C149: 56.4976 | D149: 54.6539
A150: 2.299 | B150: 57 | C150: 56.4826 | D150: 54.6593
A151: 2.314 | B151: 57 | C151: 56.4675 | D151: 54.6711
A152: 2.329 | B152: 57 | C152: 56.4505 | D152: 54.6803
A153: 2.344 | B153: 57 | C153: 56.4375 | D153: 54.6867
A154: 2.359 | B154: 57 | C154: 56.4316 | D154: 54.7015
A155: 2.374 | B155: 57 | C155: 56.4205 | D155: 54.6997
A156: 2.389 | B156: 57 | C156: 56.4086 | D156: 54.7032
A157: 2.404 | B157: 57 | C157: 56.4 | D157: 54.7121
A158: 2.419 | B158: 57 | C158: 56.3975 | D158: 54.7229
A159: 2.434 | B159: 57 | C159: 56.3927 | D159: 54.7251
A160: 2.449 | B160: 57 | C160: 56.392 | D160: 54.7372
A161: 2.464 | B161: 57 | C161: 56.3914 | D161: 54.7459
A162: 2.479 | B162: 57 | C162: 56.3927 | D162: 54.7496
A163: 2.494 | B163: 57 | C163: 56.3939 | D163: 54.7575
A164: 2.509 | B164: 57 | C164: 56.3958 | D164: 54.7617
A165: 2.524 | B165: 57 | C165: 56.3937 | D165: 54.77
A166: 2.539 | B166: 57 | C166: 56.3958 | D166: 54.7735
A167: 2.554 | B167: 57 | C167: 56.4006 | D167: 54.775
A168: 2.569 | B168: 57 | C168: 56.4061 | D168: 54.7849
A169: 2.584 | B169: 57 | C169: 56.4113 | D169: 54.7908
A170: 2.599 | B170: 57 | C170: 56.4189 | D170: 54.7999
A171: 2.614 | B171: 57 | C171: 56.4293 | D171: 54.8064
A172: 2.629 | B172: 57 | C172: 56.4375 | D172: 54.8158
A173: 2.644 | B173: 57 | C173: 56.4457 | D173: 54.82
A174: 2.659 | B174: 57 | C174: 56.4537 | D174: 54.8296
A175: 2.674 | B175: 57 | C175: 56.4627 | D175: 54.8311
A176: 2.689 | B176: 57 | C176: 56.4713 | D176: 54.8308
A177: 2.704 | B177: 57 | C177: 56.4845 | D177: 54.8346
A178: 2.719 | B178: 57 | C178: 56.4952 | D178: 54.838
A179: 2.734 | B179: 57 | C179: 56.5102 | D179: 54.8457
A180: 2.749 | B180: 57 | C180: 56.5274 | D180: 54.8576
A181: 2.764 | B181: 57 | C181: 56.5421 | D181: 54.8605
A182: 2.779 | B182: 57 | C182: 56.5562 | D182: 54.8709
A183: 2.794 | B183: 57 | C183: 56.5675 | D183: 54.8709
A184: 2.809 | B184: 57 | C184: 56.5793 | D184: 54.8836
A185: 2.824 | B185: 57 | C185: 56.5909 | D185: 54.8853
A186: 2.839 | B186: 57 | C186: 56.6035 | D186: 54.8855
A187: 2.854 | B187: 57 | C187: 56.6193 | D187: 54.8927
A188: 2.869 | B188: 57 | C188: 56.6341 | D188: 54.8997
A189: 2.884 | B189: 57 | C189: 56.6518 | D189: 54.9014
A190: 2.899 | B190: 57 | C190: 56.6688 | D190: 54.9128
A191: 2.914 | B191: 57 | C191: 56.679 | D191: 54.9222
A192: 2.929 | B192: 57 | C192: 56.6969 | D192: 54.9262
A193: 2.944 | B193: 57 | C193: 56.7134 | D193: 54.9272
A194: 2.959 | B194: 57 | C194: 56.7245 | D194: 54.9356
A195: 2.974 | B195: 57 | C195: 56.7342 | D195: 54.9356
A196: 2.989 | B196: 57 | C196: 56.7478 | D196: 54.9428
A197: 3.004 | B197: 57 | C197: 56.7587 | D197: 54.947
A198: 3.019 | B198: 57 | C198: 56.7731 | D198: 54.9537
A199: 3.034 | B199: 57 | C199: 56.7852 | D199: 54.9602
A200: 3.049 | B200: 57 | C200: 56.8 | D200: 54.9683
... 12629 more rows

Sheet Compatibility Report
B1: Compatibility Report for PDE model of thermal transfer vial to H2O 8_2013.xls
B2: Run on 8/18/2013 15:23
B4: The following features in this workbook are not supported by earlier versions of Excel. These features may be lost or degraded when opening this workbook in an earlier version of Excel or if you save this workbook in an earlier file format.
B6: Minor loss of fidelity | E6: # of occurrences | F6: Version
B8: Some cells or styles in this workbook contain formatting that is not supported by the selected file format. These formats will be converted to the closest format available. | E8: 10 | F8: Excel 97-2003
